{"text_format":"1","workbook":"xlsx","n_sheets":20,"sheets":["Pomocniczy","Załącznik 1 - Formularz Oferty","zadanie 1-4","Zadanie55","Zadanie66","Zadanie77","Załącznik 2-F.O. dla Zadania 1","Załącznik 3-F.O. dla Zadania 2","Załącznik 4-F.O. dla Zadania 3","Załącznik 5-F.O. dla Zadania 4","Załącznik 6-F.O. dla Zadania 5","Załącznik 7-F.O. dla Zadania 6","Załącznik 8-F.O. dla Zadania 7","zad1","zad2","zad3","zad4","zad5","zad6","zad7"],"not_rendered":{"charts":0,"images":8,"macros":1,"external_links":0,"defined_names":7,"comments":0,"pivot_tables":0},"unopened":[],"bounds":{"document_bytes":16777216,"sheet_cells":100000,"rows_first":2000,"rows_last":500,"rows_between":2000,"halvings":0,"cell_chars":16384,"cell_head_chars":4096},"cells_cut":0,"cells_raw":0,"read":"whole","date_system":"1900"}

{"sheet":"Pomocniczy","index":0,"n_rows":105,"n_cols":4,"rows_kept":105,"cut":false,"hidden":true,"merged":[]}
[]
[]
[]
[]
[]
[]
[]
[]
[]
[]
[]
[]
[]
[]
[]
[]
[]
[]
[]
[]
[]
[]
[]
[]
[]
[]
[]
[]
[]
[]
[]
[]
[]
[]
[]
[]
[]
[]
[]
[]
[8,"PAPIER INTENSYWNY ZIELONY A4, 80 g","Papier uniwersalny 80 g/m2, Przeznaczony do kopiarek, drukarek laserowych i atramentowych. Kolor intensywny zielony. Format A4","ryza/500 arkuszy"]
[9,"PAPIER INTENSYWNY ŻÓŁTY, A4, 80 g","Papier uniwersalny 80 g/m2, Przeznaczony do kopiarek, drukarek laserowych i atramentowych. Kolor intensywny żółty. Format A4","ryza/500 arkuszy"]
[10,"PAPIER INTENSYWNY CZERWONY A4, 80g","Papier uniwersalny 80 g/m2, Przeznaczony do kopiarek, drukarek laserowych i atramentowych. Kolor intensywny czerwony. Format A4","ryza/500 arkuszy"]
[11,"PAPIER MIX KOLORÓW A4, 80 g","Papier uniwersalny 80 g/m2, Przeznaczony do kopiarek, drukarek laserowych i atramentowych. Mix kolorów. Format A4","ryza/500 arkuszy"]
[12,"PAPIER A4 100G, BIAŁOŚĆ 168 CIE","Papier uniwersalny 100 g/m2 klasy A, Przeznaczony do kopiarek, drukarek laserowych i atramentowych oraz do wydruków kolorowych, Białość: 168 wg skali białości CIE. Format A4","ryza/ 250 arkuszy"]
[13,"Papier ozdobny – biały 250 g/m3   20 arkuszy","papier wizytówkowy/ozdobny - np.. R20 TOP STYLE TRAD PAPIER A4 250G BIAŁY lub podobny","opakowanie 20 arkuszy"]
[1,"PAPIER A4 80G, BIAŁOŚĆ 166 CIE","Papier uniwersalny 80 g/m2 klasy A, Przeznaczony do kopiarek, drukarek laserowych i atramentowych oraz do wydruków kolorowych, Białość: 166 wg skali białości CIE. Format A4","karton/5 ryz po 500 arkuszy"]
[2,"PAPIER A4 80G, BIAŁOŚĆ 146 CIE","Papier uniwersalny 80 g/m² klasy C+, Przeznaczony do drukarek laserowych,kopiarek oraz faksów. Białość: 146 wg skali białości CIE. Format A4","karton/5 ryz po 500 arkuszy"]
[3,"PAPIER UNIWERSALNY A5 80G BIAŁY, BIAŁOŚĆ 146 CIE","Papier uniwersalny 80 g/m² klasy C+. Przeznaczony do drukarek laserowych, kopiarek oraz faksów. Białość: 146 wg skali białości CIE. Format A5","ryza/500 arkuszy"]
[4,"PAPIER A3 80G, BIAŁOŚĆ 146 CIE","Papier uniwersalny 80 g/m² klasy C+. Przeznaczony do drukarek laserowych, kopiarek oraz faksów. Białość: 146 wg skali białości CIE. Format A3","ryza/500 arkuszy"]
[5,"PAPIER SATYNOWY A4 160G BIAŁY, BIAŁOŚC 168 CIE","Satynowany,biały papier przeznaczony do pełnokolorowych wydruków, nadaje się do maszyn cyfrowych,prezentacji, broszur, raportów oraz materiałów informacyjnych. Białość: 168 wg skali białości CIE. Gramatura 160 g//m². Format A4","ryza/250 arkuszy"]
[6,"PAPIER A4 160G, BIAŁOŚĆ 169 CIE","Papier przeznaczony do dwustronnych wydruków laserowych i atramentowych. Zapobiega przesiąkaniu druku. Białość: 169 wg skali białości CIE\n160 g/m². Format A4","ryza/250 arkuszy"]
[7,"PAPIER INTENSYWNY NIEBIESKI A4, 80 g","Papier uniwersalny 80 g/m2, Przeznaczony do kopiarek, drukarek laserowych i atramentowych. Kolor intensywny niebieski. Format A4","ryza/500 arkuszy"]
[8,"PAPIER INTENSYWNY ZIELONY A4, 80 g","Papier uniwersalny 80 g/m2, Przeznaczony do kopiarek, drukarek laserowych i atramentowych. Kolor intensywny zielony. Format A4","ryza/500 arkuszy"]
[9,"PAPIER INTENSYWNY ŻÓŁTY, A4, 80 g","Papier uniwersalny 80 g/m2, Przeznaczony do kopiarek, drukarek laserowych i atramentowych. Kolor intensywny żółty. Format A4","ryza/500 arkuszy"]
[10,"PAPIER INTENSYWNY CZERWONY A4, 80g","Papier uniwersalny 80 g/m2, Przeznaczony do kopiarek, drukarek laserowych i atramentowych. Kolor intensywny czerwony. Format A4","ryza/500 arkuszy"]
[11,"PAPIER MIX KOLORÓW A4, 80 g","Papier uniwersalny 80 g/m2, Przeznaczony do kopiarek, drukarek laserowych i atramentowych. Mix kolorów. Format A4","ryza/500 arkuszy"]
[12,"PAPIER A4 100G, BIAŁOŚĆ 168 CIE","Papier uniwersalny 100 g/m2 klasy A, Przeznaczony do kopiarek, drukarek laserowych i atramentowych oraz do wydruków kolorowych, Białość: 168 wg skali białości CIE. Format A4","ryza/ 250 arkuszy"]
[13,"Papier ozdobny – biały 250 g/m3   20 arkuszy","papier wizytówkowy/ozdobny - np.. R20 TOP STYLE TRAD PAPIER A4 250G BIAŁY lub podobny","opakowanie 20 arkuszy"]
[1,"PAPIER A4 80G, BIAŁOŚĆ 166 CIE","Papier uniwersalny 80 g/m2 klasy A, Przeznaczony do kopiarek, drukarek laserowych i atramentowych oraz do wydruków kolorowych, Białość: 166 wg skali białości CIE. Format A4","karton/5 ryz po 500 arkuszy"]
[2,"PAPIER A4 80G, BIAŁOŚĆ 146 CIE","Papier uniwersalny 80 g/m² klasy C+, Przeznaczony do drukarek laserowych,kopiarek oraz faksów. Białość: 146 wg skali białości CIE. Format A4","karton/5 ryz po 500 arkuszy"]
[3,"PAPIER UNIWERSALNY A5 80G BIAŁY, BIAŁOŚĆ 146 CIE","Papier uniwersalny 80 g/m² klasy C+. Przeznaczony do drukarek laserowych, kopiarek oraz faksów. Białość: 146 wg skali białości CIE. Format A5","ryza/500 arkuszy"]
[4,"PAPIER A3 80G, BIAŁOŚĆ 146 CIE","Papier uniwersalny 80 g/m² klasy C+. Przeznaczony do drukarek laserowych, kopiarek oraz faksów. Białość: 146 wg skali białości CIE. Format A3","ryza/500 arkuszy"]
[5,"PAPIER SATYNOWY A4 160G BIAŁY, BIAŁOŚC 168 CIE","Satynowany,biały papier przeznaczony do pełnokolorowych wydruków, nadaje się do maszyn cyfrowych,prezentacji, broszur, raportów oraz materiałów informacyjnych. Białość: 168 wg skali białości CIE. Gramatura 160 g//m². Format A4","ryza/250 arkuszy"]
[6,"PAPIER A4 160G, BIAŁOŚĆ 169 CIE","Papier przeznaczony do dwustronnych wydruków laserowych i atramentowych. Zapobiega przesiąkaniu druku. Białość: 169 wg skali białości CIE\n160 g/m². Format A4","ryza/250 arkuszy"]
[7,"PAPIER INTENSYWNY NIEBIESKI A4, 80 g","Papier uniwersalny 80 g/m2, Przeznaczony do kopiarek, drukarek laserowych i atramentowych. Kolor intensywny niebieski. Format A4","ryza/500 arkuszy"]
[8,"PAPIER INTENSYWNY ZIELONY A4, 80 g","Papier uniwersalny 80 g/m2, Przeznaczony do kopiarek, drukarek laserowych i atramentowych. Kolor intensywny zielony. Format A4","ryza/500 arkuszy"]
[9,"PAPIER INTENSYWNY ŻÓŁTY, A4, 80 g","Papier uniwersalny 80 g/m2, Przeznaczony do kopiarek, drukarek laserowych i atramentowych. Kolor intensywny żółty. Format A4","ryza/500 arkuszy"]
[10,"PAPIER INTENSYWNY CZERWONY A4, 80g","Papier uniwersalny 80 g/m2, Przeznaczony do kopiarek, drukarek laserowych i atramentowych. Kolor intensywny czerwony. Format A4","ryza/500 arkuszy"]
[11,"PAPIER MIX KOLORÓW A4, 80 g","Papier uniwersalny 80 g/m2, Przeznaczony do kopiarek, drukarek laserowych i atramentowych. Mix kolorów. Format A4","ryza/500 arkuszy"]
[12,"PAPIER A4 100G, BIAŁOŚĆ 168 CIE","Papier uniwersalny 100 g/m2 klasy A, Przeznaczony do kopiarek, drukarek laserowych i atramentowych oraz do wydruków kolorowych, Białość: 168 wg skali białości CIE. Format A4","ryza/ 250 arkuszy"]
[13,"Papier ozdobny – biały 250 g/m3   20 arkuszy","papier wizytówkowy/ozdobny - np.. R20 TOP STYLE TRAD PAPIER A4 250G BIAŁY lub podobny","opakowanie 20 arkuszy"]
[1,"PAPIER A4 80G, BIAŁOŚĆ 166 CIE","Papier uniwersalny 80 g/m2 klasy A, Przeznaczony do kopiarek, drukarek laserowych i atramentowych oraz do wydruków kolorowych, Białość: 166 wg skali białości CIE. Format A4","karton/5 ryz po 500 arkuszy"]
[2,"PAPIER A4 80G, BIAŁOŚĆ 146 CIE","Papier uniwersalny 80 g/m² klasy C+, Przeznaczony do drukarek laserowych,kopiarek oraz faksów. Białość: 146 wg skali białości CIE. Format A4","karton/5 ryz po 500 arkuszy"]
[3,"PAPIER UNIWERSALNY A5 80G BIAŁY, BIAŁOŚĆ 146 CIE","Papier uniwersalny 80 g/m² klasy C+. Przeznaczony do drukarek laserowych, kopiarek oraz faksów. Białość: 146 wg skali białości CIE. Format A5","ryza/500 arkuszy"]
[4,"PAPIER A3 80G, BIAŁOŚĆ 146 CIE","Papier uniwersalny 80 g/m² klasy C+. Przeznaczony do drukarek laserowych, kopiarek oraz faksów. Białość: 146 wg skali białości CIE. Format A3","ryza/500 arkuszy"]
[5,"PAPIER SATYNOWY A4 160G BIAŁY, BIAŁOŚC 168 CIE","Satynowany,biały papier przeznaczony do pełnokolorowych wydruków, nadaje się do maszyn cyfrowych,prezentacji, broszur, raportów oraz materiałów informacyjnych. Białość: 168 wg skali białości CIE. Gramatura 160 g//m². Format A4","ryza/250 arkuszy"]
[6,"PAPIER DO DRUKAREK IGŁOWYCH 240MM 1+3 O/K","Papier do drukarek igłowych,  wielowarstwowy o gramaturze 53-57 g/m², wytwarzany z papieru samokopiującego.Liczba warstw 1+3. Biały oryginał, żółta, zielona i różowa kopia, posiada nadruk oryginał/kopia. Format: długość 12''= 305 mm, szerokość 240 mm","karton/450 składek"]
[7,"PAPIER DO DRUKAREK IGŁOWYCH 240MM 1+4","Papier do drukarek igłowych,  wielowarstwowy o gramaturze 53-57 g/m², wytwarzany z papieru samokopiującego.Kolory kopii:1+4: żółta, zielona, żółta, różowa. Długość: 12'' = 305mm; Szerokość: 240(mm). Liczba warstw 1+4","karton/350 składek"]
[8,"ROLKA PAPIEROWA 76MMX25M","Rolka papierowa (offsetowa) Gwarancja: 5 lat na zdolność kopiowania papieru i 25 lat na trwałość kopii. Wymiary: 76 mm x dl. 25m","opakowanie/10 sztuk"]
[9,"PELIKAN KALKA OŁÓWKOWA NIEBIESKA A4","Kalka przebitkowa, maszynowa i do pisania odręcznego. Samoregenerująca się. Format A4. Kolor niebieski","opakowanie/10 arkuszy"]
[10,"PAPIER FOTOGRAFICZNY,  A4,  180 g","Szybkoschnący papier fotograficzny do wydruku profesjonalnej jakości fotografii. Gładkie, lśniące wykończenie zapewnia wyraźne zdjęcia o żywych kolorach. Format A4, 180 g","ryza/50 arkuszy"]
[11,"PAPIER FOTOGRAFICZNY, A4, 200G, ","Szybkoschnący papier fotograficzny do wydruku profesjonalnej jakości fotografii. Gładkie, lśniące wykończenie zapewnia wyraźne zdjęcia o żywych kolorach. Format A4, 200g","opakowanie/25 arkuszy"]
[12,"PAPIER A4 160G, BIAŁOŚĆ 169 CIE","Papier przeznaczony do dwustronnych wydruków laserowych i atramentowych. Zapobiega przesiąkaniu druku. Białość: 169 wg skali białości CIE\n160 g/m². Format A4","ryza/250 arkuszy"]
[13,"OKŁADKI DO DYPLOMÓW GRANAT, ROZMIAR 220 X 310 MM","Okładki do certyfikatów, dyplomów, listów gratulacyjnych. Twarda oprawa o fakturze skóry. Posiadają ozdobny złoty sznureczek. Rozmiar okładki: 220 x 310 mm. Kolor granatowy","opakowanie/10 sztuk"]
[14,"PAPIER INTENSYWNY NIEBIESKI A4, 80 g","Papier uniwersalny 80 g/m2, Przeznaczony do kopiarek, drukarek laserowych i atramentowych. Kolor intensywny niebieski. Format A4","ryza/500 arkuszy"]
[15,"PAPIER INTENSYWNY ZIELONY A4, 80 g","Papier uniwersalny 80 g/m2, Przeznaczony do kopiarek, drukarek laserowych i atramentowych. Kolor intensywny zielony. Format A4","ryza/500 arkuszy"]
[16,"PAPIER INTENSYWNY ŻÓŁTY, A4, 80 g","Papier uniwersalny 80 g/m2, Przeznaczony do kopiarek, drukarek laserowych i atramentowych. Kolor intensywny żółty. Format A4","ryza/500 arkuszy"]
[17,"PAPIER INTENSYWNY CZERWONY A4, 80g","Papier uniwersalny 80 g/m2, Przeznaczony do kopiarek, drukarek laserowych i atramentowych. Kolor intensywny czerwony. Format A4","ryza/500 arkuszy"]
[18,"PAPIER MIX KOLORÓW A4, 80 g","Papier uniwersalny 80 g/m2, Przeznaczony do kopiarek, drukarek laserowych i atramentowych. Mix kolorów. Format A4","ryza/500 arkuszy"]
[19,"PAPIER A4 100G, BIAŁOŚĆ 168 CIE","Papier uniwersalny 100 g/m2 klasy A, Przeznaczony do kopiarek, drukarek laserowych i atramentowych oraz do wydruków kolorowych, Białość: 168 wg skali białości CIE. Format A4","ryza/ 250 arkuszy"]
[20,"Papier ozdobny – biały 250 g/m3   20 arkuszy","papier wizytówkowy/ozdobny - np.. R20 TOP STYLE TRAD PAPIER A4 250G BIAŁY lub podobny","opakowanie 20 arkuszy"]
[1,"PAPIER A4 80G, BIAŁOŚĆ 166 CIE","Papier uniwersalny 80 g/m2 klasy A, Przeznaczony do kopiarek, drukarek laserowych i atramentowych oraz do wydruków kolorowych, Białość: 166 wg skali białości CIE. Format A4","karton/5 ryz po 500 arkuszy"]
[2,"PAPIER A4 80G, BIAŁOŚĆ 146 CIE","Papier uniwersalny 80 g/m² klasy C+, Przeznaczony do drukarek laserowych,kopiarek oraz faksów. Białość: 146 wg skali białości CIE. Format A4","karton/5 ryz po 500 arkuszy"]
[3,"PAPIER UNIWERSALNY A5 80G BIAŁY, BIAŁOŚĆ 146 CIE","Papier uniwersalny 80 g/m² klasy C+. Przeznaczony do drukarek laserowych, kopiarek oraz faksów. Białość: 146 wg skali białości CIE. Format A5","ryza/500 arkuszy"]
[4,"PAPIER A3 80G, BIAŁOŚĆ 146 CIE","Papier uniwersalny 80 g/m² klasy C+. Przeznaczony do drukarek laserowych, kopiarek oraz faksów. Białość: 146 wg skali białości CIE. Format A3","ryza/500 arkuszy"]
[5,"PAPIER SATYNOWY A4 160G BIAŁY, BIAŁOŚC 168 CIE","Satynowany,biały papier przeznaczony do pełnokolorowych wydruków, nadaje się do maszyn cyfrowych,prezentacji, broszur, raportów oraz materiałów informacyjnych. Białość: 168 wg skali białości CIE. Gramatura 160 g//m². Format A4","ryza/250 arkuszy"]
[6,"PAPIER A4 160G, BIAŁOŚĆ 169 CIE","Papier przeznaczony do dwustronnych wydruków laserowych i atramentowych. Zapobiega przesiąkaniu druku. Białość: 169 wg skali białości CIE\n160 g/m². Format A4","ryza/250 arkuszy"]
[7,"PAPIER INTENSYWNY NIEBIESKI A4, 80 g","Papier uniwersalny 80 g/m2, Przeznaczony do kopiarek, drukarek laserowych i atramentowych. Kolor intensywny niebieski. Format A4","ryza/500 arkuszy"]
[8,"PAPIER INTENSYWNY ZIELONY A4, 80 g","Papier uniwersalny 80 g/m2, Przeznaczony do kopiarek, drukarek laserowych i atramentowych. Kolor intensywny zielony. Format A4","ryza/500 arkuszy"]
[9,"PAPIER INTENSYWNY ŻÓŁTY, A4, 80 g","Papier uniwersalny 80 g/m2, Przeznaczony do kopiarek, drukarek laserowych i atramentowych. Kolor intensywny żółty. Format A4","ryza/500 arkuszy"]
[10,"PAPIER INTENSYWNY CZERWONY A4, 80g","Papier uniwersalny 80 g/m2, Przeznaczony do kopiarek, drukarek laserowych i atramentowych. Kolor intensywny czerwony. Format A4","ryza/500 arkuszy"]
[11,"PAPIER MIX KOLORÓW A4, 80 g","Papier uniwersalny 80 g/m2, Przeznaczony do kopiarek, drukarek laserowych i atramentowych. Mix kolorów. Format A4","ryza/500 arkuszy"]
[12,"PAPIER A4 100G, BIAŁOŚĆ 168 CIE","Papier uniwersalny 100 g/m2 klasy A, Przeznaczony do kopiarek, drukarek laserowych i atramentowych oraz do wydruków kolorowych, Białość: 168 wg skali białości CIE. Format A4","ryza/ 250 arkuszy"]
[13,"Papier ozdobny – biały 250 g/m3   20 arkuszy","papier wizytówkowy/ozdobny - np.. R20 TOP STYLE TRAD PAPIER A4 250G BIAŁY lub podobny","opakowanie 20 arkuszy"]

{"sheet":"Załącznik 1 - Formularz Oferty","index":1,"n_rows":88,"n_cols":22,"rows_kept":88,"cut":false,"hidden":false,"merged":[[21,10,22,10],[87,3,87,4],[53,9,53,10],[24,3,24,6],[40,2,40,6],[36,3,36,6],[37,3,37,6],[33,3,33,6],[34,3,34,6],[86,3,86,4],[25,3,25,6],[27,3,27,6],[28,3,28,6],[30,3,30,6],[31,3,31,6],[42,2,44,6],[41,2,41,6],[18,3,18,6],[19,3,19,6],[21,3,21,6],[22,3,22,6],[2,2,2,6],[4,2,4,6],[8,2,8,6],[11,2,11,6],[14,2,14,6]]}
[null,null,"Oznaczenie sprawy:  1400/DW00/ZU/KZ/2021/0000061751",null,null,null,null,null,null,null,null,null,null,null,null,null,null,"Tak"]
[null,null,null,null,null,null,null,null,null,null,null,null,null,null,null,null,null,"Nie"]
[null,null,"ZAŁĄCZNIK NR 1 - FORMULARZ OFERTY DLA ZADAŃ: OD 1 DO 7"]
[]
[]
[null,null,null,"(pieczęć wykonawcy)"]
[]
[null,null,"Ja, niżej podpisany (My niżej podpisani):"]
[]
[]
[null,null,"działając w imieniu i na rzecz:"]
[]
[]
[null,null,"Składam(y) ofertę na wykonanie zamówienia, którego przedmiotem jest:"]
[null,null,"Dostawa papieru do wydruku dla spółek GK ENEA"]
[]
[null,null,"Oferujemy wykonanie zamówienia zgodnie z opisem przedmiotu zamówienia:"]
[]
[null,null,"ŁĄCZNA CENA NETTO OFERTY DLA ZADANIA 1",{"$f":"IF(V55=TRUE,'Załącznik 2-F.O. dla Zadania 1'!D19,\"Wykonawca nie składa oferty\")","v":"Wykonawca nie składa oferty"}]
[null,null,"CENA NETTO SŁOWNIE: ",{"$f":"IF(V55=TRUE,zad1!E13,\"\")","v":""}]
[]
[null,null,"ŁĄCZNA CENA NETTO OFERTY DLA ZADANIA 2",{"$f":"IF(V56=TRUE,'Załącznik 3-F.O. dla Zadania 2'!D19,\"Wykonawca nie składa oferty\")","v":"Wykonawca nie składa oferty"}]
[null,null,"CENA NETTO SŁOWNIE: ",{"$f":"IF(V56=TRUE,zad2!E13,\"\")","v":""},null,null,null,null,null,null,{"$f":"IF(V23=TRUE,'Załącznik 2-F.O. dla Zadania 1'!#REF!,0)","v":0}]
[]
[null,null,"ŁĄCZNA CENA NETTO OFERTY DLA ZADANIA 3",{"$f":"IF(V57=TRUE,'Załącznik 4-F.O. dla Zadania 3'!D19,\"Wykonawca nie składa oferty\")","v":"Wykonawca nie składa oferty"}]
[null,null,"CENA NETTO SŁOWNIE: ",{"$f":"IF(V57=TRUE,zad3!E13,\"\")","v":""}]
[]
[null,null,"ŁĄCZNA CENA NETTO OFERTY DLA ZADANIA 4",{"$f":"IF(V58=TRUE,'Załącznik 5-F.O. dla Zadania 4'!D19,\"Wykonawca nie składa oferty\")","v":"Wykonawca nie składa oferty"}]
[null,null,"CENA NETTO SŁOWNIE: ",{"$f":"IF(V58=TRUE,zad4!E13,\"\")","v":""}]
[]
[null,null,"ŁĄCZNA CENA NETTO OFERTY DLA ZADANIA 5",{"$f":"IF(V59=TRUE,'Załącznik 6-F.O. dla Zadania 5'!D19,\"Wykonawca nie składa oferty\")","v":"Wykonawca nie składa oferty"}]
[null,null,"CENA NETTO SŁOWNIE: ",{"$f":"IF(V59=TRUE,zad5!E13,\"\")","v":""}]
[]
[null,null,"ŁĄCZNA CENA NETTO OFERTY DLA ZADANIA 6",{"$f":"IF(V60=TRUE,'Załącznik 7-F.O. dla Zadania 6'!D19,\"Wykonawca nie składa oferty\")","v":"Wykonawca nie składa oferty"}]
[null,null,"CENA NETTO SŁOWNIE: ",{"$f":"IF(V60=TRUE,zad6!E13,\"\")","v":""}]
[]
[null,null,"ŁĄCZNA CENA NETTO OFERTY DLA ZADANIA 7",{"$f":"IF(V61=TRUE,'Załącznik 8-F.O. dla Zadania 7'!D19,\"Wykonawca nie składa oferty\")","v":"Wykonawca nie składa oferty"}]
[null,null,"CENA NETTO SŁOWNIE: ",{"$f":"IF(V61=TRUE,zad7!E13,\"\")","v":""}]
[]
[]
[null,null,"INSTRUKCJA DLA WYKONAWCY: \n1. W arkuszu Załącznik 1 - Formularz Oferty należy wybrać Zadania na które Wykonawca składa ofertę (Zadania 1 - 7). W tym celu, w kolumnie \"J55 -J61\", należy zaznaczyć/wybrać checkboxy dla tych Zadań dla których Wykonawca składa ofertę. \n2. Następnie proszę wybrać przycisk \"Wykonaj\". Spowoduje to uruchomienie makra, które dostosuje listę produktów dla których należy uzupełnić ceny jednostkowe netto do wybranych Zadań na które Wykonawca składa ofertę (produkty będą widoczne w wierszu od 53). Przykładowo jeżeli Wykonawca zaznaczy, że składa ofertę tylko dla Zadania 7, wówczas w wierszach od 53 będą widoczne tylko produkty dla Zadania 7. Jeżeli Wykonawca zaznaczy, że składa ofertę dla Zadania 3, 4, 7 wówczas w wierszach od 53 będą widoczne produkty dla tych Zadań (jeżeli produkt występuje w każdym Zadaniu to widoczny jest tylko jeden raz - nie powtarzają się produkty).  \n3.Wykonawca uzupełnia ceny jednostkowe netto oraz Stawki Vat dla wszystkich produktów - zaznaczone na niebiesko (kolumna \"F\" i \"G\" wiersze od 53).  \n4. Ceny jednostkowe netto wpisane w arkuszu Załącznik 1 - Formularz Oferty automatycznie zaciągają się do kolejnych arkuszy Zadań i wyliczają łączną cenę netto Oferty dla poszczególnych Zadań w arkuszach. \n5. Cena netto Oferty dla danego Zadania (łącznie z cenami jednostkowymi netto) musi być podana w złotych polskich, z dokładnością do dwóch miejsc po przecinku poprzez zastosowanie w arkuszu kalkulacyjnym Excel funkcji zaokrąglenia. tj. ZAOKR (=ZAOKR(A1;2), gdzie A1 oznacza liczbę). \n6. Cena Oferty netto dla danego Zadania, w tym ceny jednostkowe netto, muszą być wyższe niż  0,00 PLN.\n7. Uwaga! Ponowne uruchomienie makra (przycisk Wykonaj), dostosowującego listę produktów wg wybranych Zadań, po wpisaniu cen spowoduje wykasowanie wcześniej wprowadzonych cen."]
[null,null,"Uwaga: na niebiesko zostały zaznaczone pola do uzupełnienia przez Wykonawców (załączniki: Załącznik 1 - Formularz Oferty oraz Załączniki 2 do 8). "]
[null,null,"W celu złożenia oferty Wykonawca zobowiązany jest do uzupełnienia i podpisania arkusza: Załącznik 1 - Formularz Oferty oraz uzupełnienia i podpisania załączników dla wszystkich Zadań, na które składa Ofertę, np. Wykonawca składając ofertę dla Zadania 1 i Zadania 7 powinien złożyć wypełniony i podpisany załącznik: Załącznik 1 - Formularz Oferty (wypełniony zgodnie z powyższa instrukcją) oraz Załącznik 2-F.O. dla Zadania 1 1 i Załącznik 8-F.O. dla Zadania 7 (należy wypełnić tylko pola oznaczone na niebiesko)."]
[]
[]
[]
[]
[]
[]
[]
[]
[null,"lp","Opis","Opis szczegółowy","Jednostka ","Stawka VAT","Cena jednostkowa netto"]
[null,1,"PAPIER A4 80G, BIAŁOŚĆ 166 CIE","Papier uniwersalny 80 g/m2 klasy A, Przeznaczony do kopiarek, drukarek laserowych i atramentowych oraz do wydruków kolorowych, Białość: 166 wg skali białości CIE. Format A4","karton/5 ryz po 500 arkuszy",null,null,null,null,"Wartość łączna oferty netto",{"$f":"SUM(K55:K61)","v":0}]
[null,2,"PAPIER A4 80G, BIAŁOŚĆ 146 CIE","Papier uniwersalny 80 g/m² klasy C+, Przeznaczony do drukarek laserowych,kopiarek oraz faksów. Białość: 146 wg skali białości CIE. Format A4","karton/5 ryz po 500 arkuszy",null,null,null,null,"Zaznacz zadanie/zadania na które składana jest oferta:"]
[null,3,"PAPIER UNIWERSALNY A5 80G BIAŁY, BIAŁOŚĆ 146 CIE","Papier uniwersalny 80 g/m² klasy C+. Przeznaczony do drukarek laserowych, kopiarek oraz faksów. Białość: 146 wg skali białości CIE. Format A5","ryza/500 arkuszy",null,null,null,null,null,{"$f":"IF(V55=TRUE,'Załącznik 2-F.O. dla Zadania 1'!D19,0)","v":0},null,null,null,null,null,null,null,null,null,null,false]
[null,4,"PAPIER A3 80G, BIAŁOŚĆ 146 CIE","Papier uniwersalny 80 g/m² klasy C+. Przeznaczony do drukarek laserowych, kopiarek oraz faksów. Białość: 146 wg skali białości CIE. Format A3","ryza/500 arkuszy",null,null,null,null,null,{"$f":"IF(V56=TRUE,'Załącznik 3-F.O. dla Zadania 2'!D19,0)","v":0},null,null,null,null,null,null,null,null,null,null,false]
[null,5,"PAPIER SATYNOWY A4 160G BIAŁY, BIAŁOŚC 168 CIE","Satynowany,biały papier przeznaczony do pełnokolorowych wydruków, nadaje się do maszyn cyfrowych,prezentacji, broszur, raportów oraz materiałów informacyjnych. Białość: 168 wg skali białości CIE. Gramatura 160 g//m². Format A4","ryza/250 arkuszy",null,null,null,null,null,{"$f":"IF(V57=TRUE,'Załącznik 4-F.O. dla Zadania 3'!D19,0)","v":0},null,null,null,null,null,null,null,null,null,null,false]
[null,6,"PAPIER DO DRUKAREK IGŁOWYCH  240MM 1+1 O/K","Papier do drukarek igłowych, wielowarstwowy o gramaturze 53-57 g/m², wytwarzany z papieru samokopiującego, Liczba warstw 1+1. Biały oryginał i różowa kopia, posiada nadruk oryginał/kopia. Format: długość 12''= 305 mm, szerokość 240 mm","karton/900 składek",null,null,null,null,null,{"$f":"IF(V58=TRUE,'Załącznik 5-F.O. dla Zadania 4'!D19,0)","v":0},null,null,null,null,null,null,null,null,null,null,false]
[null,7,"PAPIER DO DRUKAREK IGŁOWYCH 240MM 1+2 O/K","Papier do drukarek igłowych, wielowarstwowy o gramaturze 53-57 g/m²,Liczba warstw 1+2. Biały oryginał, żółta i różowa kopia, posiada nadruk oryginał/kopia. Format: długość 12''= 305 mm, szerokość 240 mm","karton/600 składek",null,null,null,null,null,{"$f":"IF(V59=TRUE,'Załącznik 6-F.O. dla Zadania 5'!D19,0)","v":0},null,null,null,null,null,null,null,null,null,null,false]
[null,8,"PAPIER DO DRUKAREK IGŁOWYCH 240MM 1+3 O/K","Papier do drukarek igłowych,  wielowarstwowy o gramaturze 53-57 g/m², wytwarzany z papieru samokopiującego.Liczba warstw 1+3. Biały oryginał, żółta, zielona i różowa kopia, posiada nadruk oryginał/kopia. Format: długość 12''= 305 mm, szerokość 240 mm","karton/450 składek",null,null,null,null,null,{"$f":"IF(V60=TRUE,'Załącznik 7-F.O. dla Zadania 6'!D19,0)","v":0},null,null,null,null,null,null,null,null,null,null,false]
[null,9,"PAPIER DO DRUKAREK IGŁOWYCH 240MM 1+4","Papier do drukarek igłowych,  wielowarstwowy o gramaturze 53-57 g/m², wytwarzany z papieru samokopiującego.Kolory kopii:1+4: żółta, zielona, żółta, różowa. Długość: 12'' = 305mm; Szerokość: 240(mm). Liczba warstw 1+4","karton/350 składek",null,null,null,null,null,{"$f":"IF(V61=TRUE,'Załącznik 8-F.O. dla Zadania 7'!D19,0)","v":0},null,null,null,null,null,null,null,null,null,null,false]
[null,10,"PAPIER DO PLOTERÓW 297MMX50M 90G","Uniwersalny papier do ploterów atramentowych. Biały, niepowlekany. Przeznaczony do wydruków monochromatycznych i kolorowych. Długość: 50 m. Średnica tulejki: 50 mm","opakowanie/ 2 rolki"]
[null,11,"PAPIER DO PLOTERÓW 420MMX50M 80G","Uniwersalny papier do ploterów atramentowych. Biały, niepowlekany. Przeznaczony do wydruków monochromatycznych i kolorowych. Gramatura 80 g/m². Szerokość 420 mm. Długość 50 m. Średnica gilzy: 50 mm","opakowanie/ 2 rolki"]
[null,12,"PAPIER DO PLOTERÓW 594MMX50M 80G","Uniwersalny papier do ploterów atramentowych. Biały, niepowlekany. Przeznaczony do wydruków monochromatycznych i kolorowych. Gramatura 80 g/m². Szerokość 594 mm. Długość 50 m. Średnica gilzy: 50 mm","1 rolka"]
[null,13,"PAPIER DO PLOTERÓW 610MMX50M 80G","Uniwersalny papier do ploterów atramentowych. Biały, niepowlekany. Przeznaczony do wydruków monochromatycznych i kolorowych. Gramatura 80 g/m². Szerokość 610 mm. Długość 50 m.Średnica gilzy: 50 mm","1 rolka"]
[null,14,"PAPIER DO PLOTERÓW 841MMX50M 80G","Uniwersalny papier do ploterów atramentowych. Biały, niepowlekany. Przeznaczony do wydruków monochromatycznych i kolorowych. Gramatura 80 g/m². Szerokość 841 mm. Długość 50 m. Średnica gilzy: 50 mm","1 rolka"]
[null,15,"PAPIER DO PLOTERÓW 914MMX50M 80G","Uniwersalny papier do ploterów atramentowych. Biały, niepowlekany. Przeznaczony do wydruków monochromatycznych i kolorowych. Gramatura 80 g/m². Szerokość 914 mm. Długość 50 m. Średnica gilzy: 50 mm","1 rolka"]
[null,16,"ROLKA PAPIEROWA 76MMX25M","Rolka papierowa (offsetowa) Gwarancja: 5 lat na zdolność kopiowania papieru i 25 lat na trwałość kopii. Wymiary: 76 mm x dl. 25m","opakowanie/10 sztuk"]
[null,17,"PELIKAN KALKA OŁÓWKOWA NIEBIESKA A4","Kalka przebitkowa, maszynowa i do pisania odręcznego. Samoregenerująca się. Format A4. Kolor niebieski","opakowanie/10 arkuszy"]
[null,18,"PAPIER FOTOGRAFICZNY,  A4,  180 g","Szybkoschnący papier fotograficzny do wydruku profesjonalnej jakości fotografii. Gładkie, lśniące wykończenie zapewnia wyraźne zdjęcia o żywych kolorach. Format A4, 180 g","ryza/50 arkuszy"]
[null,19,"PAPIER FOTOGRAFICZNY, A4, 200G, ","Szybkoschnący papier fotograficzny do wydruku profesjonalnej jakości fotografii. Gładkie, lśniące wykończenie zapewnia wyraźne zdjęcia o żywych kolorach. Format A4, 200g","opakowanie/25 arkuszy"]
[null,20,"PAPIER A4 160G, BIAŁOŚĆ 169 CIE","Papier przeznaczony do dwustronnych wydruków laserowych i atramentowych. Zapobiega przesiąkaniu druku. Białość: 169 wg skali białości CIE\n160 g/m². Format A4","ryza/250 arkuszy"]
[null,21,"OKŁADKI DO DYPLOMÓW GRANAT, ROZMIAR 220 X 310 MM","Okładki do certyfikatów, dyplomów, listów gratulacyjnych. Twarda oprawa o fakturze skóry. Posiadają ozdobny złoty sznureczek. Rozmiar okładki: 220 x 310 mm. Kolor granatowy","opakowanie/10 sztuk"]
[null,22,"PAPIER INTENSYWNY NIEBIESKI A4, 80 g","Papier uniwersalny 80 g/m2, Przeznaczony do kopiarek, drukarek laserowych i atramentowych. Kolor intensywny niebieski. Format A4","ryza/500 arkuszy"]
[null,23,"PAPIER INTENSYWNY ZIELONY A4, 80 g","Papier uniwersalny 80 g/m2, Przeznaczony do kopiarek, drukarek laserowych i atramentowych. Kolor intensywny zielony. Format A4","ryza/500 arkuszy"]
[null,24,"PAPIER INTENSYWNY ŻÓŁTY, A4, 80 g","Papier uniwersalny 80 g/m2, Przeznaczony do kopiarek, drukarek laserowych i atramentowych. Kolor intensywny żółty. Format A4","ryza/500 arkuszy"]
[null,25,"PAPIER INTENSYWNY CZERWONY A4, 80g","Papier uniwersalny 80 g/m2, Przeznaczony do kopiarek, drukarek laserowych i atramentowych. Kolor intensywny czerwony. Format A4","ryza/500 arkuszy"]
[null,26,"PAPIER MIX KOLORÓW A4, 80 g","Papier uniwersalny 80 g/m2, Przeznaczony do kopiarek, drukarek laserowych i atramentowych. Mix kolorów. Format A4","ryza/500 arkuszy"]
[null,27,"PAPIER A4 100G, BIAŁOŚĆ 168 CIE","Papier uniwersalny 100 g/m2 klasy A, Przeznaczony do kopiarek, drukarek laserowych i atramentowych oraz do wydruków kolorowych, Białość: 168 wg skali białości CIE. Format A4","ryza/ 250 arkuszy"]
[null,28,"PAPIER DO DRUKAREK WIELKOFORMATOWYCH,  ROLKA  A1 594/175, 80 g, gilza 76","Papier standard, biały. Przeznaczony do wydruków monochromatycznych . Gramatura 80 g/m². Szerokość 594 mm. Długość 175 m. Średnica gilzy: 76 mm. Format A1 rolka","rolka"]
[null,29,"Papier ozdobny – biały 250 g/m3   20 arkuszy","papier wizytówkowy/ozdobny - np.. R20 TOP STYLE TRAD PAPIER A4 250G BIAŁY lub podobny","opakowanie 20 arkuszy"]
[null,30,"Papier ozdobny - - kość słoniowa 250 g/m3 20 arkuszy","papier wizytówkowy/ozdobny np..R20 TOP STYLE TRAD PAP A4 250G KOŚĆ SŁONIOWA lub podobny","opakowanie 20 arkuszy"]
[]
[]
[]
[]
[]
[null,null,"miejscowość i data","Pieczęć imienna i podpis przedstawiciela(i) Wykonawcy"]

{"sheet":"zadanie 1-4","index":2,"n_rows":35,"n_cols":4,"rows_kept":35,"cut":false,"hidden":true,"merged":[[33,2,33,3],[34,2,34,3]]}
[1,"PAPIER A4 80G, BIAŁOŚĆ 166 CIE","Papier uniwersalny 80 g/m2 klasy A, Przeznaczony do kopiarek, drukarek laserowych i atramentowych oraz do wydruków kolorowych, Białość: 166 wg skali białości CIE. Format A4","karton/5 ryz po 500 arkuszy"]
[2,"PAPIER A4 80G, BIAŁOŚĆ 146 CIE","Papier uniwersalny 80 g/m² klasy C+, Przeznaczony do drukarek laserowych,kopiarek oraz faksów. Białość: 146 wg skali białości CIE. Format A4","karton/5 ryz po 500 arkuszy"]
[3,"PAPIER UNIWERSALNY A5 80G BIAŁY, BIAŁOŚĆ 146 CIE","Papier uniwersalny 80 g/m² klasy C+. Przeznaczony do drukarek laserowych, kopiarek oraz faksów. Białość: 146 wg skali białości CIE. Format A5","ryza/500 arkuszy"]
[4,"PAPIER A3 80G, BIAŁOŚĆ 146 CIE","Papier uniwersalny 80 g/m² klasy C+. Przeznaczony do drukarek laserowych, kopiarek oraz faksów. Białość: 146 wg skali białości CIE. Format A3","ryza/500 arkuszy"]
[5,"PAPIER SATYNOWY A4 160G BIAŁY, BIAŁOŚC 168 CIE","Satynowany,biały papier przeznaczony do pełnokolorowych wydruków, nadaje się do maszyn cyfrowych,prezentacji, broszur, raportów oraz materiałów informacyjnych. Białość: 168 wg skali białości CIE. Gramatura 160 g//m². Format A4","ryza/250 arkuszy"]
[6,"PAPIER DO DRUKAREK IGŁOWYCH  240MM 1+1 O/K","Papier do drukarek igłowych, wielowarstwowy o gramaturze 53-57 g/m², wytwarzany z papieru samokopiującego, Liczba warstw 1+1. Biały oryginał i różowa kopia, posiada nadruk oryginał/kopia. Format: długość 12''= 305 mm, szerokość 240 mm","karton/900 składek"]
[7,"PAPIER DO DRUKAREK IGŁOWYCH 240MM 1+2 O/K","Papier do drukarek igłowych, wielowarstwowy o gramaturze 53-57 g/m²,Liczba warstw 1+2. Biały oryginał, żółta i różowa kopia, posiada nadruk oryginał/kopia. Format: długość 12''= 305 mm, szerokość 240 mm","karton/600 składek"]
[8,"PAPIER DO DRUKAREK IGŁOWYCH 240MM 1+3 O/K","Papier do drukarek igłowych,  wielowarstwowy o gramaturze 53-57 g/m², wytwarzany z papieru samokopiującego.Liczba warstw 1+3. Biały oryginał, żółta, zielona i różowa kopia, posiada nadruk oryginał/kopia. Format: długość 12''= 305 mm, szerokość 240 mm","karton/450 składek"]
[9,"PAPIER DO DRUKAREK IGŁOWYCH 240MM 1+4","Papier do drukarek igłowych,  wielowarstwowy o gramaturze 53-57 g/m², wytwarzany z papieru samokopiującego.Kolory kopii:1+4: żółta, zielona, żółta, różowa. Długość: 12'' = 305mm; Szerokość: 240(mm). Liczba warstw 1+4","karton/350 składek"]
[10,"PAPIER DO PLOTERÓW 297MMX50M 90G","Uniwersalny papier do ploterów atramentowych. Biały, niepowlekany. Przeznaczony do wydruków monochromatycznych i kolorowych. Długość: 50 m. Średnica tulejki: 50 mm","opakowanie/ 2 rolki"]
[11,"PAPIER DO PLOTERÓW 420MMX50M 80G","Uniwersalny papier do ploterów atramentowych. Biały, niepowlekany. Przeznaczony do wydruków monochromatycznych i kolorowych. Gramatura 80 g/m². Szerokość 420 mm. Długość 50 m. Średnica gilzy: 50 mm","opakowanie/ 2 rolki"]
[12,"PAPIER DO PLOTERÓW 594MMX50M 80G","Uniwersalny papier do ploterów atramentowych. Biały, niepowlekany. Przeznaczony do wydruków monochromatycznych i kolorowych. Gramatura 80 g/m². Szerokość 594 mm. Długość 50 m. Średnica gilzy: 50 mm","1 rolka"]
[13,"PAPIER DO PLOTERÓW 610MMX50M 80G","Uniwersalny papier do ploterów atramentowych. Biały, niepowlekany. Przeznaczony do wydruków monochromatycznych i kolorowych. Gramatura 80 g/m². Szerokość 610 mm. Długość 50 m.Średnica gilzy: 50 mm","1 rolka"]
[14,"PAPIER DO PLOTERÓW 841MMX50M 80G","Uniwersalny papier do ploterów atramentowych. Biały, niepowlekany. Przeznaczony do wydruków monochromatycznych i kolorowych. Gramatura 80 g/m². Szerokość 841 mm. Długość 50 m. Średnica gilzy: 50 mm","1 rolka"]
[15,"PAPIER DO PLOTERÓW 914MMX50M 80G","Uniwersalny papier do ploterów atramentowych. Biały, niepowlekany. Przeznaczony do wydruków monochromatycznych i kolorowych. Gramatura 80 g/m². Szerokość 914 mm. Długość 50 m. Średnica gilzy: 50 mm","1 rolka"]
[16,"ROLKA PAPIEROWA 76MMX25M","Rolka papierowa (offsetowa) Gwarancja: 5 lat na zdolność kopiowania papieru i 25 lat na trwałość kopii. Wymiary: 76 mm x dl. 25m","opakowanie/10 sztuk"]
[17,"PELIKAN KALKA OŁÓWKOWA NIEBIESKA A4","Kalka przebitkowa, maszynowa i do pisania odręcznego. Samoregenerująca się. Format A4. Kolor niebieski","opakowanie/10 arkuszy"]
[18,"PAPIER FOTOGRAFICZNY,  A4,  180 g","Szybkoschnący papier fotograficzny do wydruku profesjonalnej jakości fotografii. Gładkie, lśniące wykończenie zapewnia wyraźne zdjęcia o żywych kolorach. Format A4, 180 g","ryza/50 arkuszy"]
[19,"PAPIER FOTOGRAFICZNY, A4, 200G, ","Szybkoschnący papier fotograficzny do wydruku profesjonalnej jakości fotografii. Gładkie, lśniące wykończenie zapewnia wyraźne zdjęcia o żywych kolorach. Format A4, 200g","opakowanie/25 arkuszy"]
[20,"PAPIER A4 160G, BIAŁOŚĆ 169 CIE","Papier przeznaczony do dwustronnych wydruków laserowych i atramentowych. Zapobiega przesiąkaniu druku. Białość: 169 wg skali białości CIE\n160 g/m². Format A4","ryza/250 arkuszy"]
[21,"OKŁADKI DO DYPLOMÓW GRANAT, ROZMIAR 220 X 310 MM","Okładki do certyfikatów, dyplomów, listów gratulacyjnych. Twarda oprawa o fakturze skóry. Posiadają ozdobny złoty sznureczek. Rozmiar okładki: 220 x 310 mm. Kolor granatowy","opakowanie/10 sztuk"]
[22,"PAPIER INTENSYWNY NIEBIESKI A4, 80 g","Papier uniwersalny 80 g/m2, Przeznaczony do kopiarek, drukarek laserowych i atramentowych. Kolor intensywny niebieski. Format A4","ryza/500 arkuszy"]
[23,"PAPIER INTENSYWNY ZIELONY A4, 80 g","Papier uniwersalny 80 g/m2, Przeznaczony do kopiarek, drukarek laserowych i atramentowych. Kolor intensywny zielony. Format A4","ryza/500 arkuszy"]
[24,"PAPIER INTENSYWNY ŻÓŁTY, A4, 80 g","Papier uniwersalny 80 g/m2, Przeznaczony do kopiarek, drukarek laserowych i atramentowych. Kolor intensywny żółty. Format A4","ryza/500 arkuszy"]
[25,"PAPIER INTENSYWNY CZERWONY A4, 80g","Papier uniwersalny 80 g/m2, Przeznaczony do kopiarek, drukarek laserowych i atramentowych. Kolor intensywny czerwony. Format A4","ryza/500 arkuszy"]
[26,"PAPIER MIX KOLORÓW A4, 80 g","Papier uniwersalny 80 g/m2, Przeznaczony do kopiarek, drukarek laserowych i atramentowych. Mix kolorów. Format A4","ryza/500 arkuszy"]
[27,"PAPIER A4 100G, BIAŁOŚĆ 168 CIE","Papier uniwersalny 100 g/m2 klasy A, Przeznaczony do kopiarek, drukarek laserowych i atramentowych oraz do wydruków kolorowych, Białość: 168 wg skali białości CIE. Format A4","ryza/ 250 arkuszy"]
[28,"PAPIER DO DRUKAREK WIELKOFORMATOWYCH,  ROLKA  A1 594/175, 80 g, gilza 76","Papier standard, biały. Przeznaczony do wydruków monochromatycznych . Gramatura 80 g/m². Szerokość 594 mm. Długość 175 m. Średnica gilzy: 76 mm. Format A1 rolka","rolka"]
[29,"Papier ozdobny – biały 250 g/m3   20 arkuszy","papier wizytówkowy/ozdobny - np.. R20 TOP STYLE TRAD PAPIER A4 250G BIAŁY lub podobny","opakowanie 20 arkuszy"]
[30,"Papier ozdobny - - kość słoniowa 250 g/m3 20 arkuszy","papier wizytówkowy/ozdobny np..R20 TOP STYLE TRAD PAP A4 250G KOŚĆ SŁONIOWA lub podobny","opakowanie 20 arkuszy"]
[]
[]
[]
[]
[null,"miejscowość i data","Pieczęć imienna i podpis przedstawiciela(i) Wykonawcy"]

{"sheet":"Zadanie55","index":3,"n_rows":12,"n_cols":4,"rows_kept":12,"cut":false,"hidden":true,"merged":[]}
[1,"PAPIER A4 80G, BIAŁOŚĆ 166 CIE","Papier uniwersalny 80 g/m2 klasy A, Przeznaczony do kopiarek, drukarek laserowych i atramentowych oraz do wydruków kolorowych, Białość: 166 wg skali białości CIE. Format A4","karton/5 ryz po 500 arkuszy"]
[2,"PAPIER A4 80G, BIAŁOŚĆ 146 CIE","Papier uniwersalny 80 g/m² klasy C+, Przeznaczony do drukarek laserowych,kopiarek oraz faksów. Białość: 146 wg skali białości CIE. Format A4","karton/5 ryz po 500 arkuszy"]
[3,"PAPIER UNIWERSALNY A5 80G BIAŁY, BIAŁOŚĆ 146 CIE","Papier uniwersalny 80 g/m² klasy C+. Przeznaczony do drukarek laserowych, kopiarek oraz faksów. Białość: 146 wg skali białości CIE. Format A5","ryza/500 arkuszy"]
[4,"PAPIER A3 80G, BIAŁOŚĆ 146 CIE","Papier uniwersalny 80 g/m² klasy C+. Przeznaczony do drukarek laserowych, kopiarek oraz faksów. Białość: 146 wg skali białości CIE. Format A3","ryza/500 arkuszy"]
[5,"PAPIER SATYNOWY A4 160G BIAŁY, BIAŁOŚC 168 CIE","Satynowany,biały papier przeznaczony do pełnokolorowych wydruków, nadaje się do maszyn cyfrowych,prezentacji, broszur, raportów oraz materiałów informacyjnych. Białość: 168 wg skali białości CIE. Gramatura 160 g//m². Format A4","ryza/250 arkuszy"]
[6,"PAPIER DO PLOTERÓW 914MMX50M 80G","Uniwersalny papier do ploterów atramentowych. Biały, niepowlekany. Przeznaczony do wydruków monochromatycznych i kolorowych. Gramatura 80 g/m². Szerokość 914 mm. Długość 50 m. Średnica gilzy: 50 mm","1 rolka"]
[7,"PELIKAN KALKA OŁÓWKOWA NIEBIESKA A4","Kalka przebitkowa, maszynowa i do pisania odręcznego. Samoregenerująca się. Format A4. Kolor niebieski","opakowanie/10 arkuszy"]
[8,"PAPIER A4 160G, BIAŁOŚĆ 169 CIE","Papier przeznaczony do dwustronnych wydruków laserowych i atramentowych. Zapobiega przesiąkaniu druku. Białość: 169 wg skali białości CIE\n160 g/m². Format A4","ryza/250 arkuszy"]
[9,"PAPIER MIX KOLORÓW A4, 80 g","Papier uniwersalny 80 g/m2, Przeznaczony do kopiarek, drukarek laserowych i atramentowych. Mix kolorów. Format A4","ryza/500 arkuszy"]
[10,"PAPIER DO DRUKAREK WIELKOFORMATOWYCH,  ROLKA  A1 594/175, 80 g, gilza 76","Papier standard, biały. Przeznaczony do wydruków monochromatycznych . Gramatura 80 g/m². Szerokość 594 mm. Długość 175 m. Średnica gilzy: 76 mm. Format A1 rolka","rolka"]
[11,"Papier ozdobny – biały 250 g/m3   20 arkuszy","papier wizytówkowy/ozdobny - np.. R20 TOP STYLE TRAD PAPIER A4 250G BIAŁY lub podobny","opakowanie 20 arkuszy"]
[12,"Papier ozdobny - - kość słoniowa 250 g/m3 20 arkuszy","papier wizytówkowy/ozdobny np..R20 TOP STYLE TRAD PAP A4 250G KOŚĆ SŁONIOWA lub podobny","opakowanie 20 arkuszy"]

{"sheet":"Zadanie66","index":4,"n_rows":21,"n_cols":4,"rows_kept":21,"cut":false,"hidden":true,"merged":[]}
[1,"PAPIER A4 80G, BIAŁOŚĆ 166 CIE","Papier uniwersalny 80 g/m2 klasy A, Przeznaczony do kopiarek, drukarek laserowych i atramentowych oraz do wydruków kolorowych, Białość: 166 wg skali białości CIE. Format A4","karton/5 ryz po 500 arkuszy"]
[2,"PAPIER A4 80G, BIAŁOŚĆ 146 CIE","Papier uniwersalny 80 g/m² klasy C+, Przeznaczony do drukarek laserowych,kopiarek oraz faksów. Białość: 146 wg skali białości CIE. Format A4","karton/5 ryz po 500 arkuszy"]
[3,"PAPIER UNIWERSALNY A5 80G BIAŁY, BIAŁOŚĆ 146 CIE","Papier uniwersalny 80 g/m² klasy C+. Przeznaczony do drukarek laserowych, kopiarek oraz faksów. Białość: 146 wg skali białości CIE. Format A5","ryza/500 arkuszy"]
[4,"PAPIER A3 80G, BIAŁOŚĆ 146 CIE","Papier uniwersalny 80 g/m² klasy C+. Przeznaczony do drukarek laserowych, kopiarek oraz faksów. Białość: 146 wg skali białości CIE. Format A3","ryza/500 arkuszy"]
[5,"PAPIER SATYNOWY A4 160G BIAŁY, BIAŁOŚC 168 CIE","Satynowany,biały papier przeznaczony do pełnokolorowych wydruków, nadaje się do maszyn cyfrowych,prezentacji, broszur, raportów oraz materiałów informacyjnych. Białość: 168 wg skali białości CIE. Gramatura 160 g//m². Format A4","ryza/250 arkuszy"]
[6,"PAPIER DO DRUKAREK IGŁOWYCH 240MM 1+3 O/K","Papier do drukarek igłowych,  wielowarstwowy o gramaturze 53-57 g/m², wytwarzany z papieru samokopiującego.Liczba warstw 1+3. Biały oryginał, żółta, zielona i różowa kopia, posiada nadruk oryginał/kopia. Format: długość 12''= 305 mm, szerokość 240 mm","karton/450 składek"]
[7,"PAPIER DO DRUKAREK IGŁOWYCH 240MM 1+4","Papier do drukarek igłowych,  wielowarstwowy o gramaturze 53-57 g/m², wytwarzany z papieru samokopiującego.Kolory kopii:1+4: żółta, zielona, żółta, różowa. Długość: 12'' = 305mm; Szerokość: 240(mm). Liczba warstw 1+4","karton/350 składek"]
[8,"ROLKA PAPIEROWA 76MMX25M","Rolka papierowa (offsetowa) Gwarancja: 5 lat na zdolność kopiowania papieru i 25 lat na trwałość kopii. Wymiary: 76 mm x dl. 25m","opakowanie/10 sztuk"]
[9,"PELIKAN KALKA OŁÓWKOWA NIEBIESKA A4","Kalka przebitkowa, maszynowa i do pisania odręcznego. Samoregenerująca się. Format A4. Kolor niebieski","opakowanie/10 arkuszy"]
[10,"PAPIER FOTOGRAFICZNY,  A4,  180 g","Szybkoschnący papier fotograficzny do wydruku profesjonalnej jakości fotografii. Gładkie, lśniące wykończenie zapewnia wyraźne zdjęcia o żywych kolorach. Format A4, 180 g","ryza/50 arkuszy"]
[11,"PAPIER FOTOGRAFICZNY, A4, 200G, ","Szybkoschnący papier fotograficzny do wydruku profesjonalnej jakości fotografii. Gładkie, lśniące wykończenie zapewnia wyraźne zdjęcia o żywych kolorach. Format A4, 200g","opakowanie/25 arkuszy"]
[12,"PAPIER A4 160G, BIAŁOŚĆ 169 CIE","Papier przeznaczony do dwustronnych wydruków laserowych i atramentowych. Zapobiega przesiąkaniu druku. Białość: 169 wg skali białości CIE\n160 g/m². Format A4","ryza/250 arkuszy"]
[13,"OKŁADKI DO DYPLOMÓW GRANAT, ROZMIAR 220 X 310 MM","Okładki do certyfikatów, dyplomów, listów gratulacyjnych. Twarda oprawa o fakturze skóry. Posiadają ozdobny złoty sznureczek. Rozmiar okładki: 220 x 310 mm. Kolor granatowy","opakowanie/10 sztuk"]
[14,"PAPIER INTENSYWNY NIEBIESKI A4, 80 g","Papier uniwersalny 80 g/m2, Przeznaczony do kopiarek, drukarek laserowych i atramentowych. Kolor intensywny niebieski. Format A4","ryza/500 arkuszy"]
[15,"PAPIER INTENSYWNY ZIELONY A4, 80 g","Papier uniwersalny 80 g/m2, Przeznaczony do kopiarek, drukarek laserowych i atramentowych. Kolor intensywny zielony. Format A4","ryza/500 arkuszy"]
[16,"PAPIER INTENSYWNY ŻÓŁTY, A4, 80 g","Papier uniwersalny 80 g/m2, Przeznaczony do kopiarek, drukarek laserowych i atramentowych. Kolor intensywny żółty. Format A4","ryza/500 arkuszy"]
[17,"PAPIER INTENSYWNY CZERWONY A4, 80g","Papier uniwersalny 80 g/m2, Przeznaczony do kopiarek, drukarek laserowych i atramentowych. Kolor intensywny czerwony. Format A4","ryza/500 arkuszy"]
[18,"PAPIER MIX KOLORÓW A4, 80 g","Papier uniwersalny 80 g/m2, Przeznaczony do kopiarek, drukarek laserowych i atramentowych. Mix kolorów. Format A4","ryza/500 arkuszy"]
[19,"PAPIER A4 100G, BIAŁOŚĆ 168 CIE","Papier uniwersalny 100 g/m2 klasy A, Przeznaczony do kopiarek, drukarek laserowych i atramentowych oraz do wydruków kolorowych, Białość: 168 wg skali białości CIE. Format A4","ryza/ 250 arkuszy"]
[20,"Papier ozdobny – biały 250 g/m3   20 arkuszy","papier wizytówkowy/ozdobny - np.. R20 TOP STYLE TRAD PAPIER A4 250G BIAŁY lub podobny","opakowanie 20 arkuszy"]
[21,"Papier ozdobny - - kość słoniowa 250 g/m3 20 arkuszy","papier wizytówkowy/ozdobny np..R20 TOP STYLE TRAD PAP A4 250G KOŚĆ SŁONIOWA lub podobny","opakowanie 20 arkuszy"]

{"sheet":"Zadanie77","index":5,"n_rows":13,"n_cols":4,"rows_kept":13,"cut":false,"hidden":true,"merged":[]}
[1,"PAPIER A4 80G, BIAŁOŚĆ 166 CIE","Papier uniwersalny 80 g/m2 klasy A, Przeznaczony do kopiarek, drukarek laserowych i atramentowych oraz do wydruków kolorowych, Białość: 166 wg skali białości CIE. Format A4","karton/5 ryz po 500 arkuszy"]
[2,"PAPIER A4 80G, BIAŁOŚĆ 146 CIE","Papier uniwersalny 80 g/m² klasy C+, Przeznaczony do drukarek laserowych,kopiarek oraz faksów. Białość: 146 wg skali białości CIE. Format A4","karton/5 ryz po 500 arkuszy"]
[3,"PAPIER UNIWERSALNY A5 80G BIAŁY, BIAŁOŚĆ 146 CIE","Papier uniwersalny 80 g/m² klasy C+. Przeznaczony do drukarek laserowych, kopiarek oraz faksów. Białość: 146 wg skali białości CIE. Format A5","ryza/500 arkuszy"]
[4,"PAPIER A3 80G, BIAŁOŚĆ 146 CIE","Papier uniwersalny 80 g/m² klasy C+. Przeznaczony do drukarek laserowych, kopiarek oraz faksów. Białość: 146 wg skali białości CIE. Format A3","ryza/500 arkuszy"]
[5,"PAPIER SATYNOWY A4 160G BIAŁY, BIAŁOŚC 168 CIE","Satynowany,biały papier przeznaczony do pełnokolorowych wydruków, nadaje się do maszyn cyfrowych,prezentacji, broszur, raportów oraz materiałów informacyjnych. Białość: 168 wg skali białości CIE. Gramatura 160 g//m². Format A4","ryza/250 arkuszy"]
[6,"PAPIER A4 160G, BIAŁOŚĆ 169 CIE","Papier przeznaczony do dwustronnych wydruków laserowych i atramentowych. Zapobiega przesiąkaniu druku. Białość: 169 wg skali białości CIE\n160 g/m². Format A4","ryza/250 arkuszy"]
[7,"PAPIER INTENSYWNY NIEBIESKI A4, 80 g","Papier uniwersalny 80 g/m2, Przeznaczony do kopiarek, drukarek laserowych i atramentowych. Kolor intensywny niebieski. Format A4","ryza/500 arkuszy"]
[8,"PAPIER INTENSYWNY ZIELONY A4, 80 g","Papier uniwersalny 80 g/m2, Przeznaczony do kopiarek, drukarek laserowych i atramentowych. Kolor intensywny zielony. Format A4","ryza/500 arkuszy"]
[9,"PAPIER INTENSYWNY ŻÓŁTY, A4, 80 g","Papier uniwersalny 80 g/m2, Przeznaczony do kopiarek, drukarek laserowych i atramentowych. Kolor intensywny żółty. Format A4","ryza/500 arkuszy"]
[10,"PAPIER INTENSYWNY CZERWONY A4, 80g","Papier uniwersalny 80 g/m2, Przeznaczony do kopiarek, drukarek laserowych i atramentowych. Kolor intensywny czerwony. Format A4","ryza/500 arkuszy"]
[11,"PAPIER MIX KOLORÓW A4, 80 g","Papier uniwersalny 80 g/m2, Przeznaczony do kopiarek, drukarek laserowych i atramentowych. Mix kolorów. Format A4","ryza/500 arkuszy"]
[12,"PAPIER A4 100G, BIAŁOŚĆ 168 CIE","Papier uniwersalny 100 g/m2 klasy A, Przeznaczony do kopiarek, drukarek laserowych i atramentowych oraz do wydruków kolorowych, Białość: 168 wg skali białości CIE. Format A4","ryza/ 250 arkuszy"]
[13,"Papier ozdobny – biały 250 g/m3   20 arkuszy","papier wizytówkowy/ozdobny - np.. R20 TOP STYLE TRAD PAPIER A4 250G BIAŁY lub podobny","opakowanie 20 arkuszy"]

{"sheet":"Załącznik 2-F.O. dla Zadania 1","index":6,"n_rows":56,"n_cols":24,"rows_kept":56,"cut":false,"hidden":false,"merged":[[16,1,16,7],[18,1,18,2],[55,5,55,7],[2,1,2,7],[4,1,4,7],[8,1,8,7],[11,1,11,7],[14,1,14,7],[18,3,18,5],[54,2,54,3],[54,4,54,7]]}
[null,"Oznaczenie sprawy:  1400/DW00/ZU/KZ/2021/0000061751"]
[]
[null,"ZAŁĄCZNIK NR 2 - FORMULARZ OFERTY DLA ZADANIA 1 - Dostawa papieru do wydruku – Poznań + woj. Wielkopolskie."]
[]
[]
[null,null,"(pieczęć wykonawcy)"]
[]
[null,"Ja, niżej podpisany (My niżej podpisani):"]
[]
[]
[null,"działając w imieniu i na rzecz:"]
[]
[]
[null,"Składam(y) ofertę na wykonanie zamówienia, którego przedmiotem jest:"]
[null,"Dostawa papieru do wydruku dla spółek GK ENEA"]
[]
[null,"Zadanie 1:  Dostawa papieru do wydruku – Poznań + woj. Wielkopolskie"]
[]
[null,"ŁĄCZNA CENA NETTO OFERTY DLA ZADANIA 1:",null,{"$f":"SUM(H22:H512)","v":0}]
[]
[null,"LP","Nazwa produktu","Opis szczegółowy","Jednostka ","cena jednostkowa netto","Ilość","Wartość","ENEA Centrum Sp. z o.o. - Szacowana ilość","ŁĄCZNA CENA NETTO DLA ENEA Centrum Sp. z o.o. ","ENEA S.A. - Szacowana ilość","ŁĄCZNA CENA NETTO DLA ENEA S.A. ","ENEA Operator Sp. z o.o. - Szacowana ilość","ŁĄCZNA CENA NETTO DLA ENEA Operator Sp. z o.o. ","ENEA Trading Sp. z o.o. - Szacowana ilość","ŁĄCZNA CENA NETTO DLA ENEA Trading Sp. z o.o. ","ENEA Serwis Sp. z o.o. - Szacowana ilość","ŁĄCZNA CENA NETTO DLA ENEA Serwis Sp. z o.o. ","ENEA Pomiary Sp. z o.o. - Szacowana ilość","ŁĄCZNA CENA NETTO DLA ENEA Pomiary Sp. z o.o. ","ENEA Logistyka Sp. z o.o. - Szacowana ilość","ŁĄCZNA CENA NETTO DLA ENEA Logistyka Sp. z o.o. ","ENEA Oświetlenie Sp. z o.o. - Szacowana ilość","ŁĄCZNA CENA NETTO DLA ENEA Oświetlenie Sp. z o.o. "]
[null,1,"PAPIER A4 80G, BIAŁOŚĆ 166 CIE","Papier uniwersalny 80 g/m2 klasy A, Przeznaczony do kopiarek, drukarek laserowych i atramentowych oraz do wydruków kolorowych, Białość: 166 wg skali białości CIE. Format A4","karton/5 ryz po 500 arkuszy",{"$f":"IF('Załącznik 1 - Formularz Oferty'!$V$55=TRUE,(VLOOKUP(C22,'Załącznik 1 - Formularz Oferty'!$C$53:$G$83,5,0)),0)","v":0},{"$f":"I22+K22+M22+O22+Q22+S22+U22+W22","v":1891},{"$f":"G22*F22","v":0},1330,{"$f":"I22*F22","v":0},null,null,524,{"$f":"M22*F22","v":0},10,{"$f":"O22*F22","v":0},6,{"$f":"Q22*F22","v":0},10,{"$f":"S22*F22","v":0},1,{"$f":"U22*F22","v":0},10,{"$f":"W22*F22","v":0}]
[null,2,"PAPIER A4 80G, BIAŁOŚĆ 146 CIE","Papier uniwersalny 80 g/m² klasy C+, Przeznaczony do drukarek laserowych,kopiarek oraz faksów. Białość: 146 wg skali białości CIE. Format A4","karton/5 ryz po 500 arkuszy",{"$f":"IF('Załącznik 1 - Formularz Oferty'!$V$55=TRUE,(VLOOKUP(C23,'Załącznik 1 - Formularz Oferty'!$C$53:$G$83,5,0)),0)","v":0},{"$f":"I23+K23+M23+O23+Q23+S23+U23+W23","v":2231},{"$f":"G23*F23","v":0},750,{"$f":"I23*F23","v":0},10,{"$f":"K23*F23","v":0},1173,{"$f":"M23*F23","v":0},20,{"$f":"O23*F23","v":0},6,{"$f":"Q23*F23","v":0},72,{"$f":"S23*F23","v":0},{"$f":"6+7+6+9+11+2+1+2+5+4+32+15","v":100},{"$f":"U23*F23","v":0},100,{"$f":"W23*F23","v":0}]
[null,3,"PAPIER UNIWERSALNY A5 80G BIAŁY, BIAŁOŚĆ 146 CIE","Papier uniwersalny 80 g/m² klasy C+. Przeznaczony do drukarek laserowych, kopiarek oraz faksów. Białość: 146 wg skali białości CIE. Format A5","ryza/500 arkuszy",{"$f":"IF('Załącznik 1 - Formularz Oferty'!$V$55=TRUE,(VLOOKUP(C24,'Załącznik 1 - Formularz Oferty'!$C$53:$G$83,5,0)),0)","v":0},60,0,1,0,null,null,31,0,20,0,6,0,2,0]
[null,4,"PAPIER A3 80G, BIAŁOŚĆ 146 CIE","Papier uniwersalny 80 g/m² klasy C+. Przeznaczony do drukarek laserowych, kopiarek oraz faksów. Białość: 146 wg skali białości CIE. Format A3","ryza/500 arkuszy",{"$f":"IF('Załącznik 1 - Formularz Oferty'!$V$55=TRUE,(VLOOKUP(C25,'Załącznik 1 - Formularz Oferty'!$C$53:$G$83,5,0)),0)","v":0},291,0,56,0,2,{"$f":"K25*F25","v":0},203,0,null,null,6,0,5,0,4,{"$f":"U25*F25","v":0},15,{"$f":"W25*F25","v":0}]
[null,5,"PAPIER SATYNOWY A4 160G BIAŁY, BIAŁOŚC 168 CIE","Satynowany,biały papier przeznaczony do pełnokolorowych wydruków, nadaje się do maszyn cyfrowych,prezentacji, broszur, raportów oraz materiałów informacyjnych. Białość: 168 wg skali białości CIE. Gramatura 160 g//m². Format A4","ryza/250 arkuszy",{"$f":"IF('Załącznik 1 - Formularz Oferty'!$V$55=TRUE,(VLOOKUP(C26,'Załącznik 1 - Formularz Oferty'!$C$53:$G$83,5,0)),0)","v":0},29,0,1,0,null,null,12,0,10,{"$f":"O26*F26","v":0},6,0]
[null,6,"PAPIER DO DRUKAREK IGŁOWYCH  240MM 1+1 O/K","Papier do drukarek igłowych, wielowarstwowy o gramaturze 53-57 g/m², wytwarzany z papieru samokopiującego, Liczba warstw 1+1. Biały oryginał i różowa kopia, posiada nadruk oryginał/kopia. Format: długość 12''= 305 mm, szerokość 240 mm","karton/900 składek",{"$f":"IF('Załącznik 1 - Formularz Oferty'!$V$55=TRUE,(VLOOKUP(C27,'Załącznik 1 - Formularz Oferty'!$C$53:$G$83,5,0)),0)","v":0},21,0,null,null,null,null,null,0,null,null,6,0,null,null,15,{"$f":"U27*F27","v":0}]
[null,7,"PAPIER DO DRUKAREK IGŁOWYCH 240MM 1+2 O/K","Papier do drukarek igłowych, wielowarstwowy o gramaturze 53-57 g/m²,Liczba warstw 1+2. Biały oryginał, żółta i różowa kopia, posiada nadruk oryginał/kopia. Format: długość 12''= 305 mm, szerokość 240 mm","karton/600 składek",{"$f":"IF('Załącznik 1 - Formularz Oferty'!$V$55=TRUE,(VLOOKUP(C28,'Załącznik 1 - Formularz Oferty'!$C$53:$G$83,5,0)),0)","v":0},85,0,null,null,null,null,null,0,null,null,5,0,null,null,80,0]
[null,8,"PAPIER DO DRUKAREK IGŁOWYCH 240MM 1+3 O/K","Papier do drukarek igłowych,  wielowarstwowy o gramaturze 53-57 g/m², wytwarzany z papieru samokopiującego.Liczba warstw 1+3. Biały oryginał, żółta, zielona i różowa kopia, posiada nadruk oryginał/kopia. Format: długość 12''= 305 mm, szerokość 240 mm","karton/450 składek",{"$f":"IF('Załącznik 1 - Formularz Oferty'!$V$55=TRUE,(VLOOKUP(C29,'Załącznik 1 - Formularz Oferty'!$C$53:$G$83,5,0)),0)","v":0},6,0,null,null,null,null,null,0,null,null,6,0]
[null,9,"PAPIER DO DRUKAREK IGŁOWYCH 240MM 1+4","Papier do drukarek igłowych,  wielowarstwowy o gramaturze 53-57 g/m², wytwarzany z papieru samokopiującego.Kolory kopii:1+4: żółta, zielona, żółta, różowa. Długość: 12'' = 305mm; Szerokość: 240(mm). Liczba warstw 1+4","karton/350 składek",{"$f":"IF('Załącznik 1 - Formularz Oferty'!$V$55=TRUE,(VLOOKUP(C30,'Załącznik 1 - Formularz Oferty'!$C$53:$G$83,5,0)),0)","v":0},6,0,null,null,null,null,null,0,null,null,6,0]
[null,10,"PAPIER DO PLOTERÓW 297MMX50M 90G","Uniwersalny papier do ploterów atramentowych. Biały, niepowlekany. Przeznaczony do wydruków monochromatycznych i kolorowych. Długość: 50 m. Średnica tulejki: 50 mm","opakowanie/ 2 rolki",{"$f":"IF('Załącznik 1 - Formularz Oferty'!$V$55=TRUE,(VLOOKUP(C31,'Załącznik 1 - Formularz Oferty'!$C$53:$G$83,5,0)),0)","v":0},22,0,null,null,null,null,1,0,null,null,6,0,null,null,null,null,15,{"$f":"W31*F31","v":0}]
[null,11,"PAPIER DO PLOTERÓW 420MMX50M 80G","Uniwersalny papier do ploterów atramentowych. Biały, niepowlekany. Przeznaczony do wydruków monochromatycznych i kolorowych. Gramatura 80 g/m². Szerokość 420 mm. Długość 50 m. Średnica gilzy: 50 mm","opakowanie/ 2 rolki",{"$f":"IF('Załącznik 1 - Formularz Oferty'!$V$55=TRUE,(VLOOKUP(C32,'Załącznik 1 - Formularz Oferty'!$C$53:$G$83,5,0)),0)","v":0},24,0,null,null,null,null,3,0,null,null,6,0,null,null,null,null,15,0]
[null,12,"PAPIER DO PLOTERÓW 594MMX50M 80G","Uniwersalny papier do ploterów atramentowych. Biały, niepowlekany. Przeznaczony do wydruków monochromatycznych i kolorowych. Gramatura 80 g/m². Szerokość 594 mm. Długość 50 m. Średnica gilzy: 50 mm","1 rolka",{"$f":"IF('Załącznik 1 - Formularz Oferty'!$V$55=TRUE,(VLOOKUP(C33,'Załącznik 1 - Formularz Oferty'!$C$53:$G$83,5,0)),0)","v":0},22,0,null,null,null,null,1,0,null,null,6,0,null,null,null,null,15,0]
[null,13,"PAPIER DO PLOTERÓW 610MMX50M 80G","Uniwersalny papier do ploterów atramentowych. Biały, niepowlekany. Przeznaczony do wydruków monochromatycznych i kolorowych. Gramatura 80 g/m². Szerokość 610 mm. Długość 50 m.Średnica gilzy: 50 mm","1 rolka",{"$f":"IF('Załącznik 1 - Formularz Oferty'!$V$55=TRUE,(VLOOKUP(C34,'Załącznik 1 - Formularz Oferty'!$C$53:$G$83,5,0)),0)","v":0},11,0,null,null,null,null,1,0,null,null,5,0,null,null,null,null,5,0]
[null,14,"PAPIER DO PLOTERÓW 841MMX50M 80G","Uniwersalny papier do ploterów atramentowych. Biały, niepowlekany. Przeznaczony do wydruków monochromatycznych i kolorowych. Gramatura 80 g/m². Szerokość 841 mm. Długość 50 m. Średnica gilzy: 50 mm","1 rolka",{"$f":"IF('Załącznik 1 - Formularz Oferty'!$V$55=TRUE,(VLOOKUP(C35,'Załącznik 1 - Formularz Oferty'!$C$53:$G$83,5,0)),0)","v":0},12,0,null,null,null,null,1,0,null,null,6,0,null,null,null,null,5,0]
[null,15,"PAPIER DO PLOTERÓW 914MMX50M 80G","Uniwersalny papier do ploterów atramentowych. Biały, niepowlekany. Przeznaczony do wydruków monochromatycznych i kolorowych. Gramatura 80 g/m². Szerokość 914 mm. Długość 50 m. Średnica gilzy: 50 mm","1 rolka",{"$f":"IF('Załącznik 1 - Formularz Oferty'!$V$55=TRUE,(VLOOKUP(C36,'Załącznik 1 - Formularz Oferty'!$C$53:$G$83,5,0)),0)","v":0},13,0,null,null,null,null,1,0,null,null,7,0,null,null,null,null,5,0]
[null,16,"ROLKA PAPIEROWA 76MMX25M","Rolka papierowa (offsetowa) Gwarancja: 5 lat na zdolność kopiowania papieru i 25 lat na trwałość kopii. Wymiary: 76 mm x dl. 25m","opakowanie/10 sztuk",{"$f":"IF('Załącznik 1 - Formularz Oferty'!$V$55=TRUE,(VLOOKUP(C37,'Załącznik 1 - Formularz Oferty'!$C$53:$G$83,5,0)),0)","v":0},6,{"$f":"G37*F37","v":0},null,null,null,null,1,0,null,null,5,0]
[null,17,"PELIKAN KALKA OŁÓWKOWA NIEBIESKA A4","Kalka przebitkowa, maszynowa i do pisania odręcznego. Samoregenerująca się. Format A4. Kolor niebieski","opakowanie/10 arkuszy",{"$f":"IF('Załącznik 1 - Formularz Oferty'!$V$55=TRUE,(VLOOKUP(C38,'Załącznik 1 - Formularz Oferty'!$C$53:$G$83,5,0)),0)","v":0},10,0,null,null,null,null,1,0,null,null,6,0,null,null,null,null,3,{"$f":"W38*F38","v":0}]
[null,18,"PAPIER FOTOGRAFICZNY,  A4,  180 g","Szybkoschnący papier fotograficzny do wydruku profesjonalnej jakości fotografii. Gładkie, lśniące wykończenie zapewnia wyraźne zdjęcia o żywych kolorach. Format A4, 180 g","ryza/50 arkuszy",{"$f":"IF('Załącznik 1 - Formularz Oferty'!$V$55=TRUE,(VLOOKUP(C39,'Załącznik 1 - Formularz Oferty'!$C$53:$G$83,5,0)),0)","v":0},171,0,1,0,1,{"$f":"K39*F39","v":0},162,0,null,null,5,0,null,null,null,null,2,0]
[null,19,"PAPIER FOTOGRAFICZNY, A4, 200G, ","Szybkoschnący papier fotograficzny do wydruku profesjonalnej jakości fotografii. Gładkie, lśniące wykończenie zapewnia wyraźne zdjęcia o żywych kolorach. Format A4, 200g","opakowanie/25 arkuszy",{"$f":"IF('Załącznik 1 - Formularz Oferty'!$V$55=TRUE,(VLOOKUP(C40,'Załącznik 1 - Formularz Oferty'!$C$53:$G$83,5,0)),0)","v":0},10,0,1,0,1,{"$f":"K40*F40","v":0},1,0,null,null,5,0,null,null,null,null,2,0]
[null,20,"PAPIER A4 160G, BIAŁOŚĆ 169 CIE","Papier przeznaczony do dwustronnych wydruków laserowych i atramentowych. Zapobiega przesiąkaniu druku. Białość: 169 wg skali białości CIE 160 g/m². Format A4","ryza/250 arkuszy",{"$f":"IF('Załącznik 1 - Formularz Oferty'!$V$55=TRUE,(VLOOKUP(C41,'Załącznik 1 - Formularz Oferty'!$C$53:$G$83,5,0)),0)","v":0},20,0,1,0,1,0,2,0,10,{"$f":"O41*F41","v":0},6,0]
[null,21,"OKŁADKI DO DYPLOMÓW GRANAT, ROZMIAR 220 X 310 MM","Okładki do certyfikatów, dyplomów, listów gratulacyjnych. Twarda oprawa o fakturze skóry. Posiadają ozdobny złoty sznureczek. Rozmiar okładki: 220 x 310 mm. Kolor granatowy","opakowanie/10 sztuk",{"$f":"IF('Załącznik 1 - Formularz Oferty'!$V$55=TRUE,(VLOOKUP(C42,'Załącznik 1 - Formularz Oferty'!$C$53:$G$83,5,0)),0)","v":0},132,0,1,0,null,null,90,0,20,0,6,0,5,{"$f":"S42*F42","v":0},null,null,10,{"$f":"W42*F42","v":0}]
[null,22,"PAPIER INTENSYWNY NIEBIESKI A4, 80 g","Papier uniwersalny 80 g/m2, Przeznaczony do kopiarek, drukarek laserowych i atramentowych. Kolor intensywny niebieski. Format A4","ryza/500 arkuszy",{"$f":"IF('Załącznik 1 - Formularz Oferty'!$V$55=TRUE,(VLOOKUP(C43,'Załącznik 1 - Formularz Oferty'!$C$53:$G$83,5,0)),0)","v":0},11,0,1,0,null,null,4,0,null,null,6,0]
[null,23,"PAPIER INTENSYWNY ZIELONY A4, 80 g","Papier uniwersalny 80 g/m2, Przeznaczony do kopiarek, drukarek laserowych i atramentowych. Kolor intensywny zielony. Format A4","ryza/500 arkuszy",{"$f":"IF('Załącznik 1 - Formularz Oferty'!$V$55=TRUE,(VLOOKUP(C44,'Załącznik 1 - Formularz Oferty'!$C$53:$G$83,5,0)),0)","v":0},8,0,1,0,null,null,1,0,null,null,6,0]
[null,24,"PAPIER INTENSYWNY ŻÓŁTY, A4, 80 g","Papier uniwersalny 80 g/m2, Przeznaczony do kopiarek, drukarek laserowych i atramentowych. Kolor intensywny żółty. Format A4","ryza/500 arkuszy",{"$f":"IF('Załącznik 1 - Formularz Oferty'!$V$55=TRUE,(VLOOKUP(C45,'Załącznik 1 - Formularz Oferty'!$C$53:$G$83,5,0)),0)","v":0},9,0,1,0,null,null,2,0,null,null,5,0,null,null,1,{"$f":"U45*F45","v":0}]
[null,25,"PAPIER INTENSYWNY CZERWONY A4, 80g","Papier uniwersalny 80 g/m2, Przeznaczony do kopiarek, drukarek laserowych i atramentowych. Kolor intensywny czerwony. Format A4","ryza/500 arkuszy",{"$f":"IF('Załącznik 1 - Formularz Oferty'!$V$55=TRUE,(VLOOKUP(C46,'Załącznik 1 - Formularz Oferty'!$C$53:$G$83,5,0)),0)","v":0},15,0,1,0,null,null,8,0,null,null,6,0]
[null,26,"PAPIER MIX KOLORÓW A4, 80 g","Papier uniwersalny 80 g/m2, Przeznaczony do kopiarek, drukarek laserowych i atramentowych. Mix kolorów. Format A4","ryza/500 arkuszy",{"$f":"IF('Załącznik 1 - Formularz Oferty'!$V$55=TRUE,(VLOOKUP(C47,'Załącznik 1 - Formularz Oferty'!$C$53:$G$83,5,0)),0)","v":0},12,0,1,0,null,null,2,0,2,{"$f":"O47*F47","v":0},5,0,2,{"$f":"S47*F47","v":0}]
[null,27,"PAPIER A4 100G, BIAŁOŚĆ 168 CIE","Papier uniwersalny 100 g/m2 klasy A, Przeznaczony do kopiarek, drukarek laserowych i atramentowych oraz do wydruków kolorowych, Białość: 168 wg skali białości CIE. Format A4","ryza/ 250 arkuszy",{"$f":"IF('Załącznik 1 - Formularz Oferty'!$V$55=TRUE,(VLOOKUP(C48,'Załącznik 1 - Formularz Oferty'!$C$53:$G$83,5,0)),0)","v":0},16,0,null,null,2,{"$f":"K48*F48","v":0},8,0,null,null,6,0]
[null,28,"PAPIER DO DRUKAREK WIELKOFORMATOWYCH,  ROLKA  A1 594/175, 80 g, gilza 76","Papier standard, biały. Przeznaczony do wydruków monochromatycznych . Gramatura 80 g/m². Szerokość 594 mm. Długość 175 m. Średnica gilzy: 76 mm. Format A1 rolka","rolka",{"$f":"IF('Załącznik 1 - Formularz Oferty'!$V$55=TRUE,(VLOOKUP(C49,'Załącznik 1 - Formularz Oferty'!$C$53:$G$83,5,0)),0)","v":0},9,0,null,null,null,null,3,0,null,null,6,0]
[null,29,"Papier ozdobny – biały 250 g/m3   20 arkuszy","papier wizytówkowy/ozdobny - np.. R20 TOP STYLE TRAD PAPIER A4 250G BIAŁY lub podobny","opakowanie 20 arkuszy",{"$f":"IF('Załącznik 1 - Formularz Oferty'!$V$55=TRUE,(VLOOKUP(C50,'Załącznik 1 - Formularz Oferty'!$C$53:$G$83,5,0)),0)","v":0},15,0,1,0,1,{"$f":"K50*F50","v":0},2,0,null,null,7,0,null,null,3,{"$f":"U50*F50","v":0},1,{"$f":"W50*F50","v":0}]
[null,30,"Papier ozdobny - - kość słoniowa 250 g/m3 20 arkuszy","papier wizytówkowy/ozdobny np..R20 TOP STYLE TRAD PAP A4 250G KOŚĆ SŁONIOWA lub podobny","opakowanie 20 arkuszy",{"$f":"IF('Załącznik 1 - Formularz Oferty'!$V$55=TRUE,(VLOOKUP(C51,'Załącznik 1 - Formularz Oferty'!$C$53:$G$83,5,0)),0)","v":0},19,0,1,0,null,null,3,0,null,null,7,0,null,null,3,0,5,0]
[null,null,null,null,null,null,null,null,"ŁĄCZNA CENA NETTO DLA ENEA Centrum Sp. z o.o. ",{"$f":"SUM(J22:J51)","v":0},"ŁĄCZNA CENA NETTO DLA ENEA S.A.",{"$f":"SUM(L22:L51)","v":0},"ŁĄCZNA CENA NETTO DLA ENEA Operator sp. z.o.o.",{"$f":"SUM(N22:N51)","v":0},"ŁĄCZNA CENA NETTO DLA ENEA Trading Sp. z o.o.",{"$f":"SUM(P22:P51)","v":0},"ŁĄCZNA CENA NETTO DLA ENEA Serwis sp. z.o.o.",{"$f":"SUM(R22:R51)","v":0},"ŁĄCZNA CENA NETTO DLA ENEA Pomiary Sp. z o.o.",{"$f":"SUM(T22:T51)","v":0},"ŁĄCZNA CENA NETTO DLA ENEA Logistyka sp. z.o.o.",{"$f":"SUM(V22:V51)","v":0},"ŁĄCZNA CENA NETTO DLA ENEA Oświetlenie Sp. z o.o.",{"$f":"SUM(X22:X51)","v":0}]
[]
[]
[]
[null,null,"miejscowość i data",null,null,"Pieczęć imienna i podpis przedstawiciela(i) Wykonawcy"]

{"sheet":"Załącznik 3-F.O. dla Zadania 2","index":7,"n_rows":56,"n_cols":22,"rows_kept":56,"cut":false,"hidden":false,"merged":[[55,5,55,7],[18,1,18,2],[0,1,0,7],[2,1,2,7],[4,1,4,7],[8,1,8,7],[11,1,11,7],[14,1,14,7],[18,3,18,5],[54,2,54,3],[54,4,54,7]]}
[null,"Oznaczenie sprawy:  1400/DW00/ZU/KZ/2021/0000061751"]
[]
[null,"ZAŁĄCZNIK NR 3 - FORMULARZ OFERTY DLA ZADANIA 2 - Dostawa papieru do wydruku – Zielona Góra, Gorzów + woj. lubuskie."]
[]
[]
[null,null,"(pieczęć wykonawcy)"]
[]
[null,"Ja, niżej podpisany (My niżej podpisani):"]
[]
[]
[null,"działając w imieniu i na rzecz:"]
[]
[]
[null,"Składam(y) ofertę na wykonanie zamówienia, którego przedmiotem jest:"]
[null,"Dostawa papieru do wydruku dla spółek GK ENEA"]
[]
[null,"Zadanie 2:  Dostawa papieru do wydruku - Zielona Góra + woj. lubuskie "]
[]
[null,"ŁĄCZNA CENA NETTO OFERTY DLA ZADANIA 2:",null,{"$f":"SUM(H22:H51)","v":0}]
[]
[null,"LP","Nazwa produktu","Opis szczegółowy","Jednostka ","cena jednostkowa netto","Ilość","Wartość","ENEA Centrum Sp. z o.o. - Szacowana ilość","ŁĄCZNA CENA NETTO DLA ENEA Centrum Sp. z o.o. ","ENEA S.A. - Szacowana ilość","ŁĄCZNA CENA NETTO DLA ENEA S.A. ","ENEA Operator Sp. z o.o. - Szacowana ilość","ŁĄCZNA CENA NETTO DLA ENEA Operator Sp. z o.o. ","ENEA Serwis Sp. z o.o. - Szacowana ilość","ŁĄCZNA CENA NETTO DLA ENEA Serwis Sp. z o.o. ","ENEA Pomiary Sp. z o.o. - Szacowana ilość","ŁĄCZNA CENA NETTO DLA ENEA Pomiary Sp. z o.o. ","ENEA Logistyka Sp. z o.o. - Szacowana ilość","ŁĄCZNA CENA NETTO DLA ENEA Logistyka Sp. z o.o. ","ENEA Oświetlenie Sp. z o.o. - Szacowana ilość","ŁĄCZNA CENA NETTO DLA ENEA Oświetlenie Sp. z o.o. "]
[null,1,"PAPIER A4 80G, BIAŁOŚĆ 166 CIE","Papier uniwersalny 80 g/m2 klasy A, Przeznaczony do kopiarek, drukarek laserowych i atramentowych oraz do wydruków kolorowych, Białość: 166 wg skali białości CIE. Format A4","karton/5 ryz po 500 arkuszy",{"$f":"IF('Załącznik 1 - Formularz Oferty'!$V$56=TRUE,(VLOOKUP(C22,'Załącznik 1 - Formularz Oferty'!$C$53:$G$83,5,0)),0)","v":0},{"$f":"I22+K22+M22+O22+Q22+S22+U22","v":331},{"$f":"G22*F22","v":0},33,{"$f":"I22*F22","v":0},null,null,283,{"$f":"M22*F22","v":0},6,{"$f":"O22*F22","v":0},4,{"$f":"Q22*F22","v":0},5,{"$f":"S22*F22","v":0}]
[null,2,"PAPIER A4 80G, BIAŁOŚĆ 146 CIE","Papier uniwersalny 80 g/m² klasy C+, Przeznaczony do drukarek laserowych,kopiarek oraz faksów. Białość: 146 wg skali białości CIE. Format A4","karton/5 ryz po 500 arkuszy",{"$f":"IF('Załącznik 1 - Formularz Oferty'!$V$56=TRUE,(VLOOKUP(C23,'Załącznik 1 - Formularz Oferty'!$C$53:$G$83,5,0)),0)","v":0},{"$f":"I23+K23+M23+O23+Q23+S23+U23","v":1065},{"$f":"G23*F23","v":0},340,{"$f":"I23*F23","v":0},25,{"$f":"K23*F23","v":0},634,{"$f":"M23*F23","v":0},6,{"$f":"O23*F23","v":0},10,{"$f":"Q23*F23","v":0},30,{"$f":"S23*F23","v":0},20,{"$f":"U23*F23","v":0}]
[null,3,"PAPIER UNIWERSALNY A5 80G BIAŁY, BIAŁOŚĆ 146 CIE","Papier uniwersalny 80 g/m² klasy C+. Przeznaczony do drukarek laserowych, kopiarek oraz faksów. Białość: 146 wg skali białości CIE. Format A5","ryza/500 arkuszy",{"$f":"IF('Załącznik 1 - Formularz Oferty'!$V$56=TRUE,(VLOOKUP(C24,'Załącznik 1 - Formularz Oferty'!$C$53:$G$83,5,0)),0)","v":0},24,0,null,null,null,null,17,0,6,0,1,0]
[null,4,"PAPIER A3 80G, BIAŁOŚĆ 146 CIE","Papier uniwersalny 80 g/m² klasy C+. Przeznaczony do drukarek laserowych, kopiarek oraz faksów. Białość: 146 wg skali białości CIE. Format A3","ryza/500 arkuszy",{"$f":"IF('Załącznik 1 - Formularz Oferty'!$V$56=TRUE,(VLOOKUP(C25,'Załącznik 1 - Formularz Oferty'!$C$53:$G$83,5,0)),0)","v":0},132,0,8,{"$f":"I25*F25","v":0},null,null,110,0,6,0,3,0,1,{"$f":"S25*F25","v":0},4,{"$f":"U25*F25","v":0}]
[null,5,"PAPIER SATYNOWY A4 160G BIAŁY, BIAŁOŚC 168 CIE","Satynowany,biały papier przeznaczony do pełnokolorowych wydruków, nadaje się do maszyn cyfrowych,prezentacji, broszur, raportów oraz materiałów informacyjnych. Białość: 168 wg skali białości CIE. Gramatura 160 g//m². Format A4","ryza/250 arkuszy",{"$f":"IF('Załącznik 1 - Formularz Oferty'!$V$56=TRUE,(VLOOKUP(C26,'Załącznik 1 - Formularz Oferty'!$C$53:$G$83,5,0)),0)","v":0},13,0,1,0,null,null,6,0,6,0]
[null,6,"PAPIER DO DRUKAREK IGŁOWYCH  240MM 1+1 O/K","Papier do drukarek igłowych, wielowarstwowy o gramaturze 53-57 g/m², wytwarzany z papieru samokopiującego, Liczba warstw 1+1. Biały oryginał i różowa kopia, posiada nadruk oryginał/kopia. Format: długość 12''= 305 mm, szerokość 240 mm","karton/900 składek",{"$f":"IF('Załącznik 1 - Formularz Oferty'!$V$56=TRUE,(VLOOKUP(C27,'Załącznik 1 - Formularz Oferty'!$C$53:$G$83,5,0)),0)","v":0},16,0,null,null,null,null,null,null,6,0,null,null,10,{"$f":"S27*F27","v":0}]
[null,7,"PAPIER DO DRUKAREK IGŁOWYCH 240MM 1+2 O/K","Papier do drukarek igłowych, wielowarstwowy o gramaturze 53-57 g/m²,Liczba warstw 1+2. Biały oryginał, żółta i różowa kopia, posiada nadruk oryginał/kopia. Format: długość 12''= 305 mm, szerokość 240 mm","karton/600 składek",{"$f":"IF('Załącznik 1 - Formularz Oferty'!$V$56=TRUE,(VLOOKUP(C28,'Załącznik 1 - Formularz Oferty'!$C$53:$G$83,5,0)),0)","v":0},41,0,null,null,null,null,null,null,6,0,null,null,35,0]
[null,8,"PAPIER DO DRUKAREK IGŁOWYCH 240MM 1+3 O/K","Papier do drukarek igłowych,  wielowarstwowy o gramaturze 53-57 g/m², wytwarzany z papieru samokopiującego.Liczba warstw 1+3. Biały oryginał, żółta, zielona i różowa kopia, posiada nadruk oryginał/kopia. Format: długość 12''= 305 mm, szerokość 240 mm","karton/450 składek",{"$f":"IF('Załącznik 1 - Formularz Oferty'!$V$56=TRUE,(VLOOKUP(C29,'Załącznik 1 - Formularz Oferty'!$C$53:$G$83,5,0)),0)","v":0},6,0,null,null,null,null,null,null,6,0]
[null,9,"PAPIER DO DRUKAREK IGŁOWYCH 240MM 1+4","Papier do drukarek igłowych,  wielowarstwowy o gramaturze 53-57 g/m², wytwarzany z papieru samokopiującego.Kolory kopii:1+4: żółta, zielona, żółta, różowa. Długość: 12'' = 305mm; Szerokość: 240(mm). Liczba warstw 1+4","karton/350 składek",{"$f":"IF('Załącznik 1 - Formularz Oferty'!$V$56=TRUE,(VLOOKUP(C30,'Załącznik 1 - Formularz Oferty'!$C$53:$G$83,5,0)),0)","v":0},6,0,null,null,null,null,null,null,6,0]
[null,10,"PAPIER DO PLOTERÓW 297MMX50M 90G","Uniwersalny papier do ploterów atramentowych. Biały, niepowlekany. Przeznaczony do wydruków monochromatycznych i kolorowych. Długość: 50 m. Średnica tulejki: 50 mm","opakowanie/ 2 rolki",{"$f":"IF('Załącznik 1 - Formularz Oferty'!$V$56=TRUE,(VLOOKUP(C31,'Załącznik 1 - Formularz Oferty'!$C$53:$G$83,5,0)),0)","v":0},7,0,null,null,null,null,1,{"$f":"M31*F31","v":0},6,0]
[null,11,"PAPIER DO PLOTERÓW 420MMX50M 80G","Uniwersalny papier do ploterów atramentowych. Biały, niepowlekany. Przeznaczony do wydruków monochromatycznych i kolorowych. Gramatura 80 g/m². Szerokość 420 mm. Długość 50 m. Średnica gilzy: 50 mm","opakowanie/ 2 rolki",{"$f":"IF('Załącznik 1 - Formularz Oferty'!$V$56=TRUE,(VLOOKUP(C32,'Załącznik 1 - Formularz Oferty'!$C$53:$G$83,5,0)),0)","v":0},8,0,null,null,null,null,2,0,6,0]
[null,12,"PAPIER DO PLOTERÓW 594MMX50M 80G","Uniwersalny papier do ploterów atramentowych. Biały, niepowlekany. Przeznaczony do wydruków monochromatycznych i kolorowych. Gramatura 80 g/m². Szerokość 594 mm. Długość 50 m. Średnica gilzy: 50 mm","1 rolka",{"$f":"IF('Załącznik 1 - Formularz Oferty'!$V$56=TRUE,(VLOOKUP(C33,'Załącznik 1 - Formularz Oferty'!$C$53:$G$83,5,0)),0)","v":0},7,0,null,null,null,null,1,0,6,0]
[null,13,"PAPIER DO PLOTERÓW 610MMX50M 80G","Uniwersalny papier do ploterów atramentowych. Biały, niepowlekany. Przeznaczony do wydruków monochromatycznych i kolorowych. Gramatura 80 g/m². Szerokość 610 mm. Długość 50 m.Średnica gilzy: 50 mm","1 rolka",{"$f":"IF('Załącznik 1 - Formularz Oferty'!$V$56=TRUE,(VLOOKUP(C34,'Załącznik 1 - Formularz Oferty'!$C$53:$G$83,5,0)),0)","v":0},7,0,null,null,null,null,1,0,6,0]
[null,14,"PAPIER DO PLOTERÓW 841MMX50M 80G","Uniwersalny papier do ploterów atramentowych. Biały, niepowlekany. Przeznaczony do wydruków monochromatycznych i kolorowych. Gramatura 80 g/m². Szerokość 841 mm. Długość 50 m. Średnica gilzy: 50 mm","1 rolka",{"$f":"IF('Załącznik 1 - Formularz Oferty'!$V$56=TRUE,(VLOOKUP(C35,'Załącznik 1 - Formularz Oferty'!$C$53:$G$83,5,0)),0)","v":0},7,0,null,null,null,null,1,0,6,0]
[null,15,"PAPIER DO PLOTERÓW 914MMX50M 80G","Uniwersalny papier do ploterów atramentowych. Biały, niepowlekany. Przeznaczony do wydruków monochromatycznych i kolorowych. Gramatura 80 g/m². Szerokość 914 mm. Długość 50 m. Średnica gilzy: 50 mm","1 rolka",{"$f":"IF('Załącznik 1 - Formularz Oferty'!$V$56=TRUE,(VLOOKUP(C36,'Załącznik 1 - Formularz Oferty'!$C$53:$G$83,5,0)),0)","v":0},7,0,null,null,null,null,1,0,6,0]
[null,16,"ROLKA PAPIEROWA 76MMX25M","Rolka papierowa (offsetowa) Gwarancja: 5 lat na zdolność kopiowania papieru i 25 lat na trwałość kopii. Wymiary: 76 mm x dl. 25m","opakowanie/10 sztuk",{"$f":"IF('Załącznik 1 - Formularz Oferty'!$V$56=TRUE,(VLOOKUP(C37,'Załącznik 1 - Formularz Oferty'!$C$53:$G$83,5,0)),0)","v":0},7,{"$f":"G37*F37","v":0},null,null,null,null,1,0,6,0]
[null,17,"PELIKAN KALKA OŁÓWKOWA NIEBIESKA A4","Kalka przebitkowa, maszynowa i do pisania odręcznego. Samoregenerująca się. Format A4. Kolor niebieski","opakowanie/10 arkuszy",{"$f":"IF('Załącznik 1 - Formularz Oferty'!$V$56=TRUE,(VLOOKUP(C38,'Załącznik 1 - Formularz Oferty'!$C$53:$G$83,5,0)),0)","v":0},7,0,null,null,null,null,1,0,6,0]
[null,18,"PAPIER FOTOGRAFICZNY,  A4,  180 g","Szybkoschnący papier fotograficzny do wydruku profesjonalnej jakości fotografii. Gładkie, lśniące wykończenie zapewnia wyraźne zdjęcia o żywych kolorach. Format A4, 180 g","ryza/50 arkuszy",{"$f":"IF('Załącznik 1 - Formularz Oferty'!$V$56=TRUE,(VLOOKUP(C39,'Załącznik 1 - Formularz Oferty'!$C$53:$G$83,5,0)),0)","v":0},94,0,null,null,null,null,88,0,6,0]
[null,19,"PAPIER FOTOGRAFICZNY, A4, 200G, ","Szybkoschnący papier fotograficzny do wydruku profesjonalnej jakości fotografii. Gładkie, lśniące wykończenie zapewnia wyraźne zdjęcia o żywych kolorach. Format A4, 200g","opakowanie/25 arkuszy",{"$f":"IF('Załącznik 1 - Formularz Oferty'!$V$56=TRUE,(VLOOKUP(C40,'Załącznik 1 - Formularz Oferty'!$C$53:$G$83,5,0)),0)","v":0},7,0,null,null,null,null,1,0,6,0]
[null,20,"PAPIER A4 160G, BIAŁOŚĆ 169 CIE","Papier przeznaczony do dwustronnych wydruków laserowych i atramentowych. Zapobiega przesiąkaniu druku. Białość: 169 wg skali białości CIE 160 g/m². Format A4","ryza/250 arkuszy",{"$f":"IF('Załącznik 1 - Formularz Oferty'!$V$56=TRUE,(VLOOKUP(C41,'Załącznik 1 - Formularz Oferty'!$C$53:$G$83,5,0)),0)","v":0},7,0,null,null,null,null,1,0,6,0]
[null,21,"OKŁADKI DO DYPLOMÓW GRANAT, ROZMIAR 220 X 310 MM","Okładki do certyfikatów, dyplomów, listów gratulacyjnych. Twarda oprawa o fakturze skóry. Posiadają ozdobny złoty sznureczek. Rozmiar okładki: 220 x 310 mm. Kolor granatowy","opakowanie/10 sztuk",{"$f":"IF('Załącznik 1 - Formularz Oferty'!$V$56=TRUE,(VLOOKUP(C42,'Załącznik 1 - Formularz Oferty'!$C$53:$G$83,5,0)),0)","v":0},56,0,null,null,null,null,49,0,6,0,1,0]
[null,22,"PAPIER INTENSYWNY NIEBIESKI A4, 80 g","Papier uniwersalny 80 g/m2, Przeznaczony do kopiarek, drukarek laserowych i atramentowych. Kolor intensywny niebieski. Format A4","ryza/500 arkuszy",{"$f":"IF('Załącznik 1 - Formularz Oferty'!$V$56=TRUE,(VLOOKUP(C43,'Załącznik 1 - Formularz Oferty'!$C$53:$G$83,5,0)),0)","v":0},9,0,null,null,null,null,3,0,6,0]
[null,23,"PAPIER INTENSYWNY ZIELONY A4, 80 g","Papier uniwersalny 80 g/m2, Przeznaczony do kopiarek, drukarek laserowych i atramentowych. Kolor intensywny zielony. Format A4","ryza/500 arkuszy",{"$f":"IF('Załącznik 1 - Formularz Oferty'!$V$56=TRUE,(VLOOKUP(C44,'Załącznik 1 - Formularz Oferty'!$C$53:$G$83,5,0)),0)","v":0},7,0,null,null,null,null,1,0,6,0]
[null,24,"PAPIER INTENSYWNY ŻÓŁTY, A4, 80 g","Papier uniwersalny 80 g/m2, Przeznaczony do kopiarek, drukarek laserowych i atramentowych. Kolor intensywny żółty. Format A4","ryza/500 arkuszy",{"$f":"IF('Załącznik 1 - Formularz Oferty'!$V$56=TRUE,(VLOOKUP(C45,'Załącznik 1 - Formularz Oferty'!$C$53:$G$83,5,0)),0)","v":0},7,0,null,null,null,null,1,0,6,0]
[null,25,"PAPIER INTENSYWNY CZERWONY A4, 80g","Papier uniwersalny 80 g/m2, Przeznaczony do kopiarek, drukarek laserowych i atramentowych. Kolor intensywny czerwony. Format A4","ryza/500 arkuszy",{"$f":"IF('Załącznik 1 - Formularz Oferty'!$V$56=TRUE,(VLOOKUP(C46,'Załącznik 1 - Formularz Oferty'!$C$53:$G$83,5,0)),0)","v":0},11,0,null,null,null,null,5,0,6,0]
[null,26,"PAPIER MIX KOLORÓW A4, 80 g","Papier uniwersalny 80 g/m2, Przeznaczony do kopiarek, drukarek laserowych i atramentowych. Mix kolorów. Format A4","ryza/500 arkuszy",{"$f":"IF('Załącznik 1 - Formularz Oferty'!$V$56=TRUE,(VLOOKUP(C47,'Załącznik 1 - Formularz Oferty'!$C$53:$G$83,5,0)),0)","v":0},8,0,null,null,null,null,1,0,6,0,1,0]
[null,27,"PAPIER A4 100G, BIAŁOŚĆ 168 CIE","Papier uniwersalny 100 g/m2 klasy A, Przeznaczony do kopiarek, drukarek laserowych i atramentowych oraz do wydruków kolorowych, Białość: 168 wg skali białości CIE. Format A4","ryza/ 250 arkuszy",{"$f":"IF('Załącznik 1 - Formularz Oferty'!$V$56=TRUE,(VLOOKUP(C48,'Załącznik 1 - Formularz Oferty'!$C$53:$G$83,5,0)),0)","v":0},12,0,1,{"$f":"I48*F48","v":0},null,null,5,0,6,0]
[null,28,"PAPIER DO DRUKAREK WIELKOFORMATOWYCH,  ROLKA  A1 594/175, 80 g, gilza 76","Papier standard, biały. Przeznaczony do wydruków monochromatycznych . Gramatura 80 g/m². Szerokość 594 mm. Długość 175 m. Średnica gilzy: 76 mm. Format A1 rolka","rolka",{"$f":"IF('Załącznik 1 - Formularz Oferty'!$V$56=TRUE,(VLOOKUP(C49,'Załącznik 1 - Formularz Oferty'!$C$53:$G$83,5,0)),0)","v":0},8,0,null,null,null,null,2,0,6,0]
[null,29,"Papier ozdobny – biały 250 g/m3   20 arkuszy","papier wizytówkowy/ozdobny - np.. R20 TOP STYLE TRAD PAPIER A4 250G BIAŁY lub podobny","opakowanie 20 arkuszy",{"$f":"IF('Załącznik 1 - Formularz Oferty'!$V$56=TRUE,(VLOOKUP(C50,'Załącznik 1 - Formularz Oferty'!$C$53:$G$83,5,0)),0)","v":0},5,0,null,null,null,null,1,0,4,0]
[null,30,"Papier ozdobny - - kość słoniowa 250 g/m3 20 arkuszy","papier wizytówkowy/ozdobny np..R20 TOP STYLE TRAD PAP A4 250G KOŚĆ SŁONIOWA lub podobny","opakowanie 20 arkuszy",{"$f":"IF('Załącznik 1 - Formularz Oferty'!$V$56=TRUE,(VLOOKUP(C51,'Załącznik 1 - Formularz Oferty'!$C$53:$G$83,5,0)),0)","v":0},6,0,null,null,null,null,2,0,4,0]
[null,null,null,null,null,null,null,null,"ŁĄCZNA CENA NETTO DLA ENEA Centrum Sp. z o.o. ",{"$f":"SUM(J22:J51)","v":0},"ŁĄCZNA CENA NETTO DLA ENEA S.A.",{"$f":"SUM(L22:L51)","v":0},"ŁĄCZNA CENA NETTO DLA ENEA Operator sp. z.o.o.",{"$f":"SUM(N22:N51)","v":0},"ŁĄCZNA CENA NETTO DLA ENEA Serwis Sp. z o.o.",{"$f":"SUM(P22:P51)","v":0},"ŁĄCZNA CENA NETTO DLA ENEA Pomiary sp. z.o.o.",{"$f":"SUM(R22:R51)","v":0},"ŁĄCZNA CENA NETTO DLA ENEA Logistyka Sp. z o.o.",{"$f":"SUM(T22:T51)","v":0},"ŁĄCZNA CENA NETTO DLA ENEA Oświetlenie sp. z.o.o.",{"$f":"SUM(V22:V51)","v":0}]
[]
[]
[]
[null,null,"miejscowość i data",null,null,"Pieczęć imienna i podpis przedstawiciela(i) Wykonawcy"]

{"sheet":"Załącznik 4-F.O. dla Zadania 3","index":8,"n_rows":56,"n_cols":22,"rows_kept":56,"cut":false,"hidden":false,"merged":[[55,5,55,7],[18,1,18,2],[0,1,0,7],[2,1,2,7],[4,1,4,7],[8,1,8,7],[11,1,11,7],[14,1,14,7],[18,3,18,5],[54,2,54,3],[54,4,54,7]]}
[null,"Oznaczenie sprawy:  1400/DW00/ZU/KZ/2021/0000061751"]
[]
[null,"ZAŁĄCZNIK NR 4 - FORMULARZ OFERTY DLA ZADANIA 3 - Dostawa papieru do wydruku – Szczecin + woj. Zachodniopomorskie."]
[]
[]
[null,null,"(pieczęć wykonawcy)"]
[]
[null,"Ja, niżej podpisany (My niżej podpisani):"]
[]
[]
[null,"działając w imieniu i na rzecz:"]
[]
[]
[null,"Składam(y) ofertę na wykonanie zamówienia, którego przedmiotem jest:"]
[null,"Dostawa papieru do wydruku dla spółek GK ENEA"]
[]
[null,"Zadanie 3:  Dostawa papieru do wydruku - Szczecin + woj. zachodniopomorskie "]
[]
[null,"ŁĄCZNA CENA NETTO OFERTY DLA ZADANIA 3:",null,{"$f":"SUM(H22:H513)","v":0}]
[]
[null,"LP","Nazwa produktu","Opis szczegółowy","Jednostka ","cena jednostkowa netto","Ilość","Wartość","ENEA Centrum Sp. z o.o. - Szacowana ilość","ŁĄCZNA CENA NETTO DLA ENEA Centrum Sp. z o.o. ","ENEA S.A. - Szacowana ilość","ŁĄCZNA CENA NETTO DLA ENEA S.A. ","ENEA Operator Sp. z o.o. - Szacowana ilość","ŁĄCZNA CENA NETTO DLA ENEA Operator Sp. z o.o. ","ENEA Serwis Sp. z o.o. - Szacowana ilość","ŁĄCZNA CENA NETTO DLA ENEA Serwis Sp. z o.o. ","ENEA Pomiary Sp. z o.o. - Szacowana ilość","ŁĄCZNA CENA NETTO DLA ENEA Pomiary Sp. z o.o.","ENEA Logistyka Sp. z o.o. - Szacowana ilość","ŁĄCZNA CENA NETTO DLA ENEA Logistyka Sp. z o.o. ","ENEA Oświetlenie Sp. z o.o. - Szacowana ilość","ŁĄCZNA CENA NETTO DLA ENEA Oświetlenie Sp. z o.o. "]
[null,1,"PAPIER A4 80G, BIAŁOŚĆ 166 CIE","Papier uniwersalny 80 g/m2 klasy A, Przeznaczony do kopiarek, drukarek laserowych i atramentowych oraz do wydruków kolorowych, Białość: 166 wg skali białości CIE. Format A4","karton/5 ryz po 500 arkuszy",{"$f":"IF('Załącznik 1 - Formularz Oferty'!$V$57=TRUE,(VLOOKUP(C22,'Załącznik 1 - Formularz Oferty'!$C$53:$G$83,5,0)),0)","v":0},{"$f":"I22+K22+M22+O22+Q22+S22+U22","v":348},{"$f":"G22*F22","v":0},null,null,null,null,326,{"$f":"M22*F22","v":0},6,{"$f":"O22*F22","v":0},4,{"$f":"Q22*F22","v":0},null,null,12,{"$f":"U22*F22","v":0}]
[null,2,"PAPIER A4 80G, BIAŁOŚĆ 146 CIE","Papier uniwersalny 80 g/m² klasy C+, Przeznaczony do drukarek laserowych,kopiarek oraz faksów. Białość: 146 wg skali białości CIE. Format A4","karton/5 ryz po 500 arkuszy",{"$f":"IF('Załącznik 1 - Formularz Oferty'!$V$57=TRUE,(VLOOKUP(C23,'Załącznik 1 - Formularz Oferty'!$C$53:$G$83,5,0)),0)","v":0},{"$f":"I23+K23+M23+O23+Q23+S23+U23","v":1150},{"$f":"G23*F23","v":0},231,{"$f":"I23*F23","v":0},60,{"$f":"K23*F23","v":0},729,{"$f":"M23*F23","v":0},6,{"$f":"O23*F23","v":0},34,{"$f":"Q23*F23","v":0},10,{"$f":"S23*F23","v":0},80,{"$f":"U23*F23","v":0}]
[null,3,"PAPIER UNIWERSALNY A5 80G BIAŁY, BIAŁOŚĆ 146 CIE","Papier uniwersalny 80 g/m² klasy C+. Przeznaczony do drukarek laserowych, kopiarek oraz faksów. Białość: 146 wg skali białości CIE. Format A5","ryza/500 arkuszy",{"$f":"IF('Załącznik 1 - Formularz Oferty'!$V$57=TRUE,(VLOOKUP(C24,'Załącznik 1 - Formularz Oferty'!$C$53:$G$83,5,0)),0)","v":0},26,0,null,null,null,null,19,0,6,0,1,0]
[null,4,"PAPIER A3 80G, BIAŁOŚĆ 146 CIE","Papier uniwersalny 80 g/m² klasy C+. Przeznaczony do drukarek laserowych, kopiarek oraz faksów. Białość: 146 wg skali białości CIE. Format A3","ryza/500 arkuszy",{"$f":"IF('Załącznik 1 - Formularz Oferty'!$V$57=TRUE,(VLOOKUP(C25,'Załącznik 1 - Formularz Oferty'!$C$53:$G$83,5,0)),0)","v":0},152,0,5,{"$f":"I25*F25","v":0},null,null,126,0,6,0,3,0,null,null,12,{"$f":"U25*F25","v":0}]
[null,5,"PAPIER SATYNOWY A4 160G BIAŁY, BIAŁOŚC 168 CIE","Satynowany,biały papier przeznaczony do pełnokolorowych wydruków, nadaje się do maszyn cyfrowych,prezentacji, broszur, raportów oraz materiałów informacyjnych. Białość: 168 wg skali białości CIE. Gramatura 160 g//m². Format A4","ryza/250 arkuszy",{"$f":"IF('Załącznik 1 - Formularz Oferty'!$V$57=TRUE,(VLOOKUP(C26,'Załącznik 1 - Formularz Oferty'!$C$53:$G$83,5,0)),0)","v":0},13,0,null,null,null,null,7,0,6,0]
[null,6,"PAPIER DO DRUKAREK IGŁOWYCH  240MM 1+1 O/K","Papier do drukarek igłowych, wielowarstwowy o gramaturze 53-57 g/m², wytwarzany z papieru samokopiującego, Liczba warstw 1+1. Biały oryginał i różowa kopia, posiada nadruk oryginał/kopia. Format: długość 12''= 305 mm, szerokość 240 mm","karton/900 składek",{"$f":"IF('Załącznik 1 - Formularz Oferty'!$V$57=TRUE,(VLOOKUP(C27,'Załącznik 1 - Formularz Oferty'!$C$53:$G$83,5,0)),0)","v":0},6,0,null,null,null,null,null,null,6,0]
[null,7,"PAPIER DO DRUKAREK IGŁOWYCH 240MM 1+2 O/K","Papier do drukarek igłowych, wielowarstwowy o gramaturze 53-57 g/m²,Liczba warstw 1+2. Biały oryginał, żółta i różowa kopia, posiada nadruk oryginał/kopia. Format: długość 12''= 305 mm, szerokość 240 mm","karton/600 składek",{"$f":"IF('Załącznik 1 - Formularz Oferty'!$V$57=TRUE,(VLOOKUP(C28,'Załącznik 1 - Formularz Oferty'!$C$53:$G$83,5,0)),0)","v":0},6,0,null,null,null,null,null,null,6,0]
[null,8,"PAPIER DO DRUKAREK IGŁOWYCH 240MM 1+3 O/K","Papier do drukarek igłowych,  wielowarstwowy o gramaturze 53-57 g/m², wytwarzany z papieru samokopiującego.Liczba warstw 1+3. Biały oryginał, żółta, zielona i różowa kopia, posiada nadruk oryginał/kopia. Format: długość 12''= 305 mm, szerokość 240 mm","karton/450 składek",{"$f":"IF('Załącznik 1 - Formularz Oferty'!$V$57=TRUE,(VLOOKUP(C29,'Załącznik 1 - Formularz Oferty'!$C$53:$G$83,5,0)),0)","v":0},6,0,null,null,null,null,null,null,6,0]
[null,9,"PAPIER DO DRUKAREK IGŁOWYCH 240MM 1+4","Papier do drukarek igłowych,  wielowarstwowy o gramaturze 53-57 g/m², wytwarzany z papieru samokopiującego.Kolory kopii:1+4: żółta, zielona, żółta, różowa. Długość: 12'' = 305mm; Szerokość: 240(mm). Liczba warstw 1+4","karton/350 składek",{"$f":"IF('Załącznik 1 - Formularz Oferty'!$V$57=TRUE,(VLOOKUP(C30,'Załącznik 1 - Formularz Oferty'!$C$53:$G$83,5,0)),0)","v":0},6,0,null,null,null,null,null,null,6,0]
[null,10,"PAPIER DO PLOTERÓW 297MMX50M 90G","Uniwersalny papier do ploterów atramentowych. Biały, niepowlekany. Przeznaczony do wydruków monochromatycznych i kolorowych. Długość: 50 m. Średnica tulejki: 50 mm","opakowanie/ 2 rolki",{"$f":"IF('Załącznik 1 - Formularz Oferty'!$V$57=TRUE,(VLOOKUP(C31,'Załącznik 1 - Formularz Oferty'!$C$53:$G$83,5,0)),0)","v":0},25,0,null,null,null,null,1,{"$f":"M31*F31","v":0},6,0,null,null,null,null,18,{"$f":"U31*F31","v":0}]
[null,11,"PAPIER DO PLOTERÓW 420MMX50M 80G","Uniwersalny papier do ploterów atramentowych. Biały, niepowlekany. Przeznaczony do wydruków monochromatycznych i kolorowych. Gramatura 80 g/m². Szerokość 420 mm. Długość 50 m. Średnica gilzy: 50 mm","opakowanie/ 2 rolki",{"$f":"IF('Załącznik 1 - Formularz Oferty'!$V$57=TRUE,(VLOOKUP(C32,'Załącznik 1 - Formularz Oferty'!$C$53:$G$83,5,0)),0)","v":0},32,0,null,null,null,null,2,0,6,0,null,null,null,null,24,0]
[null,12,"PAPIER DO PLOTERÓW 594MMX50M 80G","Uniwersalny papier do ploterów atramentowych. Biały, niepowlekany. Przeznaczony do wydruków monochromatycznych i kolorowych. Gramatura 80 g/m². Szerokość 594 mm. Długość 50 m. Średnica gilzy: 50 mm","1 rolka",{"$f":"IF('Załącznik 1 - Formularz Oferty'!$V$57=TRUE,(VLOOKUP(C33,'Załącznik 1 - Formularz Oferty'!$C$53:$G$83,5,0)),0)","v":0},7,0,null,null,null,null,1,0,6,0]
[null,13,"PAPIER DO PLOTERÓW 610MMX50M 80G","Uniwersalny papier do ploterów atramentowych. Biały, niepowlekany. Przeznaczony do wydruków monochromatycznych i kolorowych. Gramatura 80 g/m². Szerokość 610 mm. Długość 50 m.Średnica gilzy: 50 mm","1 rolka",{"$f":"IF('Załącznik 1 - Formularz Oferty'!$V$57=TRUE,(VLOOKUP(C34,'Załącznik 1 - Formularz Oferty'!$C$53:$G$83,5,0)),0)","v":0},39,0,null,null,null,null,1,0,6,0,null,null,null,null,32,{"$f":"U34*F34","v":0}]
[null,14,"PAPIER DO PLOTERÓW 841MMX50M 80G","Uniwersalny papier do ploterów atramentowych. Biały, niepowlekany. Przeznaczony do wydruków monochromatycznych i kolorowych. Gramatura 80 g/m². Szerokość 841 mm. Długość 50 m. Średnica gilzy: 50 mm","1 rolka",{"$f":"IF('Załącznik 1 - Formularz Oferty'!$V$57=TRUE,(VLOOKUP(C35,'Załącznik 1 - Formularz Oferty'!$C$53:$G$83,5,0)),0)","v":0},7,0,null,null,null,null,1,0,6,0]
[null,15,"PAPIER DO PLOTERÓW 914MMX50M 80G","Uniwersalny papier do ploterów atramentowych. Biały, niepowlekany. Przeznaczony do wydruków monochromatycznych i kolorowych. Gramatura 80 g/m². Szerokość 914 mm. Długość 50 m. Średnica gilzy: 50 mm","1 rolka",{"$f":"IF('Załącznik 1 - Formularz Oferty'!$V$57=TRUE,(VLOOKUP(C36,'Załącznik 1 - Formularz Oferty'!$C$53:$G$83,5,0)),0)","v":0},21,0,null,null,null,null,1,0,6,0,null,null,null,null,14,{"$f":"U36*F36","v":0}]
[null,16,"ROLKA PAPIEROWA 76MMX25M","Rolka papierowa (offsetowa) Gwarancja: 5 lat na zdolność kopiowania papieru i 25 lat na trwałość kopii. Wymiary: 76 mm x dl. 25m","opakowanie/10 sztuk",{"$f":"IF('Załącznik 1 - Formularz Oferty'!$V$57=TRUE,(VLOOKUP(C37,'Załącznik 1 - Formularz Oferty'!$C$53:$G$83,5,0)),0)","v":0},7,{"$f":"G37*F37","v":0},null,null,null,null,1,0,6,0]
[null,17,"PELIKAN KALKA OŁÓWKOWA NIEBIESKA A4","Kalka przebitkowa, maszynowa i do pisania odręcznego. Samoregenerująca się. Format A4. Kolor niebieski","opakowanie/10 arkuszy",{"$f":"IF('Załącznik 1 - Formularz Oferty'!$V$57=TRUE,(VLOOKUP(C38,'Załącznik 1 - Formularz Oferty'!$C$53:$G$83,5,0)),0)","v":0},7,0,null,null,null,null,1,0,6,0]
[null,18,"PAPIER FOTOGRAFICZNY,  A4,  180 g","Szybkoschnący papier fotograficzny do wydruku profesjonalnej jakości fotografii. Gładkie, lśniące wykończenie zapewnia wyraźne zdjęcia o żywych kolorach. Format A4, 180 g","ryza/50 arkuszy",{"$f":"IF('Załącznik 1 - Formularz Oferty'!$V$57=TRUE,(VLOOKUP(C39,'Załącznik 1 - Formularz Oferty'!$C$53:$G$83,5,0)),0)","v":0},107,0,null,null,null,null,101,0,6,0]
[null,19,"PAPIER FOTOGRAFICZNY, A4, 200G, ","Szybkoschnący papier fotograficzny do wydruku profesjonalnej jakości fotografii. Gładkie, lśniące wykończenie zapewnia wyraźne zdjęcia o żywych kolorach. Format A4, 200g","opakowanie/25 arkuszy",{"$f":"IF('Załącznik 1 - Formularz Oferty'!$V$57=TRUE,(VLOOKUP(C40,'Załącznik 1 - Formularz Oferty'!$C$53:$G$83,5,0)),0)","v":0},7,0,null,null,null,null,1,0,6,0]
[null,20,"PAPIER A4 160G, BIAŁOŚĆ 169 CIE","Papier przeznaczony do dwustronnych wydruków laserowych i atramentowych. Zapobiega przesiąkaniu druku. Białość: 169 wg skali białości CIE 160 g/m². Format A4","ryza/250 arkuszy",{"$f":"IF('Załącznik 1 - Formularz Oferty'!$V$57=TRUE,(VLOOKUP(C41,'Załącznik 1 - Formularz Oferty'!$C$53:$G$83,5,0)),0)","v":0},8,0,null,null,null,null,2,0,6,0]
[null,21,"OKŁADKI DO DYPLOMÓW GRANAT, ROZMIAR 220 X 310 MM","Okładki do certyfikatów, dyplomów, listów gratulacyjnych. Twarda oprawa o fakturze skóry. Posiadają ozdobny złoty sznureczek. Rozmiar okładki: 220 x 310 mm. Kolor granatowy","opakowanie/10 sztuk",{"$f":"IF('Załącznik 1 - Formularz Oferty'!$V$57=TRUE,(VLOOKUP(C42,'Załącznik 1 - Formularz Oferty'!$C$53:$G$83,5,0)),0)","v":0},63,0,null,null,null,null,56,0,6,0,1,{"$f":"Q42*F42","v":0}]
[null,22,"PAPIER INTENSYWNY NIEBIESKI A4, 80 g","Papier uniwersalny 80 g/m2, Przeznaczony do kopiarek, drukarek laserowych i atramentowych. Kolor intensywny niebieski. Format A4","ryza/500 arkuszy",{"$f":"IF('Załącznik 1 - Formularz Oferty'!$V$57=TRUE,(VLOOKUP(C43,'Załącznik 1 - Formularz Oferty'!$C$53:$G$83,5,0)),0)","v":0},9,0,null,null,null,null,3,0,6,0]
[null,23,"PAPIER INTENSYWNY ZIELONY A4, 80 g","Papier uniwersalny 80 g/m2, Przeznaczony do kopiarek, drukarek laserowych i atramentowych. Kolor intensywny zielony. Format A4","ryza/500 arkuszy",{"$f":"IF('Załącznik 1 - Formularz Oferty'!$V$57=TRUE,(VLOOKUP(C44,'Załącznik 1 - Formularz Oferty'!$C$53:$G$83,5,0)),0)","v":0},7,0,null,null,null,null,1,0,6,0]
[null,24,"PAPIER INTENSYWNY ŻÓŁTY, A4, 80 g","Papier uniwersalny 80 g/m2, Przeznaczony do kopiarek, drukarek laserowych i atramentowych. Kolor intensywny żółty. Format A4","ryza/500 arkuszy",{"$f":"IF('Załącznik 1 - Formularz Oferty'!$V$57=TRUE,(VLOOKUP(C45,'Załącznik 1 - Formularz Oferty'!$C$53:$G$83,5,0)),0)","v":0},7,0,null,null,null,null,1,0,6,0]
[null,25,"PAPIER INTENSYWNY CZERWONY A4, 80g","Papier uniwersalny 80 g/m2, Przeznaczony do kopiarek, drukarek laserowych i atramentowych. Kolor intensywny czerwony. Format A4","ryza/500 arkuszy",{"$f":"IF('Załącznik 1 - Formularz Oferty'!$V$57=TRUE,(VLOOKUP(C46,'Załącznik 1 - Formularz Oferty'!$C$53:$G$83,5,0)),0)","v":0},11,0,null,null,null,null,5,0,6,0]
[null,26,"PAPIER MIX KOLORÓW A4, 80 g","Papier uniwersalny 80 g/m2, Przeznaczony do kopiarek, drukarek laserowych i atramentowych. Mix kolorów. Format A4","ryza/500 arkuszy",{"$f":"IF('Załącznik 1 - Formularz Oferty'!$V$57=TRUE,(VLOOKUP(C47,'Załącznik 1 - Formularz Oferty'!$C$53:$G$83,5,0)),0)","v":0},8,0,null,null,null,null,1,0,6,0,1,{"$f":"Q47*F47","v":0}]
[null,27,"PAPIER A4 100G, BIAŁOŚĆ 168 CIE","Papier uniwersalny 100 g/m2 klasy A, Przeznaczony do kopiarek, drukarek laserowych i atramentowych oraz do wydruków kolorowych, Białość: 168 wg skali białości CIE. Format A4","ryza/ 250 arkuszy",{"$f":"IF('Załącznik 1 - Formularz Oferty'!$V$57=TRUE,(VLOOKUP(C48,'Załącznik 1 - Formularz Oferty'!$C$53:$G$83,5,0)),0)","v":0},11,0,null,null,null,null,5,0,6,0]
[null,28,"PAPIER DO DRUKAREK WIELKOFORMATOWYCH,  ROLKA  A1 594/175, 80 g, gilza 76","Papier standard, biały. Przeznaczony do wydruków monochromatycznych . Gramatura 80 g/m². Szerokość 594 mm. Długość 175 m. Średnica gilzy: 76 mm. Format A1 rolka","rolka",{"$f":"IF('Załącznik 1 - Formularz Oferty'!$V$57=TRUE,(VLOOKUP(C49,'Załącznik 1 - Formularz Oferty'!$C$53:$G$83,5,0)),0)","v":0},8,0,null,null,null,null,2,0,6,0]
[null,29,"Papier ozdobny – biały 250 g/m3   20 arkuszy","papier wizytówkowy/ozdobny - np.. R20 TOP STYLE TRAD PAPIER A4 250G BIAŁY lub podobny","opakowanie 20 arkuszy",{"$f":"IF('Załącznik 1 - Formularz Oferty'!$V$57=TRUE,(VLOOKUP(C50,'Załącznik 1 - Formularz Oferty'!$C$53:$G$83,5,0)),0)","v":0},7,0,null,null,null,null,1,0,6,0]
[null,30,"Papier ozdobny - - kość słoniowa 250 g/m3 20 arkuszy","papier wizytówkowy/ozdobny np..R20 TOP STYLE TRAD PAP A4 250G KOŚĆ SŁONIOWA lub podobny","opakowanie 20 arkuszy",{"$f":"IF('Załącznik 1 - Formularz Oferty'!$V$57=TRUE,(VLOOKUP(C51,'Załącznik 1 - Formularz Oferty'!$C$53:$G$83,5,0)),0)","v":0},11,0,null,null,null,null,2,0,6,0,null,null,null,null,3,{"$f":"U51*F51","v":0}]
[null,null,null,null,null,null,null,null,"ŁĄCZNA CENA NETTO DLA ENEA Centrum Sp. z o.o. ",{"$f":"SUM(J22:J51)","v":0},"ŁĄCZNA CENA NETTO DLA ENEA S.A.",{"$f":"SUM(L22:L51)","v":0},"ŁĄCZNA CENA NETTO DLA ENEA Operator sp. z.o.o.",{"$f":"SUM(N22:N51)","v":0},"ŁĄCZNA CENA NETTO DLA ENEA Serwis Sp. z o.o.",{"$f":"SUM(P22:P51)","v":0},"ŁĄCZNA CENA NETTO DLA ENEA Pomiary sp. z.o.o.",{"$f":"SUM(R22:R51)","v":0},"ŁĄCZNA CENA NETTO DLA ENEA Logistyka Sp. z o.o.",{"$f":"SUM(T22:T51)","v":0},"ŁĄCZNA CENA NETTO DLA ENEA Oświetlenie sp. z.o.o.",{"$f":"SUM(V22:V51)","v":0}]
[]
[]
[]
[null,null,"miejscowość i data",null,null,"Pieczęć imienna i podpis przedstawiciela(i) Wykonawcy"]

{"sheet":"Załącznik 5-F.O. dla Zadania 4","index":9,"n_rows":56,"n_cols":20,"rows_kept":56,"cut":false,"hidden":false,"merged":[[55,5,55,7],[18,1,18,2],[0,1,0,7],[2,1,2,7],[4,1,4,7],[8,1,8,7],[11,1,11,7],[14,1,14,7],[18,3,18,5],[54,2,54,3],[54,4,54,7]]}
[null,"Oznaczenie sprawy:  1400/DW00/ZU/KZ/2021/0000061751"]
[]
[null,"ZAŁĄCZNIK NR 5 - FORMULARZ OFERTY DLA ZADANIA 4 - Dostawa papieru do wydruku – Bydgoszcz + woj. kujawsko-pomorskie i Chojnice + woj. pomorskie."]
[]
[]
[null,null,"(pieczęć wykonawcy)"]
[]
[null,"Ja, niżej podpisany (My niżej podpisani):"]
[]
[]
[null,"działając w imieniu i na rzecz:"]
[]
[]
[null,"Składam(y) ofertę na wykonanie zamówienia, którego przedmiotem jest:"]
[null,"Dostawa papieru do wydruku dla spółek GK ENEA"]
[]
[null,"Zadanie 4:  Dostawa papieru do wydruku - Bydgoszcz + woj. Kujawsko-pomorskie i Chojnice + woj. pomorskie "]
[]
[null,"ŁĄCZNA CENA NETTO OFERTY DLA ZADANIA 4:",null,{"$f":"SUM(H22:H513)","v":0}]
[]
[null,"LP","Nazwa produktu","Opis szczegółowy","Jednostka ","cena jednostkowa netto","Ilość","Wartość","ENEA Centrum Sp. z o.o. - Szacowana ilość","ŁĄCZNA CENA NETTO DLA ENEA Centrum Sp. z o.o. ","ENEA S.A. - Szacowana ilość","ŁĄCZNA CENA NETTO DLA ENEA S.A. ","ENEA Operator Sp. z o.o. - Szacowana ilość","ŁĄCZNA CENA NETTO DLA ENEA Operator Sp. z o.o. ","ENEA Serwis Sp. z o.o. - Szacowana ilość","ŁĄCZNA CENA NETTO DLA ENEA Serwis Sp. z o.o. ","ENEA Pomiary Sp. z o.o. - Szacowana ilość","ŁĄCZNA CENA NETTO DLA ENEA Pomiary Sp. z o.o. ","ENEA Oświetlenie Sp. z o.o. - Szacowana ilość","ŁĄCZNA CENA NETTO DLA ENEA Oświetlenie Sp. z o.o. "]
[null,1,"PAPIER A4 80G, BIAŁOŚĆ 166 CIE","Papier uniwersalny 80 g/m2 klasy A, Przeznaczony do kopiarek, drukarek laserowych i atramentowych oraz do wydruków kolorowych, Białość: 166 wg skali białości CIE. Format A4","karton/5 ryz po 500 arkuszy",{"$f":"IF('Załącznik 1 - Formularz Oferty'!$V$58=TRUE,(VLOOKUP(C22,'Załącznik 1 - Formularz Oferty'!$C$53:$G$83,5,0)),0)","v":0},{"$f":"I22+K22+M22+O22+Q22+S22","v":305},{"$f":"G22*F22","v":0},8,{"$f":"I22*F22","v":0},4,{"$f":"K22*F22","v":0},283,{"$f":"M22*F22","v":0},6,{"$f":"O22*F22","v":0},4,{"$f":"Q22*F22","v":0}]
[null,2,"PAPIER A4 80G, BIAŁOŚĆ 146 CIE","Papier uniwersalny 80 g/m² klasy C+, Przeznaczony do drukarek laserowych,kopiarek oraz faksów. Białość: 146 wg skali białości CIE. Format A4","karton/5 ryz po 500 arkuszy",{"$f":"IF('Załącznik 1 - Formularz Oferty'!$V$58=TRUE,(VLOOKUP(C23,'Załącznik 1 - Formularz Oferty'!$C$53:$G$83,5,0)),0)","v":0},{"$f":"I23+K23+M23+O23+Q23+S23","v":1166},{"$f":"G23*F23","v":0},467,{"$f":"I23*F23","v":0},17,{"$f":"K23*F23","v":0},634,{"$f":"M23*F23","v":0},6,{"$f":"O23*F23","v":0},32,{"$f":"Q23*F23","v":0},10,{"$f":"S23*F23","v":0}]
[null,3,"PAPIER UNIWERSALNY A5 80G BIAŁY, BIAŁOŚĆ 146 CIE","Papier uniwersalny 80 g/m² klasy C+. Przeznaczony do drukarek laserowych, kopiarek oraz faksów. Białość: 146 wg skali białości CIE. Format A5","ryza/500 arkuszy",{"$f":"IF('Załącznik 1 - Formularz Oferty'!$V$58=TRUE,(VLOOKUP(C24,'Załącznik 1 - Formularz Oferty'!$C$53:$G$83,5,0)),0)","v":0},24,0,null,null,null,null,17,0,6,0,1,0]
[null,4,"PAPIER A3 80G, BIAŁOŚĆ 146 CIE","Papier uniwersalny 80 g/m² klasy C+. Przeznaczony do drukarek laserowych, kopiarek oraz faksów. Białość: 146 wg skali białości CIE. Format A3","ryza/500 arkuszy",{"$f":"IF('Załącznik 1 - Formularz Oferty'!$V$58=TRUE,(VLOOKUP(C25,'Załącznik 1 - Formularz Oferty'!$C$53:$G$83,5,0)),0)","v":0},137,0,14,{"$f":"I25*F25","v":0},null,null,110,0,6,0,4,0,3,{"$f":"S25*F25","v":0}]
[null,5,"PAPIER SATYNOWY A4 160G BIAŁY, BIAŁOŚC 168 CIE","Satynowany,biały papier przeznaczony do pełnokolorowych wydruków, nadaje się do maszyn cyfrowych,prezentacji, broszur, raportów oraz materiałów informacyjnych. Białość: 168 wg skali białości CIE. Gramatura 160 g//m². Format A4","ryza/250 arkuszy",{"$f":"IF('Załącznik 1 - Formularz Oferty'!$V$58=TRUE,(VLOOKUP(C26,'Załącznik 1 - Formularz Oferty'!$C$53:$G$83,5,0)),0)","v":0},12,0,null,null,null,null,6,0,6,0]
[null,6,"PAPIER DO DRUKAREK IGŁOWYCH  240MM 1+1 O/K","Papier do drukarek igłowych, wielowarstwowy o gramaturze 53-57 g/m², wytwarzany z papieru samokopiującego, Liczba warstw 1+1. Biały oryginał i różowa kopia, posiada nadruk oryginał/kopia. Format: długość 12''= 305 mm, szerokość 240 mm","karton/900 składek",{"$f":"IF('Załącznik 1 - Formularz Oferty'!$V$58=TRUE,(VLOOKUP(C27,'Załącznik 1 - Formularz Oferty'!$C$53:$G$83,5,0)),0)","v":0},6,0,null,null,null,null,null,null,6,0]
[null,7,"PAPIER DO DRUKAREK IGŁOWYCH 240MM 1+2 O/K","Papier do drukarek igłowych, wielowarstwowy o gramaturze 53-57 g/m²,Liczba warstw 1+2. Biały oryginał, żółta i różowa kopia, posiada nadruk oryginał/kopia. Format: długość 12''= 305 mm, szerokość 240 mm","karton/600 składek",{"$f":"IF('Załącznik 1 - Formularz Oferty'!$V$58=TRUE,(VLOOKUP(C28,'Załącznik 1 - Formularz Oferty'!$C$53:$G$83,5,0)),0)","v":0},6,0,null,null,null,null,null,null,6,0]
[null,8,"PAPIER DO DRUKAREK IGŁOWYCH 240MM 1+3 O/K","Papier do drukarek igłowych,  wielowarstwowy o gramaturze 53-57 g/m², wytwarzany z papieru samokopiującego.Liczba warstw 1+3. Biały oryginał, żółta, zielona i różowa kopia, posiada nadruk oryginał/kopia. Format: długość 12''= 305 mm, szerokość 240 mm","karton/450 składek",{"$f":"IF('Załącznik 1 - Formularz Oferty'!$V$58=TRUE,(VLOOKUP(C29,'Załącznik 1 - Formularz Oferty'!$C$53:$G$83,5,0)),0)","v":0},6,0,null,null,null,null,null,null,6,0]
[null,9,"PAPIER DO DRUKAREK IGŁOWYCH 240MM 1+4","Papier do drukarek igłowych,  wielowarstwowy o gramaturze 53-57 g/m², wytwarzany z papieru samokopiującego.Kolory kopii:1+4: żółta, zielona, żółta, różowa. Długość: 12'' = 305mm; Szerokość: 240(mm). Liczba warstw 1+4","karton/350 składek",{"$f":"IF('Załącznik 1 - Formularz Oferty'!$V$58=TRUE,(VLOOKUP(C30,'Załącznik 1 - Formularz Oferty'!$C$53:$G$83,5,0)),0)","v":0},6,0,null,null,null,null,null,null,6,0]
[null,10,"PAPIER DO PLOTERÓW 297MMX50M 90G","Uniwersalny papier do ploterów atramentowych. Biały, niepowlekany. Przeznaczony do wydruków monochromatycznych i kolorowych. Długość: 50 m. Średnica tulejki: 50 mm","opakowanie/ 2 rolki",{"$f":"IF('Załącznik 1 - Formularz Oferty'!$V$58=TRUE,(VLOOKUP(C31,'Załącznik 1 - Formularz Oferty'!$C$53:$G$83,5,0)),0)","v":0},7,0,null,null,null,null,1,{"$f":"M31*F31","v":0},6,0]
[null,11,"PAPIER DO PLOTERÓW 420MMX50M 80G","Uniwersalny papier do ploterów atramentowych. Biały, niepowlekany. Przeznaczony do wydruków monochromatycznych i kolorowych. Gramatura 80 g/m². Szerokość 420 mm. Długość 50 m. Średnica gilzy: 50 mm","opakowanie/ 2 rolki",{"$f":"IF('Załącznik 1 - Formularz Oferty'!$V$58=TRUE,(VLOOKUP(C32,'Załącznik 1 - Formularz Oferty'!$C$53:$G$83,5,0)),0)","v":0},8,0,null,null,null,null,2,0,6,0]
[null,12,"PAPIER DO PLOTERÓW 594MMX50M 80G","Uniwersalny papier do ploterów atramentowych. Biały, niepowlekany. Przeznaczony do wydruków monochromatycznych i kolorowych. Gramatura 80 g/m². Szerokość 594 mm. Długość 50 m. Średnica gilzy: 50 mm","1 rolka",{"$f":"IF('Załącznik 1 - Formularz Oferty'!$V$58=TRUE,(VLOOKUP(C33,'Załącznik 1 - Formularz Oferty'!$C$53:$G$83,5,0)),0)","v":0},7,0,null,null,null,null,1,0,6,0]
[null,13,"PAPIER DO PLOTERÓW 610MMX50M 80G","Uniwersalny papier do ploterów atramentowych. Biały, niepowlekany. Przeznaczony do wydruków monochromatycznych i kolorowych. Gramatura 80 g/m². Szerokość 610 mm. Długość 50 m.Średnica gilzy: 50 mm","1 rolka",{"$f":"IF('Załącznik 1 - Formularz Oferty'!$V$58=TRUE,(VLOOKUP(C34,'Załącznik 1 - Formularz Oferty'!$C$53:$G$83,5,0)),0)","v":0},7,0,null,null,null,null,1,0,6,0]
[null,14,"PAPIER DO PLOTERÓW 841MMX50M 80G","Uniwersalny papier do ploterów atramentowych. Biały, niepowlekany. Przeznaczony do wydruków monochromatycznych i kolorowych. Gramatura 80 g/m². Szerokość 841 mm. Długość 50 m. Średnica gilzy: 50 mm","1 rolka",{"$f":"IF('Załącznik 1 - Formularz Oferty'!$V$58=TRUE,(VLOOKUP(C35,'Załącznik 1 - Formularz Oferty'!$C$53:$G$83,5,0)),0)","v":0},7,0,null,null,null,null,1,0,6,0]
[null,15,"PAPIER DO PLOTERÓW 914MMX50M 80G","Uniwersalny papier do ploterów atramentowych. Biały, niepowlekany. Przeznaczony do wydruków monochromatycznych i kolorowych. Gramatura 80 g/m². Szerokość 914 mm. Długość 50 m. Średnica gilzy: 50 mm","1 rolka",{"$f":"IF('Załącznik 1 - Formularz Oferty'!$V$58=TRUE,(VLOOKUP(C36,'Załącznik 1 - Formularz Oferty'!$C$53:$G$83,5,0)),0)","v":0},7,0,null,null,null,null,1,0,6,0]
[null,16,"ROLKA PAPIEROWA 76MMX25M","Rolka papierowa (offsetowa) Gwarancja: 5 lat na zdolność kopiowania papieru i 25 lat na trwałość kopii. Wymiary: 76 mm x dl. 25m","opakowanie/10 sztuk",{"$f":"IF('Załącznik 1 - Formularz Oferty'!$V$58=TRUE,(VLOOKUP(C37,'Załącznik 1 - Formularz Oferty'!$C$53:$G$83,5,0)),0)","v":0},7,{"$f":"G37*F37","v":0},null,null,null,null,1,0,6,0]
[null,17,"PELIKAN KALKA OŁÓWKOWA NIEBIESKA A4","Kalka przebitkowa, maszynowa i do pisania odręcznego. Samoregenerująca się. Format A4. Kolor niebieski","opakowanie/10 arkuszy",{"$f":"IF('Załącznik 1 - Formularz Oferty'!$V$58=TRUE,(VLOOKUP(C38,'Załącznik 1 - Formularz Oferty'!$C$53:$G$83,5,0)),0)","v":0},7,0,null,null,null,null,1,0,6,0]
[null,18,"PAPIER FOTOGRAFICZNY,  A4,  180 g","Szybkoschnący papier fotograficzny do wydruku profesjonalnej jakości fotografii. Gładkie, lśniące wykończenie zapewnia wyraźne zdjęcia o żywych kolorach. Format A4, 180 g","ryza/50 arkuszy",{"$f":"IF('Załącznik 1 - Formularz Oferty'!$V$58=TRUE,(VLOOKUP(C39,'Załącznik 1 - Formularz Oferty'!$C$53:$G$83,5,0)),0)","v":0},94,0,null,null,null,null,88,0,6,0]
[null,19,"PAPIER FOTOGRAFICZNY, A4, 200G, ","Szybkoschnący papier fotograficzny do wydruku profesjonalnej jakości fotografii. Gładkie, lśniące wykończenie zapewnia wyraźne zdjęcia o żywych kolorach. Format A4, 200g","opakowanie/25 arkuszy",{"$f":"IF('Załącznik 1 - Formularz Oferty'!$V$58=TRUE,(VLOOKUP(C40,'Załącznik 1 - Formularz Oferty'!$C$53:$G$83,5,0)),0)","v":0},7,0,null,null,null,null,1,0,6,0]
[null,20,"PAPIER A4 160G, BIAŁOŚĆ 169 CIE","Papier przeznaczony do dwustronnych wydruków laserowych i atramentowych. Zapobiega przesiąkaniu druku. Białość: 169 wg skali białości CIE 160 g/m². Format A4","ryza/250 arkuszy",{"$f":"IF('Załącznik 1 - Formularz Oferty'!$V$58=TRUE,(VLOOKUP(C41,'Załącznik 1 - Formularz Oferty'!$C$53:$G$83,5,0)),0)","v":0},7,0,null,null,null,null,1,0,6,0]
[null,21,"OKŁADKI DO DYPLOMÓW GRANAT, ROZMIAR 220 X 310 MM","Okładki do certyfikatów, dyplomów, listów gratulacyjnych. Twarda oprawa o fakturze skóry. Posiadają ozdobny złoty sznureczek. Rozmiar okładki: 220 x 310 mm. Kolor granatowy","opakowanie/10 sztuk",{"$f":"IF('Załącznik 1 - Formularz Oferty'!$V$58=TRUE,(VLOOKUP(C42,'Załącznik 1 - Formularz Oferty'!$C$53:$G$83,5,0)),0)","v":0},56,0,null,null,null,null,49,0,6,0,1,{"$f":"Q42*F42","v":0}]
[null,22,"PAPIER INTENSYWNY NIEBIESKI A4, 80 g","Papier uniwersalny 80 g/m2, Przeznaczony do kopiarek, drukarek laserowych i atramentowych. Kolor intensywny niebieski. Format A4","ryza/500 arkuszy",{"$f":"IF('Załącznik 1 - Formularz Oferty'!$V$58=TRUE,(VLOOKUP(C43,'Załącznik 1 - Formularz Oferty'!$C$53:$G$83,5,0)),0)","v":0},9,0,null,null,null,null,3,0,6,0]
[null,23,"PAPIER INTENSYWNY ZIELONY A4, 80 g","Papier uniwersalny 80 g/m2, Przeznaczony do kopiarek, drukarek laserowych i atramentowych. Kolor intensywny zielony. Format A4","ryza/500 arkuszy",{"$f":"IF('Załącznik 1 - Formularz Oferty'!$V$58=TRUE,(VLOOKUP(C44,'Załącznik 1 - Formularz Oferty'!$C$53:$G$83,5,0)),0)","v":0},7,0,null,null,null,null,1,0,6,0]
[null,24,"PAPIER INTENSYWNY ŻÓŁTY, A4, 80 g","Papier uniwersalny 80 g/m2, Przeznaczony do kopiarek, drukarek laserowych i atramentowych. Kolor intensywny żółty. Format A4","ryza/500 arkuszy",{"$f":"IF('Załącznik 1 - Formularz Oferty'!$V$58=TRUE,(VLOOKUP(C45,'Załącznik 1 - Formularz Oferty'!$C$53:$G$83,5,0)),0)","v":0},7,0,null,null,null,null,1,0,6,0]
[null,25,"PAPIER INTENSYWNY CZERWONY A4, 80g","Papier uniwersalny 80 g/m2, Przeznaczony do kopiarek, drukarek laserowych i atramentowych. Kolor intensywny czerwony. Format A4","ryza/500 arkuszy",{"$f":"IF('Załącznik 1 - Formularz Oferty'!$V$58=TRUE,(VLOOKUP(C46,'Załącznik 1 - Formularz Oferty'!$C$53:$G$83,5,0)),0)","v":0},11,0,null,null,null,null,5,0,6,0]
[null,26,"PAPIER MIX KOLORÓW A4, 80 g","Papier uniwersalny 80 g/m2, Przeznaczony do kopiarek, drukarek laserowych i atramentowych. Mix kolorów. Format A4","ryza/500 arkuszy",{"$f":"IF('Załącznik 1 - Formularz Oferty'!$V$58=TRUE,(VLOOKUP(C47,'Załącznik 1 - Formularz Oferty'!$C$53:$G$83,5,0)),0)","v":0},10,0,null,null,null,null,1,0,6,0,3,{"$f":"Q47*F47","v":0}]
[null,27,"PAPIER A4 100G, BIAŁOŚĆ 168 CIE","Papier uniwersalny 100 g/m2 klasy A, Przeznaczony do kopiarek, drukarek laserowych i atramentowych oraz do wydruków kolorowych, Białość: 168 wg skali białości CIE. Format A4","ryza/ 250 arkuszy",{"$f":"IF('Załącznik 1 - Formularz Oferty'!$V$58=TRUE,(VLOOKUP(C48,'Załącznik 1 - Formularz Oferty'!$C$53:$G$83,5,0)),0)","v":0},11,0,null,null,null,null,5,0,6,0]
[null,28,"PAPIER DO DRUKAREK WIELKOFORMATOWYCH,  ROLKA  A1 594/175, 80 g, gilza 76","Papier standard, biały. Przeznaczony do wydruków monochromatycznych . Gramatura 80 g/m². Szerokość 594 mm. Długość 175 m. Średnica gilzy: 76 mm. Format A1 rolka","rolka",{"$f":"IF('Załącznik 1 - Formularz Oferty'!$V$58=TRUE,(VLOOKUP(C49,'Załącznik 1 - Formularz Oferty'!$C$53:$G$83,5,0)),0)","v":0},8,0,null,null,null,null,2,0,6,0]
[null,29,"Papier ozdobny – biały 250 g/m3   20 arkuszy","papier wizytówkowy/ozdobny - np.. R20 TOP STYLE TRAD PAPIER A4 250G BIAŁY lub podobny","opakowanie 20 arkuszy",{"$f":"IF('Załącznik 1 - Formularz Oferty'!$V$58=TRUE,(VLOOKUP(C50,'Załącznik 1 - Formularz Oferty'!$C$53:$G$83,5,0)),0)","v":0},7,0,null,null,null,null,1,0,6,0]
[null,30,"Papier ozdobny - - kość słoniowa 250 g/m3 20 arkuszy","papier wizytówkowy/ozdobny np..R20 TOP STYLE TRAD PAP A4 250G KOŚĆ SŁONIOWA lub podobny","opakowanie 20 arkuszy",{"$f":"IF('Załącznik 1 - Formularz Oferty'!$V$58=TRUE,(VLOOKUP(C51,'Załącznik 1 - Formularz Oferty'!$C$53:$G$83,5,0)),0)","v":0},8,0,null,null,null,null,2,0,6,0]
[null,null,null,null,null,null,null,null,"ŁĄCZNA CENA NETTO DLA ENEA Centrum Sp. z o.o. ",{"$f":"SUM(J22:J51)","v":0},"ŁĄCZNA CENA NETTO DLA ENEA S.A.",{"$f":"SUM(L22:L51)","v":0},"ŁĄCZNA CENA NETTO DLA ENEA Operator sp. z.o.o.",{"$f":"SUM(N22:N51)","v":0},"ŁĄCZNA CENA NETTO DLA ENEA Serwis Sp. z o.o.",{"$f":"SUM(P22:P51)","v":0},"ŁĄCZNA CENA NETTO DLA ENEA Pomiary sp. z.o.o.",{"$f":"SUM(R22:R51)","v":0},"ŁĄCZNA CENA NETTO DLA ENEA Oswietlenie Sp. z o.o.",{"$f":"SUM(T22:T51)","v":0}]
[]
[]
[]
[null,null,"miejscowość i data",null,null,"Pieczęć imienna i podpis przedstawiciela(i) Wykonawcy"]

{"sheet":"Załącznik 6-F.O. dla Zadania 5","index":10,"n_rows":38,"n_cols":16,"rows_kept":38,"cut":false,"hidden":false,"merged":[[37,5,37,7],[18,1,18,2],[0,1,0,7],[2,1,2,7],[4,1,4,7],[8,1,8,7],[11,1,11,7],[14,1,14,7],[18,3,18,5],[36,2,36,3],[36,4,36,7]]}
[null,"Oznaczenie sprawy:  1400/DW00/ZU/KZ/2021/0000061751"]
[]
[null,"ZAŁĄCZNIK NR 6 - FORMULARZ OFERTY DLA ZADANIA 5 - Dostawa papieru do wydruku – Białystok."]
[]
[]
[null,null,"(pieczęć wykonawcy)"]
[]
[null,"Ja, niżej podpisany (My niżej podpisani):"]
[]
[]
[null,"działając w imieniu i na rzecz:"]
[]
[]
[null,"Składam(y) ofertę na wykonanie zamówienia, którego przedmiotem jest:"]
[null,"Dostawa papieru do wydruku dla spółek GK ENEA"]
[]
[null,"Zadanie 5:  Dostawa papieru do wydruku - Białystok"]
[]
[null,"ŁĄCZNA CENA NETTO OFERTY DLA ZADANIA 5:",null,{"$f":"SUM(H22:H495)","v":0}]
[]
[null,"LP","Nazwa produktu","Opis szczegółowy","Jednostka ","cena jednostkowa netto","Ilość","Wartość","ENEA Centrum Sp. z o.o. - Szacowana ilość","ŁĄCZNA CENA NETTO DLA ENEA Centrum Sp. z o.o. ","ENEA Trading Sp. z o.o. - Szacowana ilość","ŁĄCZNA CENA NETTO DLA ENEA Trading Sp. z o.o. ","ENEA Logistyka Sp. z o.o. - Szacowana ilość","ŁĄCZNA CENA NETTO DLA ENEA Logistyka Sp. z o.o. ","ENEA Ciepło Sp. z o.o. - Szacowana ilość","ŁĄCZNA CENA NETTO DLA ENEA Ciepło Sp. z o.o. "]
[null,1,"PAPIER A4 80G, BIAŁOŚĆ 166 CIE","Papier uniwersalny 80 g/m2 klasy A, Przeznaczony do kopiarek, drukarek laserowych i atramentowych oraz do wydruków kolorowych, Białość: 166 wg skali białości CIE. Format A4","karton/5 ryz po 500 arkuszy",{"$f":"IF('Załącznik 1 - Formularz Oferty'!$V$59=TRUE,(VLOOKUP(C22,'Załącznik 1 - Formularz Oferty'!$C$53:$G$83,5,0)),0)","v":0},{"$f":"I22+K22+M22+O22","v":183},{"$f":"G22*F22","v":0},null,null,5,{"$f":"K22*F22","v":0},null,null,178,{"$f":"O22*F22","v":0}]
[null,2,"PAPIER A4 80G, BIAŁOŚĆ 146 CIE","Papier uniwersalny 80 g/m² klasy C+, Przeznaczony do drukarek laserowych,kopiarek oraz faksów. Białość: 146 wg skali białości CIE. Format A4","karton/5 ryz po 500 arkuszy",{"$f":"IF('Załącznik 1 - Formularz Oferty'!$V$59=TRUE,(VLOOKUP(C23,'Załącznik 1 - Formularz Oferty'!$C$53:$G$83,5,0)),0)","v":0},{"$f":"I23+K23+M23+O23","v":111},0,10,{"$f":"I23*F23","v":0},5,{"$f":"K23*F23","v":0},20,{"$f":"M23*F23","v":0},76,{"$f":"O23*F23","v":0}]
[null,3,"PAPIER UNIWERSALNY A5 80G BIAŁY, BIAŁOŚĆ 146 CIE","Papier uniwersalny 80 g/m² klasy C+. Przeznaczony do drukarek laserowych, kopiarek oraz faksów. Białość: 146 wg skali białości CIE. Format A5","ryza/500 arkuszy",{"$f":"IF('Załącznik 1 - Formularz Oferty'!$V$59=TRUE,(VLOOKUP(C24,'Załącznik 1 - Formularz Oferty'!$C$53:$G$83,5,0)),0)","v":0},5,0,null,null,5,0]
[null,4,"PAPIER A3 80G, BIAŁOŚĆ 146 CIE","Papier uniwersalny 80 g/m² klasy C+. Przeznaczony do drukarek laserowych, kopiarek oraz faksów. Białość: 146 wg skali białości CIE. Format A3","ryza/500 arkuszy",{"$f":"IF('Załącznik 1 - Formularz Oferty'!$V$59=TRUE,(VLOOKUP(C25,'Załącznik 1 - Formularz Oferty'!$C$53:$G$83,5,0)),0)","v":0},27,0,null,null,null,null,null,null,27,{"$f":"O25*F25","v":0}]
[null,5,"PAPIER SATYNOWY A4 160G BIAŁY, BIAŁOŚC 168 CIE","Satynowany,biały papier przeznaczony do pełnokolorowych wydruków, nadaje się do maszyn cyfrowych,prezentacji, broszur, raportów oraz materiałów informacyjnych. Białość: 168 wg skali białości CIE. Gramatura 160 g//m². Format A4","ryza/250 arkuszy",{"$f":"IF('Załącznik 1 - Formularz Oferty'!$V$59=TRUE,(VLOOKUP(C26,'Załącznik 1 - Formularz Oferty'!$C$53:$G$83,5,0)),0)","v":0},6,0,null,null,null,null,null,null,6,0]
[null,6,"PAPIER DO PLOTERÓW 914MMX50M 80G","Uniwersalny papier do ploterów atramentowych. Biały, niepowlekany. Przeznaczony do wydruków monochromatycznych i kolorowych. Gramatura 80 g/m². Szerokość 914 mm. Długość 50 m. Średnica gilzy: 50 mm","1 rolka",{"$f":"IF('Załącznik 1 - Formularz Oferty'!$V$59=TRUE,(VLOOKUP(C27,'Załącznik 1 - Formularz Oferty'!$C$53:$G$83,5,0)),0)","v":0},3,0,null,null,null,null,null,null,3,0]
[null,7,"PELIKAN KALKA OŁÓWKOWA NIEBIESKA A4","Kalka przebitkowa, maszynowa i do pisania odręcznego. Samoregenerująca się. Format A4. Kolor niebieski","opakowanie/10 arkuszy",{"$f":"IF('Załącznik 1 - Formularz Oferty'!$V$59=TRUE,(VLOOKUP(C28,'Załącznik 1 - Formularz Oferty'!$C$53:$G$83,5,0)),0)","v":0},4,{"$f":"G28*F28","v":0},null,null,null,null,null,null,4,0]
[null,8,"PAPIER A4 160G, BIAŁOŚĆ 169 CIE","Papier przeznaczony do dwustronnych wydruków laserowych i atramentowych. Zapobiega przesiąkaniu druku. Białość: 169 wg skali białości CIE 160 g/m². Format A4","ryza/250 arkuszy",{"$f":"IF('Załącznik 1 - Formularz Oferty'!$V$59=TRUE,(VLOOKUP(C29,'Załącznik 1 - Formularz Oferty'!$C$53:$G$83,5,0)),0)","v":0},6,0,null,null,2,{"$f":"K29*F29","v":0},null,null,4,0]
[null,9,"PAPIER MIX KOLORÓW A4, 80 g","Papier uniwersalny 80 g/m2, Przeznaczony do kopiarek, drukarek laserowych i atramentowych. Mix kolorów. Format A4","ryza/500 arkuszy",{"$f":"IF('Załącznik 1 - Formularz Oferty'!$V$59=TRUE,(VLOOKUP(C30,'Załącznik 1 - Formularz Oferty'!$C$53:$G$83,5,0)),0)","v":0},5,0,null,null,null,null,null,null,5,0]
[null,10,"PAPIER DO DRUKAREK WIELKOFORMATOWYCH,  ROLKA  A1 594/175, 80 g, gilza 76","Papier standard, biały. Przeznaczony do wydruków monochromatycznych . Gramatura 80 g/m². Szerokość 594 mm. Długość 175 m. Średnica gilzy: 76 mm. Format A1 rolka","rolka",{"$f":"IF('Załącznik 1 - Formularz Oferty'!$V$59=TRUE,(VLOOKUP(C31,'Załącznik 1 - Formularz Oferty'!$C$53:$G$83,5,0)),0)","v":0},3,0,null,null,null,null,null,null,3,0]
[null,11,"Papier ozdobny – biały 250 g/m3   20 arkuszy","papier wizytówkowy/ozdobny - np.. R20 TOP STYLE TRAD PAPIER A4 250G BIAŁY lub podobny","opakowanie 20 arkuszy",{"$f":"IF('Załącznik 1 - Formularz Oferty'!$V$59=TRUE,(VLOOKUP(C32,'Załącznik 1 - Formularz Oferty'!$C$53:$G$83,5,0)),0)","v":0},1,0,null,null,null,null,null,null,1,0]
[null,12,"Papier ozdobny - - kość słoniowa 250 g/m3 20 arkuszy","papier wizytówkowy/ozdobny np..R20 TOP STYLE TRAD PAP A4 250G KOŚĆ SŁONIOWA lub podobny","opakowanie 20 arkuszy",{"$f":"IF('Załącznik 1 - Formularz Oferty'!$V$59=TRUE,(VLOOKUP(C33,'Załącznik 1 - Formularz Oferty'!$C$53:$G$83,5,0)),0)","v":0},1,0,null,null,null,null,null,null,1,0]
[null,null,null,null,null,null,null,null,"ŁĄCZNA CENA NETTO DLA ENEA Centrum Sp. z o.o. ",{"$f":"SUM(J22:J33)","v":0},"ŁĄCZNA CENA NETTO DLA ENEA Trading Sp. z o.o. ",{"$f":"SUM(L22:L33)","v":0},"ŁĄCZNA CENA NETTO DLA ENEA Logistyka Sp. z o.o. ",{"$f":"SUM(N22:N33)","v":0},"ŁĄCZNA CENA NETTO DLA ENEA Ciepło Sp. z o.o. ",{"$f":"SUM(P22:P33)","v":0}]
[]
[]
[]
[null,null,"miejscowość i data",null,null,"Pieczęć imienna i podpis przedstawiciela(i) Wykonawcy"]

{"sheet":"Załącznik 7-F.O. dla Zadania 6","index":11,"n_rows":47,"n_cols":18,"rows_kept":47,"cut":false,"hidden":false,"merged":[[46,5,46,7],[18,1,18,2],[0,1,0,7],[2,1,2,7],[4,1,4,7],[8,1,8,7],[11,1,11,7],[14,1,14,7],[18,3,18,5],[45,2,45,3],[45,4,45,7]]}
[null,"Oznaczenie sprawy:  1400/DW00/ZU/KZ/2021/0000061751"]
[]
[null,"ZAŁĄCZNIK NR 7 - FORMULARZ OFERTY DLA ZADANIA 6 - Dostawa papieru do wydruku – Połaniec."]
[]
[]
[null,null,"(pieczęć wykonawcy)"]
[]
[null,"Ja, niżej podpisany (My niżej podpisani):"]
[]
[]
[null,"działając w imieniu i na rzecz:"]
[]
[]
[null,"Składam(y) ofertę na wykonanie zamówienia, którego przedmiotem jest:"]
[null,"Dostawa papieru do wydruku dla spółek GK ENEA"]
[]
[null,"Zadanie 6:  Dostawa papieru do wydruku - Połaniec"]
[]
[null,"ŁĄCZNA CENA NETTO OFERTY DLA ZADANIA 6:",null,{"$f":"SUM(H22:H504)","v":0}]
[]
[null,"LP","Nazwa produktu","Opis szczegółowy","Jednostka ","cena jednostkowa netto","Ilość","Wartość","ENEA Centrum Sp. z o.o. - Szacowana ilość","ŁĄCZNA CENA NETTO DLA ENEA Centrum Sp. z o.o. ","ENEA Elektrownia Połaniec S.A. - Szacowana ilość","ŁĄCZNA CENA NETTO DLA ENEA Elektrownia Połaniec S.A. ","ENEA Bioenergia Sp. z o.o. - Szacowana ilość","ŁĄCZNA CENA NETTO DLA ENEA Bioenergia Sp. z o.o. ","ENEA Trading Sp. z o.o. - Szacowana ilość","ŁĄCZNA CENA NETTO DLA ENEA Trading Sp. z o.o. ","ENEA Połaniec Serwis Sp. z o.o. - Szacowana ilość","ŁĄCZNA CENA NETTO DLA ENEA Połaniec Serwis Sp. z o.o. "]
[null,1,"PAPIER A4 80G, BIAŁOŚĆ 166 CIE","Papier uniwersalny 80 g/m2 klasy A, Przeznaczony do kopiarek, drukarek laserowych i atramentowych oraz do wydruków kolorowych, Białość: 166 wg skali białości CIE. Format A4","karton/5 ryz po 500 arkuszy",{"$f":"IF('Załącznik 1 - Formularz Oferty'!$V$60=TRUE,(VLOOKUP(C22,'Załącznik 1 - Formularz Oferty'!$C$53:$G$83,5,0)),0)","v":0},{"$f":"+I22+K22+M22+O22+Q22","v":459},{"$f":"G22*F22","v":0},null,null,342,{"$f":"K22*F22","v":0},100,{"$f":"M22*F22","v":0},7,{"$f":"O22*F22","v":0},10,{"$f":"Q22*F22","v":0}]
[null,2,"PAPIER A4 80G, BIAŁOŚĆ 146 CIE","Papier uniwersalny 80 g/m² klasy C+, Przeznaczony do drukarek laserowych,kopiarek oraz faksów. Białość: 146 wg skali białości CIE. Format A4","karton/5 ryz po 500 arkuszy",{"$f":"IF('Załącznik 1 - Formularz Oferty'!$V$60=TRUE,(VLOOKUP(C23,'Załącznik 1 - Formularz Oferty'!$C$53:$G$83,5,0)),0)","v":0},{"$f":"+I23+K23+M23+O23+Q23","v":246},{"$f":"G23*F23","v":0},24,{"$f":"I23*F23","v":0},15,{"$f":"K23*F23","v":0},80,{"$f":"M23*F23","v":0},7,{"$f":"O23*F23","v":0},120,{"$f":"Q23*F23","v":0}]
[null,3,"PAPIER UNIWERSALNY A5 80G BIAŁY, BIAŁOŚĆ 146 CIE","Papier uniwersalny 80 g/m² klasy C+. Przeznaczony do drukarek laserowych, kopiarek oraz faksów. Białość: 146 wg skali białości CIE. Format A5","ryza/500 arkuszy",{"$f":"IF('Załącznik 1 - Formularz Oferty'!$V$60=TRUE,(VLOOKUP(C24,'Załącznik 1 - Formularz Oferty'!$C$53:$G$83,5,0)),0)","v":0},7,0,null,null,null,null,null,null,7,0]
[null,4,"PAPIER A3 80G, BIAŁOŚĆ 146 CIE","Papier uniwersalny 80 g/m² klasy C+. Przeznaczony do drukarek laserowych, kopiarek oraz faksów. Białość: 146 wg skali białości CIE. Format A3","ryza/500 arkuszy",{"$f":"IF('Załącznik 1 - Formularz Oferty'!$V$60=TRUE,(VLOOKUP(C25,'Załącznik 1 - Formularz Oferty'!$C$53:$G$83,5,0)),0)","v":0},91,0,1,{"$f":"I25*F25","v":0},30,{"$f":"K25*F25","v":0},10,{"$f":"M25*F25","v":0},null,null,50,{"$f":"Q25*F25","v":0}]
[null,5,"PAPIER SATYNOWY A4 160G BIAŁY, BIAŁOŚC 168 CIE","Satynowany,biały papier przeznaczony do pełnokolorowych wydruków, nadaje się do maszyn cyfrowych,prezentacji, broszur, raportów oraz materiałów informacyjnych. Białość: 168 wg skali białości CIE. Gramatura 160 g//m². Format A4","ryza/250 arkuszy",{"$f":"IF('Załącznik 1 - Formularz Oferty'!$V$60=TRUE,(VLOOKUP(C26,'Załącznik 1 - Formularz Oferty'!$C$53:$G$83,5,0)),0)","v":0},13,0,null,null,6,0,5,0,null,null,2,0]
[null,6,"PAPIER DO DRUKAREK IGŁOWYCH 240MM 1+3 O/K","Papier do drukarek igłowych,  wielowarstwowy o gramaturze 53-57 g/m², wytwarzany z papieru samokopiującego.Liczba warstw 1+3. Biały oryginał, żółta, zielona i różowa kopia, posiada nadruk oryginał/kopia. Format: długość 12''= 305 mm, szerokość 240 mm","karton/450 składek",{"$f":"IF('Załącznik 1 - Formularz Oferty'!$V$60=TRUE,(VLOOKUP(C27,'Załącznik 1 - Formularz Oferty'!$C$53:$G$83,5,0)),0)","v":0},50,0,null,null,null,null,50,0]
[null,7,"PAPIER DO DRUKAREK IGŁOWYCH 240MM 1+4","Papier do drukarek igłowych,  wielowarstwowy o gramaturze 53-57 g/m², wytwarzany z papieru samokopiującego.Kolory kopii:1+4: żółta, zielona, żółta, różowa. Długość: 12'' = 305mm; Szerokość: 240(mm). Liczba warstw 1+4","karton/350 składek",{"$f":"IF('Załącznik 1 - Formularz Oferty'!$V$60=TRUE,(VLOOKUP(C28,'Załącznik 1 - Formularz Oferty'!$C$53:$G$83,5,0)),0)","v":0},51,0,null,null,null,null,50,0,null,null,1,{"$f":"Q28*F28","v":0}]
[null,8,"ROLKA PAPIEROWA 76MMX25M","Rolka papierowa (offsetowa) Gwarancja: 5 lat na zdolność kopiowania papieru i 25 lat na trwałość kopii. Wymiary: 76 mm x dl. 25m","opakowanie/10 sztuk",{"$f":"IF('Załącznik 1 - Formularz Oferty'!$V$60=TRUE,(VLOOKUP(C29,'Załącznik 1 - Formularz Oferty'!$C$53:$G$83,5,0)),0)","v":0},201,{"$f":"G29*F29","v":0},null,null,null,null,200,0,null,null,1,0]
[null,9,"PELIKAN KALKA OŁÓWKOWA NIEBIESKA A4","Kalka przebitkowa, maszynowa i do pisania odręcznego. Samoregenerująca się. Format A4. Kolor niebieski","opakowanie/10 arkuszy",{"$f":"IF('Załącznik 1 - Formularz Oferty'!$V$60=TRUE,(VLOOKUP(C30,'Załącznik 1 - Formularz Oferty'!$C$53:$G$83,5,0)),0)","v":0},1,0,null,null,null,null,null,null,null,null,1,0]
[null,10,"PAPIER FOTOGRAFICZNY,  A4,  180 g","Szybkoschnący papier fotograficzny do wydruku profesjonalnej jakości fotografii. Gładkie, lśniące wykończenie zapewnia wyraźne zdjęcia o żywych kolorach. Format A4, 180 g","ryza/50 arkuszy",{"$f":"IF('Załącznik 1 - Formularz Oferty'!$V$60=TRUE,(VLOOKUP(C31,'Załącznik 1 - Formularz Oferty'!$C$53:$G$83,5,0)),0)","v":0},14,0,null,null,2,{"$f":"K31*F31","v":0},11,{"$f":"M31*F31","v":0},null,null,1,0]
[null,11,"PAPIER FOTOGRAFICZNY, A4, 200G, ","Szybkoschnący papier fotograficzny do wydruku profesjonalnej jakości fotografii. Gładkie, lśniące wykończenie zapewnia wyraźne zdjęcia o żywych kolorach. Format A4, 200g","opakowanie/25 arkuszy",{"$f":"IF('Załącznik 1 - Formularz Oferty'!$V$60=TRUE,(VLOOKUP(C32,'Załącznik 1 - Formularz Oferty'!$C$53:$G$83,5,0)),0)","v":0},1,0,null,null,null,null,null,null,null,null,1,0]
[null,12,"PAPIER A4 160G, BIAŁOŚĆ 169 CIE","Papier przeznaczony do dwustronnych wydruków laserowych i atramentowych. Zapobiega przesiąkaniu druku. Białość: 169 wg skali białości CIE 160 g/m². Format A4","ryza/250 arkuszy",{"$f":"IF('Załącznik 1 - Formularz Oferty'!$V$60=TRUE,(VLOOKUP(C33,'Załącznik 1 - Formularz Oferty'!$C$53:$G$83,5,0)),0)","v":0},10,0,null,null,null,null,null,null,5,{"$f":"O33*F33","v":0},5,0]
[null,13,"OKŁADKI DO DYPLOMÓW GRANAT, ROZMIAR 220 X 310 MM","Okładki do certyfikatów, dyplomów, listów gratulacyjnych. Twarda oprawa o fakturze skóry. Posiadają ozdobny złoty sznureczek. Rozmiar okładki: 220 x 310 mm. Kolor granatowy","opakowanie/10 sztuk",{"$f":"IF('Załącznik 1 - Formularz Oferty'!$V$60=TRUE,(VLOOKUP(C34,'Załącznik 1 - Formularz Oferty'!$C$53:$G$83,5,0)),0)","v":0},16,0,null,null,null,null,6,{"$f":"M34*F34","v":0},null,null,10,0]
[null,14,"PAPIER INTENSYWNY NIEBIESKI A4, 80 g","Papier uniwersalny 80 g/m2, Przeznaczony do kopiarek, drukarek laserowych i atramentowych. Kolor intensywny niebieski. Format A4","ryza/500 arkuszy",{"$f":"IF('Załącznik 1 - Formularz Oferty'!$V$60=TRUE,(VLOOKUP(C35,'Załącznik 1 - Formularz Oferty'!$C$53:$G$83,5,0)),0)","v":0},1,0,null,null,null,null,null,null,null,null,1,0]
[null,15,"PAPIER INTENSYWNY ZIELONY A4, 80 g","Papier uniwersalny 80 g/m2, Przeznaczony do kopiarek, drukarek laserowych i atramentowych. Kolor intensywny zielony. Format A4","ryza/500 arkuszy",{"$f":"IF('Załącznik 1 - Formularz Oferty'!$V$60=TRUE,(VLOOKUP(C36,'Załącznik 1 - Formularz Oferty'!$C$53:$G$83,5,0)),0)","v":0},1,0,null,null,null,null,null,null,null,null,1,0]
[null,16,"PAPIER INTENSYWNY ŻÓŁTY, A4, 80 g","Papier uniwersalny 80 g/m2, Przeznaczony do kopiarek, drukarek laserowych i atramentowych. Kolor intensywny żółty. Format A4","ryza/500 arkuszy",{"$f":"IF('Załącznik 1 - Formularz Oferty'!$V$60=TRUE,(VLOOKUP(C37,'Załącznik 1 - Formularz Oferty'!$C$53:$G$83,5,0)),0)","v":0},1,0,null,null,null,null,null,null,null,null,1,0]
[null,17,"PAPIER INTENSYWNY CZERWONY A4, 80g","Papier uniwersalny 80 g/m2, Przeznaczony do kopiarek, drukarek laserowych i atramentowych. Kolor intensywny czerwony. Format A4","ryza/500 arkuszy",{"$f":"IF('Załącznik 1 - Formularz Oferty'!$V$60=TRUE,(VLOOKUP(C38,'Załącznik 1 - Formularz Oferty'!$C$53:$G$83,5,0)),0)","v":0},1,0,null,null,null,null,null,null,null,null,1,0]
[null,18,"PAPIER MIX KOLORÓW A4, 80 g","Papier uniwersalny 80 g/m2, Przeznaczony do kopiarek, drukarek laserowych i atramentowych. Mix kolorów. Format A4","ryza/500 arkuszy",{"$f":"IF('Załącznik 1 - Formularz Oferty'!$V$60=TRUE,(VLOOKUP(C39,'Załącznik 1 - Formularz Oferty'!$C$53:$G$83,5,0)),0)","v":0},13,0,null,null,2,{"$f":"K39*F39","v":0},10,{"$f":"M39*F39","v":0},null,null,1,0]
[null,19,"PAPIER A4 100G, BIAŁOŚĆ 168 CIE","Papier uniwersalny 100 g/m2 klasy A, Przeznaczony do kopiarek, drukarek laserowych i atramentowych oraz do wydruków kolorowych, Białość: 168 wg skali białości CIE. Format A4","ryza/ 250 arkuszy",{"$f":"IF('Załącznik 1 - Formularz Oferty'!$V$60=TRUE,(VLOOKUP(C40,'Załącznik 1 - Formularz Oferty'!$C$53:$G$83,5,0)),0)","v":0},10,0,5,{"$f":"I40*F40","v":0},null,null,null,null,null,null,5,0]
[null,20,"Papier ozdobny – biały 250 g/m3   20 arkuszy","papier wizytówkowy/ozdobny - np.. R20 TOP STYLE TRAD PAPIER A4 250G BIAŁY lub podobny","opakowanie 20 arkuszy",{"$f":"IF('Załącznik 1 - Formularz Oferty'!$V$60=TRUE,(VLOOKUP(C41,'Załącznik 1 - Formularz Oferty'!$C$53:$G$83,5,0)),0)","v":0},3,0,null,null,2,{"$f":"K41*F41","v":0},null,null,null,null,1,0]
[null,21,"Papier ozdobny - - kość słoniowa 250 g/m3 20 arkuszy","papier wizytówkowy/ozdobny np..R20 TOP STYLE TRAD PAP A4 250G KOŚĆ SŁONIOWA lub podobny","opakowanie 20 arkuszy",{"$f":"IF('Załącznik 1 - Formularz Oferty'!$V$60=TRUE,(VLOOKUP(C42,'Załącznik 1 - Formularz Oferty'!$C$53:$G$83,5,0)),0)","v":0},1,0,null,null,null,null,null,null,null,null,1,0]
[null,null,null,null,null,null,null,null,"ŁĄCZNA CENA NETTO DLA ENEA Centrum Sp. z o.o. ",{"$f":"SUM(J22:J42)","v":0},"ŁĄCZNA CENA NETTO DLA ENEA Elektrownia Połaniec S.A.",{"$f":"SUM(L22:L42)","v":0},"ŁĄCZNA CENA NETTO DLA ENEA Bioenergia Sp. z o.o. ",{"$f":"SUM(N22:N42)","v":0},"ŁĄCZNA CENA NETTO DLA ENEA Trading Sp. z o.o.",{"$f":"SUM(P22:P42)","v":0},"ŁĄCZNA CENA NETTO DLA ENEA Połaniec Serwis Sp. z o.o. ",{"$f":"SUM(R22:R42)","v":0}]
[]
[]
[]
[null,null,"miejscowość i data",null,null,"Pieczęć imienna i podpis przedstawiciela(i) Wykonawcy"]

{"sheet":"Załącznik 8-F.O. dla Zadania 7","index":12,"n_rows":39,"n_cols":16,"rows_kept":39,"cut":false,"hidden":false,"merged":[[38,5,38,7],[18,1,18,2],[0,1,0,7],[2,1,2,7],[4,1,4,7],[8,1,8,7],[11,1,11,7],[14,1,14,7],[18,3,18,5],[37,2,37,3],[37,4,37,7]]}
[null,"Oznaczenie sprawy:  1400/DW00/ZU/KZ/2021/0000061751"]
[]
[null,"ZAŁĄCZNIK NR 8 - FORMULARZ OFERTY DLA ZADANIA 7 - Dostawa papieru do wydruku – Świerże Górne + woj. mazowieckie."]
[]
[]
[null,null,"(pieczęć wykonawcy)"]
[]
[null,"Ja, niżej podpisany (My niżej podpisani):"]
[]
[]
[null,"działając w imieniu i na rzecz:"]
[]
[]
[null,"Składam(y) ofertę na wykonanie zamówienia, którego przedmiotem jest:"]
[null,"Dostawa papieru do wydruku dla spółek GK ENEA"]
[]
[null,"Zadanie 7:  Dostawa papieru do wydruku - Świerże Górne + woj. mazowieckie "]
[]
[null,"ŁĄCZNA CENA NETTO OFERTY DLA ZADANIA 7:",null,{"$f":"SUM(H22:H496)","v":0}]
[]
[null,"LP","Nazwa produktu","Opis szczegółowy","Jednostka ","cena jednostkowa netto","Ilość","Wartość","ENEA Centrum Sp. z o.o. - Szacowana ilość","ŁĄCZNA CENA NETTO DLA ENEA Centrum Sp. z o.o. ","ENEA S.A. - Szacowana ilość","ŁĄCZNA CENA NETTO DLA ENEA S.A. ","ENEA Trading Sp. z o.o. - Szacowana ilość","ŁĄCZNA CENA NETTO DLA ENEA Trading Sp. z o.o. ","ENEA Wytwarzanie Sp. z o.o. - Szacowana ilość","ŁĄCZNA CENA NETTO DLA ENEA Wytwarzanie Sp. z o.o. "]
[null,1,"PAPIER A4 80G, BIAŁOŚĆ 166 CIE","Papier uniwersalny 80 g/m2 klasy A, Przeznaczony do kopiarek, drukarek laserowych i atramentowych oraz do wydruków kolorowych, Białość: 166 wg skali białości CIE. Format A4","karton/5 ryz po 500 arkuszy",{"$f":"IF('Załącznik 1 - Formularz Oferty'!$V$61=TRUE,(VLOOKUP(C22,'Załącznik 1 - Formularz Oferty'!$C$53:$G$83,5,0)),0)","v":0},{"$f":"I22+K22+M22+O22","v":38},{"$f":"G22*F22","v":0},null,null,8,{"$f":"K22*F22","v":0},30,{"$f":"M22*F22","v":0}]
[null,2,"PAPIER A4 80G, BIAŁOŚĆ 146 CIE","Papier uniwersalny 80 g/m² klasy C+, Przeznaczony do drukarek laserowych,kopiarek oraz faksów. Białość: 146 wg skali białości CIE. Format A4","karton/5 ryz po 500 arkuszy",{"$f":"IF('Załącznik 1 - Formularz Oferty'!$V$61=TRUE,(VLOOKUP(C23,'Załącznik 1 - Formularz Oferty'!$C$53:$G$83,5,0)),0)","v":0},{"$f":"I23+K23+M23+O23","v":897},{"$f":"G23*F23","v":0},60,{"$f":"I23*F23","v":0},7,{"$f":"K23*F23","v":0},30,{"$f":"M23*F23","v":0},800,{"$f":"O23*F23","v":0}]
[null,3,"PAPIER UNIWERSALNY A5 80G BIAŁY, BIAŁOŚĆ 146 CIE","Papier uniwersalny 80 g/m² klasy C+. Przeznaczony do drukarek laserowych, kopiarek oraz faksów. Białość: 146 wg skali białości CIE. Format A5","ryza/500 arkuszy",{"$f":"IF('Załącznik 1 - Formularz Oferty'!$V$61=TRUE,(VLOOKUP(C24,'Załącznik 1 - Formularz Oferty'!$C$53:$G$83,5,0)),0)","v":0},34,{"$f":"G24*F24","v":0},null,null,4,0,30,0]
[null,4,"PAPIER A3 80G, BIAŁOŚĆ 146 CIE","Papier uniwersalny 80 g/m² klasy C+. Przeznaczony do drukarek laserowych, kopiarek oraz faksów. Białość: 146 wg skali białości CIE. Format A3","ryza/500 arkuszy",{"$f":"IF('Załącznik 1 - Formularz Oferty'!$V$61=TRUE,(VLOOKUP(C25,'Załącznik 1 - Formularz Oferty'!$C$53:$G$83,5,0)),0)","v":0},1,{"$f":"G25*F25","v":0},1,{"$f":"I25*F25","v":0}]
[null,5,"PAPIER SATYNOWY A4 160G BIAŁY, BIAŁOŚC 168 CIE","Satynowany,biały papier przeznaczony do pełnokolorowych wydruków, nadaje się do maszyn cyfrowych,prezentacji, broszur, raportów oraz materiałów informacyjnych. Białość: 168 wg skali białości CIE. Gramatura 160 g//m². Format A4","ryza/250 arkuszy",{"$f":"IF('Załącznik 1 - Formularz Oferty'!$V$61=TRUE,(VLOOKUP(C26,'Załącznik 1 - Formularz Oferty'!$C$53:$G$83,5,0)),0)","v":0},11,{"$f":"G26*F26","v":0},1,0,null,null,10,{"$f":"M26*F26","v":0}]
[null,6,"PAPIER A4 160G, BIAŁOŚĆ 169 CIE","Papier przeznaczony do dwustronnych wydruków laserowych i atramentowych. Zapobiega przesiąkaniu druku. Białość: 169 wg skali białości CIE 160 g/m². Format A4","ryza/250 arkuszy",{"$f":"IF('Załącznik 1 - Formularz Oferty'!$V$61=TRUE,(VLOOKUP(C27,'Załącznik 1 - Formularz Oferty'!$C$53:$G$83,5,0)),0)","v":0},15,{"$f":"G27*F27","v":0},null,null,null,null,15,0]
[null,7,"PAPIER INTENSYWNY NIEBIESKI A4, 80 g","Papier uniwersalny 80 g/m2, Przeznaczony do kopiarek, drukarek laserowych i atramentowych. Kolor intensywny niebieski. Format A4","ryza/500 arkuszy",{"$f":"IF('Załącznik 1 - Formularz Oferty'!$V$61=TRUE,(VLOOKUP(C28,'Załącznik 1 - Formularz Oferty'!$C$53:$G$83,5,0)),0)","v":0},10,0,null,null,null,null,null,null,10,{"$f":"O28*F28","v":0}]
[null,8,"PAPIER INTENSYWNY ZIELONY A4, 80 g","Papier uniwersalny 80 g/m2, Przeznaczony do kopiarek, drukarek laserowych i atramentowych. Kolor intensywny zielony. Format A4","ryza/500 arkuszy",{"$f":"IF('Załącznik 1 - Formularz Oferty'!$V$61=TRUE,(VLOOKUP(C29,'Załącznik 1 - Formularz Oferty'!$C$53:$G$83,5,0)),0)","v":0},10,0,null,null,null,null,null,null,10,0]
[null,9,"PAPIER INTENSYWNY ŻÓŁTY, A4, 80 g","Papier uniwersalny 80 g/m2, Przeznaczony do kopiarek, drukarek laserowych i atramentowych. Kolor intensywny żółty. Format A4","ryza/500 arkuszy",{"$f":"IF('Załącznik 1 - Formularz Oferty'!$V$61=TRUE,(VLOOKUP(C30,'Załącznik 1 - Formularz Oferty'!$C$53:$G$83,5,0)),0)","v":0},10,0,null,null,null,null,null,null,10,0]
[null,10,"PAPIER INTENSYWNY CZERWONY A4, 80g","Papier uniwersalny 80 g/m2, Przeznaczony do kopiarek, drukarek laserowych i atramentowych. Kolor intensywny czerwony. Format A4","ryza/500 arkuszy",{"$f":"IF('Załącznik 1 - Formularz Oferty'!$V$61=TRUE,(VLOOKUP(C31,'Załącznik 1 - Formularz Oferty'!$C$53:$G$83,5,0)),0)","v":0},10,0,null,null,null,null,null,null,10,0]
[null,11,"PAPIER MIX KOLORÓW A4, 80 g","Papier uniwersalny 80 g/m2, Przeznaczony do kopiarek, drukarek laserowych i atramentowych. Mix kolorów. Format A4","ryza/500 arkuszy",{"$f":"IF('Załącznik 1 - Formularz Oferty'!$V$61=TRUE,(VLOOKUP(C32,'Załącznik 1 - Formularz Oferty'!$C$53:$G$83,5,0)),0)","v":0},5,0,null,null,null,null,5,{"$f":"M32*F32","v":0}]
[null,12,"PAPIER A4 100G, BIAŁOŚĆ 168 CIE","Papier uniwersalny 100 g/m2 klasy A, Przeznaczony do kopiarek, drukarek laserowych i atramentowych oraz do wydruków kolorowych, Białość: 168 wg skali białości CIE. Format A4","ryza/ 250 arkuszy",{"$f":"IF('Załącznik 1 - Formularz Oferty'!$V$61=TRUE,(VLOOKUP(C33,'Załącznik 1 - Formularz Oferty'!$C$53:$G$83,5,0)),0)","v":0},30,0,30,{"$f":"I33*F33","v":0}]
[null,13,"Papier ozdobny – biały 250 g/m3   20 arkuszy","papier wizytówkowy/ozdobny - np.. R20 TOP STYLE TRAD PAPIER A4 250G BIAŁY lub podobny","opakowanie 20 arkuszy",{"$f":"IF('Załącznik 1 - Formularz Oferty'!$V$61=TRUE,(VLOOKUP(C34,'Załącznik 1 - Formularz Oferty'!$C$53:$G$83,5,0)),0)","v":0},23,0,23,0]
[null,null,null,null,null,null,null,null,"ŁĄCZNA CENA NETTO DLA ENEA Centrum Sp. z o.o. ",{"$f":"SUM(J22:J34)","v":0},"ŁĄCZNA CENA NETTO DLA ENEA S.A.",{"$f":"SUM(L22:L34)","v":0},"ŁĄCZNA CENA NETTO DLA ENEA Trading Sp. z o.o. ",{"$f":"SUM(N22:N34)","v":0},"ŁĄCZNA CENA NETTO DLA ENEA Wytwarzanie Sp. z o.o.",{"$f":"SUM(P22:P34)","v":0}]
[]
[]
[]
[null,null,"miejscowość i data",null,null,"Pieczęć imienna i podpis przedstawiciela(i) Wykonawcy"]

{"sheet":"zad1","index":13,"n_rows":13,"n_cols":10,"rows_kept":13,"cut":false,"hidden":true,"merged":[[0,6,0,7]]}
[{"$f":"'Załącznik 1 - Formularz Oferty'!D19","v":"Wykonawca nie składa oferty"},null,null,null,null,null,"jeżeli \"naście\""]
[null,null,"0-5","6-9","0-5","6-9","0-5","6-9","dodatek","sumuj te ciągi"]
[{"$f":"INT(A$1/10000000)","v":{"$error":"#VALUE!"}},null,{"$f":"IF(AND(A3>=0,A3<=5),1,0)","v":{"$error":"#VALUE!"}},{"$f":"IF(AND(A3>=6,A3<=9),1,0)","v":{"$error":"#VALUE!"}},{"$f":"IF(A3=0,\"\",IF(A3=1,IF(A4=0,\"dziesięć milionów \",\"\"),IF(A3=2,\"dwadzieścia \",IF(A3=3,\"trzydzieści \",IF(A3=4,\"czterdzieści \",IF(A3=5,\"pięćdziesiąt \",\"\"))))))","v":{"$error":"#VALUE!"}},{"$f":"IF(A3=6,\"sześćdziesiąt \",IF(A3=7,\"siedemdziesiąt \",IF(A3=8,\"osiemdziesiąt \",IF(A3=9,\"dziewięćdziesiąt \",\"\"))))","v":{"$error":"#VALUE!"}},null,null,null,{"$f":"IF(C3,E3&I3,IF(D3,F3&I3,\"\"))","v":{"$error":"#VALUE!"}}]
[{"$f":"INT(A$1/1000000)-A3*10","v":{"$error":"#VALUE!"}},null,{"$error":"#VALUE!"},{"$error":"#VALUE!"},{"$f":"IF(A4=0,IF(AND(A3<>0,A3<>1),\"milionów \",\"\"),IF(A4=1,IF(A3=0,\"jeden milion \",\"jeden milionów \"),IF(A4=2,\"dwa miliony \",IF(A4=3,\"trzy miliony \",IF(A4=4,\"cztery miliony \",IF(A4=5,\"pięć milionów \",\"\"))))))","v":{"$error":"#VALUE!"}},{"$f":"IF(A4=6,\"sześć milionów \",IF(A4=7,\"siedem milionów \",IF(A4=8,\"osiem milionów \",IF(A4=9,\"dziewięć milionów \",\"\"))))","v":{"$error":"#VALUE!"}},{"$f":"IF(A4=0,\"\",IF(A4=1,\"jedenaście milionów \",IF(A4=2,\"dwanaście milionów \",IF(A4=3,\"trzynaście milionów \",IF(A4=4,\"czternaście milionów \",IF(A4=5,\"piętnaście milionów \",\"\"))))))","v":{"$error":"#VALUE!"}},{"$f":"IF(A4=6,\"szesnaście milionów \",IF(A4=7,\"siedemnaście milionów \",IF(A4=8,\"osiemnaście milionów \",IF(A4=9,\"dziewiętnaście milionów \",\"\"))))","v":{"$error":"#VALUE!"}},null,{"$f":"IF(A3=1,IF(C4,G4,IF(D4,H4)),IF(C4,E4,IF(D4,F4,\"\")))","v":{"$error":"#VALUE!"}}]
[{"$f":"INT(A$1/100000)-10*A4-100*A3","v":{"$error":"#VALUE!"}},null,{"$error":"#VALUE!"},{"$error":"#VALUE!"},{"$f":"IF(A5=0,\"\",IF(A5=1,\"sto \",IF(A5=2,\"dwieście \",IF(A5=3,\"trzysta \",IF(A5=4,\"czterysta \",IF(A5=5,\"pięćset \",\"\"))))))","v":{"$error":"#VALUE!"}},{"$f":"IF(A5=6,\"sześćset \",IF(A5=7,\"siedemset \",IF(A5=8,\"osiemset \",IF(A5=9,\"dziewięćset \",\"\"))))","v":{"$error":"#VALUE!"}},null,null,null,{"$f":"IF(C5,E5&I5,IF(D5,F5&I5,\"\"))","v":{"$error":"#VALUE!"}}]
[{"$f":"INT(A$1/10000)-10*A5-100*A4-1000*A3","v":{"$error":"#VALUE!"}},null,{"$error":"#VALUE!"},{"$error":"#VALUE!"},{"$f":"IF(A6=0,\"\",IF(A6=1,IF(A7=0,\"dziesięć tysięcy \",\"\"),IF(A6=2,\"dwadzieścia \",IF(A6=3,\"trzydzieści \",IF(A6=4,\"czterdzieści \",IF(A6=5,\"pięćdziesiąt \",\"\"))))))","v":{"$error":"#VALUE!"}},{"$f":"IF(A6=6,\"sześćdziesiąt \",IF(A6=7,\"siedemdziesiąt \",IF(A6=8,\"osiemdziesiąt \",IF(A6=9,\"dziewięćdziesiąt \",\"\"))))","v":{"$error":"#VALUE!"}},null,null,null,{"$f":"IF(C6,E6&I6,IF(D6,F6&I6,\"\"))","v":{"$error":"#VALUE!"}}]
[{"$f":"INT(A$1/1000)-10*A6-100*A5-1000*A4-10000*A3","v":{"$error":"#VALUE!"}},null,{"$error":"#VALUE!"},{"$error":"#VALUE!"},{"$f":"IF(A7=0,IF(OR(AND(A6<>0,A6<>1),AND(A5<>0,A6=0)),\"tysięcy \",\"\"),IF(A7=1,IF(AND(A5=0,A6=0),\"jeden tysiąc \",\"jeden tysięcy \"),IF(A7=2,\"dwa tysiące \",IF(A7=3,\"trzy tysiące \",IF(A7=4,\"cztery tysiące \",IF(A7=5,\"pięć tysięcy \",\"\"))))))","v":{"$error":"#VALUE!"}},{"$f":"IF(A7=6,\"sześć tysięcy \",IF(A7=7,\"siedem tysięcy \",IF(A7=8,\"osiem tysięcy \",IF(A7=9,\"dziewięć tysięcy \",\"\"))))","v":{"$error":"#VALUE!"}},{"$f":"IF(A7=0,\"\",IF(A7=1,\"jedenaście tysięcy \",IF(A7=2,\"dwanaście tysięcy \",IF(A7=3,\"trzynaście tysięcy \",IF(A7=4,\"czternaście tysięcy \",IF(A7=5,\"piętnaście tysięcy \",\"\"))))))","v":{"$error":"#VALUE!"}},{"$f":"IF(A7=6,\"szesnaście tysięcy \",IF(A7=7,\"siedemnaście tysięcy \",IF(A7=8,\"osiemnaście tysięcy \",IF(A7=9,\"dziewiętnaście tysięcy \",\"\"))))","v":{"$error":"#VALUE!"}},null,{"$f":"IF(A6=1,IF(C7,G7,IF(D7,H7)),IF(C7,E7,IF(D7,F7,\"\")))","v":{"$error":"#VALUE!"}}]
[{"$f":"INT(A$1/100)-10*A7-100*A6-1000*A5-10000*A4-100000*A3","v":{"$error":"#VALUE!"}},null,{"$error":"#VALUE!"},{"$error":"#VALUE!"},{"$f":"IF(A8=0,\"\",IF(A8=1,\"sto \",IF(A8=2,\"dwieście \",IF(A8=3,\"trzysta \",IF(A8=4,\"czterysta \",IF(A8=5,\"pięćset \",\"\"))))))","v":{"$error":"#VALUE!"}},{"$f":"IF(A8=6,\"sześćset \",IF(A8=7,\"siedemset \",IF(A8=8,\"osiemset \",IF(A8=9,\"dziewięćset \",\"\"))))","v":{"$error":"#VALUE!"}},null,null,null,{"$f":"IF(C8,E8&I8,IF(D8,F8&I8,\"\"))","v":{"$error":"#VALUE!"}}]
[{"$f":"INT(A$1/10)-10*A8-100*A7-1000*A6-10000*A5-100000*A4-1000000*A3","v":{"$error":"#VALUE!"}},null,{"$error":"#VALUE!"},{"$error":"#VALUE!"},{"$f":"IF(A9=0,\"\",IF(A9=1,IF(A10=0,\"dziesięć \",\"\"),IF(A9=2,\"dwadzieścia \",IF(A9=3,\"trzydzieści \",IF(A9=4,\"czterdzieści \",IF(A9=5,\"pięćdziesiąt \",\"\"))))))","v":{"$error":"#VALUE!"}},{"$f":"IF(A9=6,\"sześćdziesiąt \",IF(A9=7,\"siedemdziesiąt \",IF(A9=8,\"osiemdziesiąt \",IF(A9=9,\"dziewięćdziesiąt \",\"\"))))","v":{"$error":"#VALUE!"}},null,null,null,{"$f":"IF(C9,E9&I9,IF(D9,F9&I9,\"\"))","v":{"$error":"#VALUE!"}}]
[{"$f":"INT(A$1)-10*A9-100*A8-1000*A7-10000*A6-100000*A5-1000000*A4-10000000*A3","v":{"$error":"#VALUE!"}},null,{"$error":"#VALUE!"},{"$error":"#VALUE!"},{"$f":"IF(A10=0,\"\",IF(A10=1,\"jeden \",IF(A10=2,\"dwa \",IF(A10=3,\"trzy \",IF(A10=4,\"cztery \",IF(A10=5,\"pięć \",\"\"))))))","v":{"$error":"#VALUE!"}},{"$f":"IF(A10=6,\"sześć \",IF(A10=7,\"siedem \",IF(A10=8,\"osiem \",IF(A10=9,\"dziewięć \",\"\"))))","v":{"$error":"#VALUE!"}},{"$f":"IF(A10=0,\"\",IF(A10=1,\"jedenaście \",IF(A10=2,\"dwanaście \",IF(A10=3,\"trzynaście \",IF(A10=4,\"czternaście \",IF(A10=5,\"piętnaście \",\"\"))))))","v":{"$error":"#VALUE!"}},{"$f":"IF(A10=6,\"szesnaście \",IF(A10=7,\"siedemnaście \",IF(A10=8,\"osiemnaście \",IF(A10=9,\"dziewiętnaście \",\"\"))))","v":{"$error":"#VALUE!"}},null,{"$f":"IF(A9=1,IF(C10,G10,IF(D10,H10)),IF(C10,E10,IF(D10,F10,\"\")))","v":{"$error":"#VALUE!"}}]
[{"$f":"ROUND((A1-TRUNC(A1,0))*100,0)","v":{"$error":"#VALUE!"}},null,null,null,null,null,null,null,null,{"$f":"\"zł \"&TEXT(A11,\"00\")&\"/100\"","v":{"$error":"#VALUE!"}}]
[null,null,null,null,"Słownie:"]
[{"$f":"TRUNC(A1,1)","v":{"$error":"#VALUE!"}},null,null,null,{"$f":"J3&J4&J5&J6&J7&J8&J9&J10&J11","v":{"$error":"#VALUE!"}}]

{"sheet":"zad2","index":14,"n_rows":13,"n_cols":10,"rows_kept":13,"cut":false,"hidden":true,"merged":[[0,6,0,7]]}
[{"$f":"'Załącznik 1 - Formularz Oferty'!D22","v":"Wykonawca nie składa oferty"},null,null,null,null,null,"jeżeli \"naście\""]
[null,null,"0-5","6-9","0-5","6-9","0-5","6-9","dodatek","sumuj te ciągi"]
[{"$f":"INT(A$1/10000000)","v":{"$error":"#VALUE!"}},null,{"$f":"IF(AND(A3>=0,A3<=5),1,0)","v":{"$error":"#VALUE!"}},{"$f":"IF(AND(A3>=6,A3<=9),1,0)","v":{"$error":"#VALUE!"}},{"$f":"IF(A3=0,\"\",IF(A3=1,IF(A4=0,\"dziesięć milionów \",\"\"),IF(A3=2,\"dwadzieścia \",IF(A3=3,\"trzydzieści \",IF(A3=4,\"czterdzieści \",IF(A3=5,\"pięćdziesiąt \",\"\"))))))","v":{"$error":"#VALUE!"}},{"$f":"IF(A3=6,\"sześćdziesiąt \",IF(A3=7,\"siedemdziesiąt \",IF(A3=8,\"osiemdziesiąt \",IF(A3=9,\"dziewięćdziesiąt \",\"\"))))","v":{"$error":"#VALUE!"}},null,null,null,{"$f":"IF(C3,E3&I3,IF(D3,F3&I3,\"\"))","v":{"$error":"#VALUE!"}}]
[{"$f":"INT(A$1/1000000)-A3*10","v":{"$error":"#VALUE!"}},null,{"$error":"#VALUE!"},{"$error":"#VALUE!"},{"$f":"IF(A4=0,IF(AND(A3<>0,A3<>1),\"milionów \",\"\"),IF(A4=1,IF(A3=0,\"jeden milion \",\"jeden milionów \"),IF(A4=2,\"dwa miliony \",IF(A4=3,\"trzy miliony \",IF(A4=4,\"cztery miliony \",IF(A4=5,\"pięć milionów \",\"\"))))))","v":{"$error":"#VALUE!"}},{"$f":"IF(A4=6,\"sześć milionów \",IF(A4=7,\"siedem milionów \",IF(A4=8,\"osiem milionów \",IF(A4=9,\"dziewięć milionów \",\"\"))))","v":{"$error":"#VALUE!"}},{"$f":"IF(A4=0,\"\",IF(A4=1,\"jedenaście milionów \",IF(A4=2,\"dwanaście milionów \",IF(A4=3,\"trzynaście milionów \",IF(A4=4,\"czternaście milionów \",IF(A4=5,\"piętnaście milionów \",\"\"))))))","v":{"$error":"#VALUE!"}},{"$f":"IF(A4=6,\"szesnaście milionów \",IF(A4=7,\"siedemnaście milionów \",IF(A4=8,\"osiemnaście milionów \",IF(A4=9,\"dziewiętnaście milionów \",\"\"))))","v":{"$error":"#VALUE!"}},null,{"$f":"IF(A3=1,IF(C4,G4,IF(D4,H4)),IF(C4,E4,IF(D4,F4,\"\")))","v":{"$error":"#VALUE!"}}]
[{"$f":"INT(A$1/100000)-10*A4-100*A3","v":{"$error":"#VALUE!"}},null,{"$error":"#VALUE!"},{"$error":"#VALUE!"},{"$f":"IF(A5=0,\"\",IF(A5=1,\"sto \",IF(A5=2,\"dwieście \",IF(A5=3,\"trzysta \",IF(A5=4,\"czterysta \",IF(A5=5,\"pięćset \",\"\"))))))","v":{"$error":"#VALUE!"}},{"$f":"IF(A5=6,\"sześćset \",IF(A5=7,\"siedemset \",IF(A5=8,\"osiemset \",IF(A5=9,\"dziewięćset \",\"\"))))","v":{"$error":"#VALUE!"}},null,null,null,{"$f":"IF(C5,E5&I5,IF(D5,F5&I5,\"\"))","v":{"$error":"#VALUE!"}}]
[{"$f":"INT(A$1/10000)-10*A5-100*A4-1000*A3","v":{"$error":"#VALUE!"}},null,{"$error":"#VALUE!"},{"$error":"#VALUE!"},{"$f":"IF(A6=0,\"\",IF(A6=1,IF(A7=0,\"dziesięć tysięcy \",\"\"),IF(A6=2,\"dwadzieścia \",IF(A6=3,\"trzydzieści \",IF(A6=4,\"czterdzieści \",IF(A6=5,\"pięćdziesiąt \",\"\"))))))","v":{"$error":"#VALUE!"}},{"$f":"IF(A6=6,\"sześćdziesiąt \",IF(A6=7,\"siedemdziesiąt \",IF(A6=8,\"osiemdziesiąt \",IF(A6=9,\"dziewięćdziesiąt \",\"\"))))","v":{"$error":"#VALUE!"}},null,null,null,{"$f":"IF(C6,E6&I6,IF(D6,F6&I6,\"\"))","v":{"$error":"#VALUE!"}}]
[{"$f":"INT(A$1/1000)-10*A6-100*A5-1000*A4-10000*A3","v":{"$error":"#VALUE!"}},null,{"$error":"#VALUE!"},{"$error":"#VALUE!"},{"$f":"IF(A7=0,IF(OR(AND(A6<>0,A6<>1),AND(A5<>0,A6=0)),\"tysięcy \",\"\"),IF(A7=1,IF(AND(A5=0,A6=0),\"jeden tysiąc \",\"jeden tysięcy \"),IF(A7=2,\"dwa tysiące \",IF(A7=3,\"trzy tysiące \",IF(A7=4,\"cztery tysiące \",IF(A7=5,\"pięć tysięcy \",\"\"))))))","v":{"$error":"#VALUE!"}},{"$f":"IF(A7=6,\"sześć tysięcy \",IF(A7=7,\"siedem tysięcy \",IF(A7=8,\"osiem tysięcy \",IF(A7=9,\"dziewięć tysięcy \",\"\"))))","v":{"$error":"#VALUE!"}},{"$f":"IF(A7=0,\"\",IF(A7=1,\"jedenaście tysięcy \",IF(A7=2,\"dwanaście tysięcy \",IF(A7=3,\"trzynaście tysięcy \",IF(A7=4,\"czternaście tysięcy \",IF(A7=5,\"piętnaście tysięcy \",\"\"))))))","v":{"$error":"#VALUE!"}},{"$f":"IF(A7=6,\"szesnaście tysięcy \",IF(A7=7,\"siedemnaście tysięcy \",IF(A7=8,\"osiemnaście tysięcy \",IF(A7=9,\"dziewiętnaście tysięcy \",\"\"))))","v":{"$error":"#VALUE!"}},null,{"$f":"IF(A6=1,IF(C7,G7,IF(D7,H7)),IF(C7,E7,IF(D7,F7,\"\")))","v":{"$error":"#VALUE!"}}]
[{"$f":"INT(A$1/100)-10*A7-100*A6-1000*A5-10000*A4-100000*A3","v":{"$error":"#VALUE!"}},null,{"$error":"#VALUE!"},{"$error":"#VALUE!"},{"$f":"IF(A8=0,\"\",IF(A8=1,\"sto \",IF(A8=2,\"dwieście \",IF(A8=3,\"trzysta \",IF(A8=4,\"czterysta \",IF(A8=5,\"pięćset \",\"\"))))))","v":{"$error":"#VALUE!"}},{"$f":"IF(A8=6,\"sześćset \",IF(A8=7,\"siedemset \",IF(A8=8,\"osiemset \",IF(A8=9,\"dziewięćset \",\"\"))))","v":{"$error":"#VALUE!"}},null,null,null,{"$f":"IF(C8,E8&I8,IF(D8,F8&I8,\"\"))","v":{"$error":"#VALUE!"}}]
[{"$f":"INT(A$1/10)-10*A8-100*A7-1000*A6-10000*A5-100000*A4-1000000*A3","v":{"$error":"#VALUE!"}},null,{"$error":"#VALUE!"},{"$error":"#VALUE!"},{"$f":"IF(A9=0,\"\",IF(A9=1,IF(A10=0,\"dziesięć \",\"\"),IF(A9=2,\"dwadzieścia \",IF(A9=3,\"trzydzieści \",IF(A9=4,\"czterdzieści \",IF(A9=5,\"pięćdziesiąt \",\"\"))))))","v":{"$error":"#VALUE!"}},{"$f":"IF(A9=6,\"sześćdziesiąt \",IF(A9=7,\"siedemdziesiąt \",IF(A9=8,\"osiemdziesiąt \",IF(A9=9,\"dziewięćdziesiąt \",\"\"))))","v":{"$error":"#VALUE!"}},null,null,null,{"$f":"IF(C9,E9&I9,IF(D9,F9&I9,\"\"))","v":{"$error":"#VALUE!"}}]
[{"$f":"INT(A$1)-10*A9-100*A8-1000*A7-10000*A6-100000*A5-1000000*A4-10000000*A3","v":{"$error":"#VALUE!"}},null,{"$error":"#VALUE!"},{"$error":"#VALUE!"},{"$f":"IF(A10=0,\"\",IF(A10=1,\"jeden \",IF(A10=2,\"dwa \",IF(A10=3,\"trzy \",IF(A10=4,\"cztery \",IF(A10=5,\"pięć \",\"\"))))))","v":{"$error":"#VALUE!"}},{"$f":"IF(A10=6,\"sześć \",IF(A10=7,\"siedem \",IF(A10=8,\"osiem \",IF(A10=9,\"dziewięć \",\"\"))))","v":{"$error":"#VALUE!"}},{"$f":"IF(A10=0,\"\",IF(A10=1,\"jedenaście \",IF(A10=2,\"dwanaście \",IF(A10=3,\"trzynaście \",IF(A10=4,\"czternaście \",IF(A10=5,\"piętnaście \",\"\"))))))","v":{"$error":"#VALUE!"}},{"$f":"IF(A10=6,\"szesnaście \",IF(A10=7,\"siedemnaście \",IF(A10=8,\"osiemnaście \",IF(A10=9,\"dziewiętnaście \",\"\"))))","v":{"$error":"#VALUE!"}},null,{"$f":"IF(A9=1,IF(C10,G10,IF(D10,H10)),IF(C10,E10,IF(D10,F10,\"\")))","v":{"$error":"#VALUE!"}}]
[{"$f":"ROUND((A1-TRUNC(A1,0))*100,0)","v":{"$error":"#VALUE!"}},null,null,null,null,null,null,null,null,{"$f":"\"zł \"&TEXT(A11,\"00\")&\"/100\"","v":{"$error":"#VALUE!"}}]
[null,null,null,null,"Słownie:"]
[{"$f":"TRUNC(A1,1)","v":{"$error":"#VALUE!"}},null,null,null,{"$f":"J3&J4&J5&J6&J7&J8&J9&J10&J11","v":{"$error":"#VALUE!"}}]

{"sheet":"zad3","index":15,"n_rows":13,"n_cols":10,"rows_kept":13,"cut":false,"hidden":true,"merged":[[0,6,0,7]]}
[{"$f":"'Załącznik 1 - Formularz Oferty'!D25","v":"Wykonawca nie składa oferty"},null,null,null,null,null,"jeżeli \"naście\""]
[null,null,"0-5","6-9","0-5","6-9","0-5","6-9","dodatek","sumuj te ciągi"]
[{"$f":"INT(A$1/10000000)","v":{"$error":"#VALUE!"}},null,{"$f":"IF(AND(A3>=0,A3<=5),1,0)","v":{"$error":"#VALUE!"}},{"$f":"IF(AND(A3>=6,A3<=9),1,0)","v":{"$error":"#VALUE!"}},{"$f":"IF(A3=0,\"\",IF(A3=1,IF(A4=0,\"dziesięć milionów \",\"\"),IF(A3=2,\"dwadzieścia \",IF(A3=3,\"trzydzieści \",IF(A3=4,\"czterdzieści \",IF(A3=5,\"pięćdziesiąt \",\"\"))))))","v":{"$error":"#VALUE!"}},{"$f":"IF(A3=6,\"sześćdziesiąt \",IF(A3=7,\"siedemdziesiąt \",IF(A3=8,\"osiemdziesiąt \",IF(A3=9,\"dziewięćdziesiąt \",\"\"))))","v":{"$error":"#VALUE!"}},null,null,null,{"$f":"IF(C3,E3&I3,IF(D3,F3&I3,\"\"))","v":{"$error":"#VALUE!"}}]
[{"$f":"INT(A$1/1000000)-A3*10","v":{"$error":"#VALUE!"}},null,{"$error":"#VALUE!"},{"$error":"#VALUE!"},{"$f":"IF(A4=0,IF(AND(A3<>0,A3<>1),\"milionów \",\"\"),IF(A4=1,IF(A3=0,\"jeden milion \",\"jeden milionów \"),IF(A4=2,\"dwa miliony \",IF(A4=3,\"trzy miliony \",IF(A4=4,\"cztery miliony \",IF(A4=5,\"pięć milionów \",\"\"))))))","v":{"$error":"#VALUE!"}},{"$f":"IF(A4=6,\"sześć milionów \",IF(A4=7,\"siedem milionów \",IF(A4=8,\"osiem milionów \",IF(A4=9,\"dziewięć milionów \",\"\"))))","v":{"$error":"#VALUE!"}},{"$f":"IF(A4=0,\"\",IF(A4=1,\"jedenaście milionów \",IF(A4=2,\"dwanaście milionów \",IF(A4=3,\"trzynaście milionów \",IF(A4=4,\"czternaście milionów \",IF(A4=5,\"piętnaście milionów \",\"\"))))))","v":{"$error":"#VALUE!"}},{"$f":"IF(A4=6,\"szesnaście milionów \",IF(A4=7,\"siedemnaście milionów \",IF(A4=8,\"osiemnaście milionów \",IF(A4=9,\"dziewiętnaście milionów \",\"\"))))","v":{"$error":"#VALUE!"}},null,{"$f":"IF(A3=1,IF(C4,G4,IF(D4,H4)),IF(C4,E4,IF(D4,F4,\"\")))","v":{"$error":"#VALUE!"}}]
[{"$f":"INT(A$1/100000)-10*A4-100*A3","v":{"$error":"#VALUE!"}},null,{"$error":"#VALUE!"},{"$error":"#VALUE!"},{"$f":"IF(A5=0,\"\",IF(A5=1,\"sto \",IF(A5=2,\"dwieście \",IF(A5=3,\"trzysta \",IF(A5=4,\"czterysta \",IF(A5=5,\"pięćset \",\"\"))))))","v":{"$error":"#VALUE!"}},{"$f":"IF(A5=6,\"sześćset \",IF(A5=7,\"siedemset \",IF(A5=8,\"osiemset \",IF(A5=9,\"dziewięćset \",\"\"))))","v":{"$error":"#VALUE!"}},null,null,null,{"$f":"IF(C5,E5&I5,IF(D5,F5&I5,\"\"))","v":{"$error":"#VALUE!"}}]
[{"$f":"INT(A$1/10000)-10*A5-100*A4-1000*A3","v":{"$error":"#VALUE!"}},null,{"$error":"#VALUE!"},{"$error":"#VALUE!"},{"$f":"IF(A6=0,\"\",IF(A6=1,IF(A7=0,\"dziesięć tysięcy \",\"\"),IF(A6=2,\"dwadzieścia \",IF(A6=3,\"trzydzieści \",IF(A6=4,\"czterdzieści \",IF(A6=5,\"pięćdziesiąt \",\"\"))))))","v":{"$error":"#VALUE!"}},{"$f":"IF(A6=6,\"sześćdziesiąt \",IF(A6=7,\"siedemdziesiąt \",IF(A6=8,\"osiemdziesiąt \",IF(A6=9,\"dziewięćdziesiąt \",\"\"))))","v":{"$error":"#VALUE!"}},null,null,null,{"$f":"IF(C6,E6&I6,IF(D6,F6&I6,\"\"))","v":{"$error":"#VALUE!"}}]
[{"$f":"INT(A$1/1000)-10*A6-100*A5-1000*A4-10000*A3","v":{"$error":"#VALUE!"}},null,{"$error":"#VALUE!"},{"$error":"#VALUE!"},{"$f":"IF(A7=0,IF(OR(AND(A6<>0,A6<>1),AND(A5<>0,A6=0)),\"tysięcy \",\"\"),IF(A7=1,IF(AND(A5=0,A6=0),\"jeden tysiąc \",\"jeden tysięcy \"),IF(A7=2,\"dwa tysiące \",IF(A7=3,\"trzy tysiące \",IF(A7=4,\"cztery tysiące \",IF(A7=5,\"pięć tysięcy \",\"\"))))))","v":{"$error":"#VALUE!"}},{"$f":"IF(A7=6,\"sześć tysięcy \",IF(A7=7,\"siedem tysięcy \",IF(A7=8,\"osiem tysięcy \",IF(A7=9,\"dziewięć tysięcy \",\"\"))))","v":{"$error":"#VALUE!"}},{"$f":"IF(A7=0,\"\",IF(A7=1,\"jedenaście tysięcy \",IF(A7=2,\"dwanaście tysięcy \",IF(A7=3,\"trzynaście tysięcy \",IF(A7=4,\"czternaście tysięcy \",IF(A7=5,\"piętnaście tysięcy \",\"\"))))))","v":{"$error":"#VALUE!"}},{"$f":"IF(A7=6,\"szesnaście tysięcy \",IF(A7=7,\"siedemnaście tysięcy \",IF(A7=8,\"osiemnaście tysięcy \",IF(A7=9,\"dziewiętnaście tysięcy \",\"\"))))","v":{"$error":"#VALUE!"}},null,{"$f":"IF(A6=1,IF(C7,G7,IF(D7,H7)),IF(C7,E7,IF(D7,F7,\"\")))","v":{"$error":"#VALUE!"}}]
[{"$f":"INT(A$1/100)-10*A7-100*A6-1000*A5-10000*A4-100000*A3","v":{"$error":"#VALUE!"}},null,{"$error":"#VALUE!"},{"$error":"#VALUE!"},{"$f":"IF(A8=0,\"\",IF(A8=1,\"sto \",IF(A8=2,\"dwieście \",IF(A8=3,\"trzysta \",IF(A8=4,\"czterysta \",IF(A8=5,\"pięćset \",\"\"))))))","v":{"$error":"#VALUE!"}},{"$f":"IF(A8=6,\"sześćset \",IF(A8=7,\"siedemset \",IF(A8=8,\"osiemset \",IF(A8=9,\"dziewięćset \",\"\"))))","v":{"$error":"#VALUE!"}},null,null,null,{"$f":"IF(C8,E8&I8,IF(D8,F8&I8,\"\"))","v":{"$error":"#VALUE!"}}]
[{"$f":"INT(A$1/10)-10*A8-100*A7-1000*A6-10000*A5-100000*A4-1000000*A3","v":{"$error":"#VALUE!"}},null,{"$error":"#VALUE!"},{"$error":"#VALUE!"},{"$f":"IF(A9=0,\"\",IF(A9=1,IF(A10=0,\"dziesięć \",\"\"),IF(A9=2,\"dwadzieścia \",IF(A9=3,\"trzydzieści \",IF(A9=4,\"czterdzieści \",IF(A9=5,\"pięćdziesiąt \",\"\"))))))","v":{"$error":"#VALUE!"}},{"$f":"IF(A9=6,\"sześćdziesiąt \",IF(A9=7,\"siedemdziesiąt \",IF(A9=8,\"osiemdziesiąt \",IF(A9=9,\"dziewięćdziesiąt \",\"\"))))","v":{"$error":"#VALUE!"}},null,null,null,{"$f":"IF(C9,E9&I9,IF(D9,F9&I9,\"\"))","v":{"$error":"#VALUE!"}}]
[{"$f":"INT(A$1)-10*A9-100*A8-1000*A7-10000*A6-100000*A5-1000000*A4-10000000*A3","v":{"$error":"#VALUE!"}},null,{"$error":"#VALUE!"},{"$error":"#VALUE!"},{"$f":"IF(A10=0,\"\",IF(A10=1,\"jeden \",IF(A10=2,\"dwa \",IF(A10=3,\"trzy \",IF(A10=4,\"cztery \",IF(A10=5,\"pięć \",\"\"))))))","v":{"$error":"#VALUE!"}},{"$f":"IF(A10=6,\"sześć \",IF(A10=7,\"siedem \",IF(A10=8,\"osiem \",IF(A10=9,\"dziewięć \",\"\"))))","v":{"$error":"#VALUE!"}},{"$f":"IF(A10=0,\"\",IF(A10=1,\"jedenaście \",IF(A10=2,\"dwanaście \",IF(A10=3,\"trzynaście \",IF(A10=4,\"czternaście \",IF(A10=5,\"piętnaście \",\"\"))))))","v":{"$error":"#VALUE!"}},{"$f":"IF(A10=6,\"szesnaście \",IF(A10=7,\"siedemnaście \",IF(A10=8,\"osiemnaście \",IF(A10=9,\"dziewiętnaście \",\"\"))))","v":{"$error":"#VALUE!"}},null,{"$f":"IF(A9=1,IF(C10,G10,IF(D10,H10)),IF(C10,E10,IF(D10,F10,\"\")))","v":{"$error":"#VALUE!"}}]
[{"$f":"ROUND((A1-TRUNC(A1,0))*100,0)","v":{"$error":"#VALUE!"}},null,null,null,null,null,null,null,null,{"$f":"\"zł \"&TEXT(A11,\"00\")&\"/100\"","v":{"$error":"#VALUE!"}}]
[null,null,null,null,"Słownie:"]
[{"$f":"TRUNC(A1,1)","v":{"$error":"#VALUE!"}},null,null,null,{"$f":"J3&J4&J5&J6&J7&J8&J9&J10&J11","v":{"$error":"#VALUE!"}}]

{"sheet":"zad4","index":16,"n_rows":13,"n_cols":10,"rows_kept":13,"cut":false,"hidden":true,"merged":[[0,6,0,7]]}
[{"$f":"'Załącznik 1 - Formularz Oferty'!D28","v":"Wykonawca nie składa oferty"},null,null,null,null,null,"jeżeli \"naście\""]
[null,null,"0-5","6-9","0-5","6-9","0-5","6-9","dodatek","sumuj te ciągi"]
[{"$f":"INT(A$1/10000000)","v":{"$error":"#VALUE!"}},null,{"$f":"IF(AND(A3>=0,A3<=5),1,0)","v":{"$error":"#VALUE!"}},{"$f":"IF(AND(A3>=6,A3<=9),1,0)","v":{"$error":"#VALUE!"}},{"$f":"IF(A3=0,\"\",IF(A3=1,IF(A4=0,\"dziesięć milionów \",\"\"),IF(A3=2,\"dwadzieścia \",IF(A3=3,\"trzydzieści \",IF(A3=4,\"czterdzieści \",IF(A3=5,\"pięćdziesiąt \",\"\"))))))","v":{"$error":"#VALUE!"}},{"$f":"IF(A3=6,\"sześćdziesiąt \",IF(A3=7,\"siedemdziesiąt \",IF(A3=8,\"osiemdziesiąt \",IF(A3=9,\"dziewięćdziesiąt \",\"\"))))","v":{"$error":"#VALUE!"}},null,null,null,{"$f":"IF(C3,E3&I3,IF(D3,F3&I3,\"\"))","v":{"$error":"#VALUE!"}}]
[{"$f":"INT(A$1/1000000)-A3*10","v":{"$error":"#VALUE!"}},null,{"$error":"#VALUE!"},{"$error":"#VALUE!"},{"$f":"IF(A4=0,IF(AND(A3<>0,A3<>1),\"milionów \",\"\"),IF(A4=1,IF(A3=0,\"jeden milion \",\"jeden milionów \"),IF(A4=2,\"dwa miliony \",IF(A4=3,\"trzy miliony \",IF(A4=4,\"cztery miliony \",IF(A4=5,\"pięć milionów \",\"\"))))))","v":{"$error":"#VALUE!"}},{"$f":"IF(A4=6,\"sześć milionów \",IF(A4=7,\"siedem milionów \",IF(A4=8,\"osiem milionów \",IF(A4=9,\"dziewięć milionów \",\"\"))))","v":{"$error":"#VALUE!"}},{"$f":"IF(A4=0,\"\",IF(A4=1,\"jedenaście milionów \",IF(A4=2,\"dwanaście milionów \",IF(A4=3,\"trzynaście milionów \",IF(A4=4,\"czternaście milionów \",IF(A4=5,\"piętnaście milionów \",\"\"))))))","v":{"$error":"#VALUE!"}},{"$f":"IF(A4=6,\"szesnaście milionów \",IF(A4=7,\"siedemnaście milionów \",IF(A4=8,\"osiemnaście milionów \",IF(A4=9,\"dziewiętnaście milionów \",\"\"))))","v":{"$error":"#VALUE!"}},null,{"$f":"IF(A3=1,IF(C4,G4,IF(D4,H4)),IF(C4,E4,IF(D4,F4,\"\")))","v":{"$error":"#VALUE!"}}]
[{"$f":"INT(A$1/100000)-10*A4-100*A3","v":{"$error":"#VALUE!"}},null,{"$error":"#VALUE!"},{"$error":"#VALUE!"},{"$f":"IF(A5=0,\"\",IF(A5=1,\"sto \",IF(A5=2,\"dwieście \",IF(A5=3,\"trzysta \",IF(A5=4,\"czterysta \",IF(A5=5,\"pięćset \",\"\"))))))","v":{"$error":"#VALUE!"}},{"$f":"IF(A5=6,\"sześćset \",IF(A5=7,\"siedemset \",IF(A5=8,\"osiemset \",IF(A5=9,\"dziewięćset \",\"\"))))","v":{"$error":"#VALUE!"}},null,null,null,{"$f":"IF(C5,E5&I5,IF(D5,F5&I5,\"\"))","v":{"$error":"#VALUE!"}}]
[{"$f":"INT(A$1/10000)-10*A5-100*A4-1000*A3","v":{"$error":"#VALUE!"}},null,{"$error":"#VALUE!"},{"$error":"#VALUE!"},{"$f":"IF(A6=0,\"\",IF(A6=1,IF(A7=0,\"dziesięć tysięcy \",\"\"),IF(A6=2,\"dwadzieścia \",IF(A6=3,\"trzydzieści \",IF(A6=4,\"czterdzieści \",IF(A6=5,\"pięćdziesiąt \",\"\"))))))","v":{"$error":"#VALUE!"}},{"$f":"IF(A6=6,\"sześćdziesiąt \",IF(A6=7,\"siedemdziesiąt \",IF(A6=8,\"osiemdziesiąt \",IF(A6=9,\"dziewięćdziesiąt \",\"\"))))","v":{"$error":"#VALUE!"}},null,null,null,{"$f":"IF(C6,E6&I6,IF(D6,F6&I6,\"\"))","v":{"$error":"#VALUE!"}}]
[{"$f":"INT(A$1/1000)-10*A6-100*A5-1000*A4-10000*A3","v":{"$error":"#VALUE!"}},null,{"$error":"#VALUE!"},{"$error":"#VALUE!"},{"$f":"IF(A7=0,IF(OR(AND(A6<>0,A6<>1),AND(A5<>0,A6=0)),\"tysięcy \",\"\"),IF(A7=1,IF(AND(A5=0,A6=0),\"jeden tysiąc \",\"jeden tysięcy \"),IF(A7=2,\"dwa tysiące \",IF(A7=3,\"trzy tysiące \",IF(A7=4,\"cztery tysiące \",IF(A7=5,\"pięć tysięcy \",\"\"))))))","v":{"$error":"#VALUE!"}},{"$f":"IF(A7=6,\"sześć tysięcy \",IF(A7=7,\"siedem tysięcy \",IF(A7=8,\"osiem tysięcy \",IF(A7=9,\"dziewięć tysięcy \",\"\"))))","v":{"$error":"#VALUE!"}},{"$f":"IF(A7=0,\"\",IF(A7=1,\"jedenaście tysięcy \",IF(A7=2,\"dwanaście tysięcy \",IF(A7=3,\"trzynaście tysięcy \",IF(A7=4,\"czternaście tysięcy \",IF(A7=5,\"piętnaście tysięcy \",\"\"))))))","v":{"$error":"#VALUE!"}},{"$f":"IF(A7=6,\"szesnaście tysięcy \",IF(A7=7,\"siedemnaście tysięcy \",IF(A7=8,\"osiemnaście tysięcy \",IF(A7=9,\"dziewiętnaście tysięcy \",\"\"))))","v":{"$error":"#VALUE!"}},null,{"$f":"IF(A6=1,IF(C7,G7,IF(D7,H7)),IF(C7,E7,IF(D7,F7,\"\")))","v":{"$error":"#VALUE!"}}]
[{"$f":"INT(A$1/100)-10*A7-100*A6-1000*A5-10000*A4-100000*A3","v":{"$error":"#VALUE!"}},null,{"$error":"#VALUE!"},{"$error":"#VALUE!"},{"$f":"IF(A8=0,\"\",IF(A8=1,\"sto \",IF(A8=2,\"dwieście \",IF(A8=3,\"trzysta \",IF(A8=4,\"czterysta \",IF(A8=5,\"pięćset \",\"\"))))))","v":{"$error":"#VALUE!"}},{"$f":"IF(A8=6,\"sześćset \",IF(A8=7,\"siedemset \",IF(A8=8,\"osiemset \",IF(A8=9,\"dziewięćset \",\"\"))))","v":{"$error":"#VALUE!"}},null,null,null,{"$f":"IF(C8,E8&I8,IF(D8,F8&I8,\"\"))","v":{"$error":"#VALUE!"}}]
[{"$f":"INT(A$1/10)-10*A8-100*A7-1000*A6-10000*A5-100000*A4-1000000*A3","v":{"$error":"#VALUE!"}},null,{"$error":"#VALUE!"},{"$error":"#VALUE!"},{"$f":"IF(A9=0,\"\",IF(A9=1,IF(A10=0,\"dziesięć \",\"\"),IF(A9=2,\"dwadzieścia \",IF(A9=3,\"trzydzieści \",IF(A9=4,\"czterdzieści \",IF(A9=5,\"pięćdziesiąt \",\"\"))))))","v":{"$error":"#VALUE!"}},{"$f":"IF(A9=6,\"sześćdziesiąt \",IF(A9=7,\"siedemdziesiąt \",IF(A9=8,\"osiemdziesiąt \",IF(A9=9,\"dziewięćdziesiąt \",\"\"))))","v":{"$error":"#VALUE!"}},null,null,null,{"$f":"IF(C9,E9&I9,IF(D9,F9&I9,\"\"))","v":{"$error":"#VALUE!"}}]
[{"$f":"INT(A$1)-10*A9-100*A8-1000*A7-10000*A6-100000*A5-1000000*A4-10000000*A3","v":{"$error":"#VALUE!"}},null,{"$error":"#VALUE!"},{"$error":"#VALUE!"},{"$f":"IF(A10=0,\"\",IF(A10=1,\"jeden \",IF(A10=2,\"dwa \",IF(A10=3,\"trzy \",IF(A10=4,\"cztery \",IF(A10=5,\"pięć \",\"\"))))))","v":{"$error":"#VALUE!"}},{"$f":"IF(A10=6,\"sześć \",IF(A10=7,\"siedem \",IF(A10=8,\"osiem \",IF(A10=9,\"dziewięć \",\"\"))))","v":{"$error":"#VALUE!"}},{"$f":"IF(A10=0,\"\",IF(A10=1,\"jedenaście \",IF(A10=2,\"dwanaście \",IF(A10=3,\"trzynaście \",IF(A10=4,\"czternaście \",IF(A10=5,\"piętnaście \",\"\"))))))","v":{"$error":"#VALUE!"}},{"$f":"IF(A10=6,\"szesnaście \",IF(A10=7,\"siedemnaście \",IF(A10=8,\"osiemnaście \",IF(A10=9,\"dziewiętnaście \",\"\"))))","v":{"$error":"#VALUE!"}},null,{"$f":"IF(A9=1,IF(C10,G10,IF(D10,H10)),IF(C10,E10,IF(D10,F10,\"\")))","v":{"$error":"#VALUE!"}}]
[{"$f":"ROUND((A1-TRUNC(A1,0))*100,0)","v":{"$error":"#VALUE!"}},null,null,null,null,null,null,null,null,{"$f":"\"zł \"&TEXT(A11,\"00\")&\"/100\"","v":{"$error":"#VALUE!"}}]
[null,null,null,null,"Słownie:"]
[{"$f":"TRUNC(A1,1)","v":{"$error":"#VALUE!"}},null,null,null,{"$f":"J3&J4&J5&J6&J7&J8&J9&J10&J11","v":{"$error":"#VALUE!"}}]

{"sheet":"zad5","index":17,"n_rows":13,"n_cols":10,"rows_kept":13,"cut":false,"hidden":true,"merged":[[0,6,0,7]]}
[{"$f":"'Załącznik 1 - Formularz Oferty'!D31","v":"Wykonawca nie składa oferty"},null,null,null,null,null,"jeżeli \"naście\""]
[null,null,"0-5","6-9","0-5","6-9","0-5","6-9","dodatek","sumuj te ciągi"]
[{"$f":"INT(A$1/10000000)","v":{"$error":"#VALUE!"}},null,{"$f":"IF(AND(A3>=0,A3<=5),1,0)","v":{"$error":"#VALUE!"}},{"$f":"IF(AND(A3>=6,A3<=9),1,0)","v":{"$error":"#VALUE!"}},{"$f":"IF(A3=0,\"\",IF(A3=1,IF(A4=0,\"dziesięć milionów \",\"\"),IF(A3=2,\"dwadzieścia \",IF(A3=3,\"trzydzieści \",IF(A3=4,\"czterdzieści \",IF(A3=5,\"pięćdziesiąt \",\"\"))))))","v":{"$error":"#VALUE!"}},{"$f":"IF(A3=6,\"sześćdziesiąt \",IF(A3=7,\"siedemdziesiąt \",IF(A3=8,\"osiemdziesiąt \",IF(A3=9,\"dziewięćdziesiąt \",\"\"))))","v":{"$error":"#VALUE!"}},null,null,null,{"$f":"IF(C3,E3&I3,IF(D3,F3&I3,\"\"))","v":{"$error":"#VALUE!"}}]
[{"$f":"INT(A$1/1000000)-A3*10","v":{"$error":"#VALUE!"}},null,{"$error":"#VALUE!"},{"$error":"#VALUE!"},{"$f":"IF(A4=0,IF(AND(A3<>0,A3<>1),\"milionów \",\"\"),IF(A4=1,IF(A3=0,\"jeden milion \",\"jeden milionów \"),IF(A4=2,\"dwa miliony \",IF(A4=3,\"trzy miliony \",IF(A4=4,\"cztery miliony \",IF(A4=5,\"pięć milionów \",\"\"))))))","v":{"$error":"#VALUE!"}},{"$f":"IF(A4=6,\"sześć milionów \",IF(A4=7,\"siedem milionów \",IF(A4=8,\"osiem milionów \",IF(A4=9,\"dziewięć milionów \",\"\"))))","v":{"$error":"#VALUE!"}},{"$f":"IF(A4=0,\"\",IF(A4=1,\"jedenaście milionów \",IF(A4=2,\"dwanaście milionów \",IF(A4=3,\"trzynaście milionów \",IF(A4=4,\"czternaście milionów \",IF(A4=5,\"piętnaście milionów \",\"\"))))))","v":{"$error":"#VALUE!"}},{"$f":"IF(A4=6,\"szesnaście milionów \",IF(A4=7,\"siedemnaście milionów \",IF(A4=8,\"osiemnaście milionów \",IF(A4=9,\"dziewiętnaście milionów \",\"\"))))","v":{"$error":"#VALUE!"}},null,{"$f":"IF(A3=1,IF(C4,G4,IF(D4,H4)),IF(C4,E4,IF(D4,F4,\"\")))","v":{"$error":"#VALUE!"}}]
[{"$f":"INT(A$1/100000)-10*A4-100*A3","v":{"$error":"#VALUE!"}},null,{"$error":"#VALUE!"},{"$error":"#VALUE!"},{"$f":"IF(A5=0,\"\",IF(A5=1,\"sto \",IF(A5=2,\"dwieście \",IF(A5=3,\"trzysta \",IF(A5=4,\"czterysta \",IF(A5=5,\"pięćset \",\"\"))))))","v":{"$error":"#VALUE!"}},{"$f":"IF(A5=6,\"sześćset \",IF(A5=7,\"siedemset \",IF(A5=8,\"osiemset \",IF(A5=9,\"dziewięćset \",\"\"))))","v":{"$error":"#VALUE!"}},null,null,null,{"$f":"IF(C5,E5&I5,IF(D5,F5&I5,\"\"))","v":{"$error":"#VALUE!"}}]
[{"$f":"INT(A$1/10000)-10*A5-100*A4-1000*A3","v":{"$error":"#VALUE!"}},null,{"$error":"#VALUE!"},{"$error":"#VALUE!"},{"$f":"IF(A6=0,\"\",IF(A6=1,IF(A7=0,\"dziesięć tysięcy \",\"\"),IF(A6=2,\"dwadzieścia \",IF(A6=3,\"trzydzieści \",IF(A6=4,\"czterdzieści \",IF(A6=5,\"pięćdziesiąt \",\"\"))))))","v":{"$error":"#VALUE!"}},{"$f":"IF(A6=6,\"sześćdziesiąt \",IF(A6=7,\"siedemdziesiąt \",IF(A6=8,\"osiemdziesiąt \",IF(A6=9,\"dziewięćdziesiąt \",\"\"))))","v":{"$error":"#VALUE!"}},null,null,null,{"$f":"IF(C6,E6&I6,IF(D6,F6&I6,\"\"))","v":{"$error":"#VALUE!"}}]
[{"$f":"INT(A$1/1000)-10*A6-100*A5-1000*A4-10000*A3","v":{"$error":"#VALUE!"}},null,{"$error":"#VALUE!"},{"$error":"#VALUE!"},{"$f":"IF(A7=0,IF(OR(AND(A6<>0,A6<>1),AND(A5<>0,A6=0)),\"tysięcy \",\"\"),IF(A7=1,IF(AND(A5=0,A6=0),\"jeden tysiąc \",\"jeden tysięcy \"),IF(A7=2,\"dwa tysiące \",IF(A7=3,\"trzy tysiące \",IF(A7=4,\"cztery tysiące \",IF(A7=5,\"pięć tysięcy \",\"\"))))))","v":{"$error":"#VALUE!"}},{"$f":"IF(A7=6,\"sześć tysięcy \",IF(A7=7,\"siedem tysięcy \",IF(A7=8,\"osiem tysięcy \",IF(A7=9,\"dziewięć tysięcy \",\"\"))))","v":{"$error":"#VALUE!"}},{"$f":"IF(A7=0,\"\",IF(A7=1,\"jedenaście tysięcy \",IF(A7=2,\"dwanaście tysięcy \",IF(A7=3,\"trzynaście tysięcy \",IF(A7=4,\"czternaście tysięcy \",IF(A7=5,\"piętnaście tysięcy \",\"\"))))))","v":{"$error":"#VALUE!"}},{"$f":"IF(A7=6,\"szesnaście tysięcy \",IF(A7=7,\"siedemnaście tysięcy \",IF(A7=8,\"osiemnaście tysięcy \",IF(A7=9,\"dziewiętnaście tysięcy \",\"\"))))","v":{"$error":"#VALUE!"}},null,{"$f":"IF(A6=1,IF(C7,G7,IF(D7,H7)),IF(C7,E7,IF(D7,F7,\"\")))","v":{"$error":"#VALUE!"}}]
[{"$f":"INT(A$1/100)-10*A7-100*A6-1000*A5-10000*A4-100000*A3","v":{"$error":"#VALUE!"}},null,{"$error":"#VALUE!"},{"$error":"#VALUE!"},{"$f":"IF(A8=0,\"\",IF(A8=1,\"sto \",IF(A8=2,\"dwieście \",IF(A8=3,\"trzysta \",IF(A8=4,\"czterysta \",IF(A8=5,\"pięćset \",\"\"))))))","v":{"$error":"#VALUE!"}},{"$f":"IF(A8=6,\"sześćset \",IF(A8=7,\"siedemset \",IF(A8=8,\"osiemset \",IF(A8=9,\"dziewięćset \",\"\"))))","v":{"$error":"#VALUE!"}},null,null,null,{"$f":"IF(C8,E8&I8,IF(D8,F8&I8,\"\"))","v":{"$error":"#VALUE!"}}]
[{"$f":"INT(A$1/10)-10*A8-100*A7-1000*A6-10000*A5-100000*A4-1000000*A3","v":{"$error":"#VALUE!"}},null,{"$error":"#VALUE!"},{"$error":"#VALUE!"},{"$f":"IF(A9=0,\"\",IF(A9=1,IF(A10=0,\"dziesięć \",\"\"),IF(A9=2,\"dwadzieścia \",IF(A9=3,\"trzydzieści \",IF(A9=4,\"czterdzieści \",IF(A9=5,\"pięćdziesiąt \",\"\"))))))","v":{"$error":"#VALUE!"}},{"$f":"IF(A9=6,\"sześćdziesiąt \",IF(A9=7,\"siedemdziesiąt \",IF(A9=8,\"osiemdziesiąt \",IF(A9=9,\"dziewięćdziesiąt \",\"\"))))","v":{"$error":"#VALUE!"}},null,null,null,{"$f":"IF(C9,E9&I9,IF(D9,F9&I9,\"\"))","v":{"$error":"#VALUE!"}}]
[{"$f":"INT(A$1)-10*A9-100*A8-1000*A7-10000*A6-100000*A5-1000000*A4-10000000*A3","v":{"$error":"#VALUE!"}},null,{"$error":"#VALUE!"},{"$error":"#VALUE!"},{"$f":"IF(A10=0,\"\",IF(A10=1,\"jeden \",IF(A10=2,\"dwa \",IF(A10=3,\"trzy \",IF(A10=4,\"cztery \",IF(A10=5,\"pięć \",\"\"))))))","v":{"$error":"#VALUE!"}},{"$f":"IF(A10=6,\"sześć \",IF(A10=7,\"siedem \",IF(A10=8,\"osiem \",IF(A10=9,\"dziewięć \",\"\"))))","v":{"$error":"#VALUE!"}},{"$f":"IF(A10=0,\"\",IF(A10=1,\"jedenaście \",IF(A10=2,\"dwanaście \",IF(A10=3,\"trzynaście \",IF(A10=4,\"czternaście \",IF(A10=5,\"piętnaście \",\"\"))))))","v":{"$error":"#VALUE!"}},{"$f":"IF(A10=6,\"szesnaście \",IF(A10=7,\"siedemnaście \",IF(A10=8,\"osiemnaście \",IF(A10=9,\"dziewiętnaście \",\"\"))))","v":{"$error":"#VALUE!"}},null,{"$f":"IF(A9=1,IF(C10,G10,IF(D10,H10)),IF(C10,E10,IF(D10,F10,\"\")))","v":{"$error":"#VALUE!"}}]
[{"$f":"ROUND((A1-TRUNC(A1,0))*100,0)","v":{"$error":"#VALUE!"}},null,null,null,null,null,null,null,null,{"$f":"\"zł \"&TEXT(A11,\"00\")&\"/100\"","v":{"$error":"#VALUE!"}}]
[null,null,null,null,"Słownie:"]
[{"$f":"TRUNC(A1,1)","v":{"$error":"#VALUE!"}},null,null,null,{"$f":"J3&J4&J5&J6&J7&J8&J9&J10&J11","v":{"$error":"#VALUE!"}}]

{"sheet":"zad6","index":18,"n_rows":13,"n_cols":10,"rows_kept":13,"cut":false,"hidden":true,"merged":[[0,6,0,7]]}
[{"$f":"'Załącznik 1 - Formularz Oferty'!D34","v":"Wykonawca nie składa oferty"},null,null,null,null,null,"jeżeli \"naście\""]
[null,null,"0-5","6-9","0-5","6-9","0-5","6-9","dodatek","sumuj te ciągi"]
[{"$f":"INT(A$1/10000000)","v":{"$error":"#VALUE!"}},null,{"$f":"IF(AND(A3>=0,A3<=5),1,0)","v":{"$error":"#VALUE!"}},{"$f":"IF(AND(A3>=6,A3<=9),1,0)","v":{"$error":"#VALUE!"}},{"$f":"IF(A3=0,\"\",IF(A3=1,IF(A4=0,\"dziesięć milionów \",\"\"),IF(A3=2,\"dwadzieścia \",IF(A3=3,\"trzydzieści \",IF(A3=4,\"czterdzieści \",IF(A3=5,\"pięćdziesiąt \",\"\"))))))","v":{"$error":"#VALUE!"}},{"$f":"IF(A3=6,\"sześćdziesiąt \",IF(A3=7,\"siedemdziesiąt \",IF(A3=8,\"osiemdziesiąt \",IF(A3=9,\"dziewięćdziesiąt \",\"\"))))","v":{"$error":"#VALUE!"}},null,null,null,{"$f":"IF(C3,E3&I3,IF(D3,F3&I3,\"\"))","v":{"$error":"#VALUE!"}}]
[{"$f":"INT(A$1/1000000)-A3*10","v":{"$error":"#VALUE!"}},null,{"$error":"#VALUE!"},{"$error":"#VALUE!"},{"$f":"IF(A4=0,IF(AND(A3<>0,A3<>1),\"milionów \",\"\"),IF(A4=1,IF(A3=0,\"jeden milion \",\"jeden milionów \"),IF(A4=2,\"dwa miliony \",IF(A4=3,\"trzy miliony \",IF(A4=4,\"cztery miliony \",IF(A4=5,\"pięć milionów \",\"\"))))))","v":{"$error":"#VALUE!"}},{"$f":"IF(A4=6,\"sześć milionów \",IF(A4=7,\"siedem milionów \",IF(A4=8,\"osiem milionów \",IF(A4=9,\"dziewięć milionów \",\"\"))))","v":{"$error":"#VALUE!"}},{"$f":"IF(A4=0,\"\",IF(A4=1,\"jedenaście milionów \",IF(A4=2,\"dwanaście milionów \",IF(A4=3,\"trzynaście milionów \",IF(A4=4,\"czternaście milionów \",IF(A4=5,\"piętnaście milionów \",\"\"))))))","v":{"$error":"#VALUE!"}},{"$f":"IF(A4=6,\"szesnaście milionów \",IF(A4=7,\"siedemnaście milionów \",IF(A4=8,\"osiemnaście milionów \",IF(A4=9,\"dziewiętnaście milionów \",\"\"))))","v":{"$error":"#VALUE!"}},null,{"$f":"IF(A3=1,IF(C4,G4,IF(D4,H4)),IF(C4,E4,IF(D4,F4,\"\")))","v":{"$error":"#VALUE!"}}]
[{"$f":"INT(A$1/100000)-10*A4-100*A3","v":{"$error":"#VALUE!"}},null,{"$error":"#VALUE!"},{"$error":"#VALUE!"},{"$f":"IF(A5=0,\"\",IF(A5=1,\"sto \",IF(A5=2,\"dwieście \",IF(A5=3,\"trzysta \",IF(A5=4,\"czterysta \",IF(A5=5,\"pięćset \",\"\"))))))","v":{"$error":"#VALUE!"}},{"$f":"IF(A5=6,\"sześćset \",IF(A5=7,\"siedemset \",IF(A5=8,\"osiemset \",IF(A5=9,\"dziewięćset \",\"\"))))","v":{"$error":"#VALUE!"}},null,null,null,{"$f":"IF(C5,E5&I5,IF(D5,F5&I5,\"\"))","v":{"$error":"#VALUE!"}}]
[{"$f":"INT(A$1/10000)-10*A5-100*A4-1000*A3","v":{"$error":"#VALUE!"}},null,{"$error":"#VALUE!"},{"$error":"#VALUE!"},{"$f":"IF(A6=0,\"\",IF(A6=1,IF(A7=0,\"dziesięć tysięcy \",\"\"),IF(A6=2,\"dwadzieścia \",IF(A6=3,\"trzydzieści \",IF(A6=4,\"czterdzieści \",IF(A6=5,\"pięćdziesiąt \",\"\"))))))","v":{"$error":"#VALUE!"}},{"$f":"IF(A6=6,\"sześćdziesiąt \",IF(A6=7,\"siedemdziesiąt \",IF(A6=8,\"osiemdziesiąt \",IF(A6=9,\"dziewięćdziesiąt \",\"\"))))","v":{"$error":"#VALUE!"}},null,null,null,{"$f":"IF(C6,E6&I6,IF(D6,F6&I6,\"\"))","v":{"$error":"#VALUE!"}}]
[{"$f":"INT(A$1/1000)-10*A6-100*A5-1000*A4-10000*A3","v":{"$error":"#VALUE!"}},null,{"$error":"#VALUE!"},{"$error":"#VALUE!"},{"$f":"IF(A7=0,IF(OR(AND(A6<>0,A6<>1),AND(A5<>0,A6=0)),\"tysięcy \",\"\"),IF(A7=1,IF(AND(A5=0,A6=0),\"jeden tysiąc \",\"jeden tysięcy \"),IF(A7=2,\"dwa tysiące \",IF(A7=3,\"trzy tysiące \",IF(A7=4,\"cztery tysiące \",IF(A7=5,\"pięć tysięcy \",\"\"))))))","v":{"$error":"#VALUE!"}},{"$f":"IF(A7=6,\"sześć tysięcy \",IF(A7=7,\"siedem tysięcy \",IF(A7=8,\"osiem tysięcy \",IF(A7=9,\"dziewięć tysięcy \",\"\"))))","v":{"$error":"#VALUE!"}},{"$f":"IF(A7=0,\"\",IF(A7=1,\"jedenaście tysięcy \",IF(A7=2,\"dwanaście tysięcy \",IF(A7=3,\"trzynaście tysięcy \",IF(A7=4,\"czternaście tysięcy \",IF(A7=5,\"piętnaście tysięcy \",\"\"))))))","v":{"$error":"#VALUE!"}},{"$f":"IF(A7=6,\"szesnaście tysięcy \",IF(A7=7,\"siedemnaście tysięcy \",IF(A7=8,\"osiemnaście tysięcy \",IF(A7=9,\"dziewiętnaście tysięcy \",\"\"))))","v":{"$error":"#VALUE!"}},null,{"$f":"IF(A6=1,IF(C7,G7,IF(D7,H7)),IF(C7,E7,IF(D7,F7,\"\")))","v":{"$error":"#VALUE!"}}]
[{"$f":"INT(A$1/100)-10*A7-100*A6-1000*A5-10000*A4-100000*A3","v":{"$error":"#VALUE!"}},null,{"$error":"#VALUE!"},{"$error":"#VALUE!"},{"$f":"IF(A8=0,\"\",IF(A8=1,\"sto \",IF(A8=2,\"dwieście \",IF(A8=3,\"trzysta \",IF(A8=4,\"czterysta \",IF(A8=5,\"pięćset \",\"\"))))))","v":{"$error":"#VALUE!"}},{"$f":"IF(A8=6,\"sześćset \",IF(A8=7,\"siedemset \",IF(A8=8,\"osiemset \",IF(A8=9,\"dziewięćset \",\"\"))))","v":{"$error":"#VALUE!"}},null,null,null,{"$f":"IF(C8,E8&I8,IF(D8,F8&I8,\"\"))","v":{"$error":"#VALUE!"}}]
[{"$f":"INT(A$1/10)-10*A8-100*A7-1000*A6-10000*A5-100000*A4-1000000*A3","v":{"$error":"#VALUE!"}},null,{"$error":"#VALUE!"},{"$error":"#VALUE!"},{"$f":"IF(A9=0,\"\",IF(A9=1,IF(A10=0,\"dziesięć \",\"\"),IF(A9=2,\"dwadzieścia \",IF(A9=3,\"trzydzieści \",IF(A9=4,\"czterdzieści \",IF(A9=5,\"pięćdziesiąt \",\"\"))))))","v":{"$error":"#VALUE!"}},{"$f":"IF(A9=6,\"sześćdziesiąt \",IF(A9=7,\"siedemdziesiąt \",IF(A9=8,\"osiemdziesiąt \",IF(A9=9,\"dziewięćdziesiąt \",\"\"))))","v":{"$error":"#VALUE!"}},null,null,null,{"$f":"IF(C9,E9&I9,IF(D9,F9&I9,\"\"))","v":{"$error":"#VALUE!"}}]
[{"$f":"INT(A$1)-10*A9-100*A8-1000*A7-10000*A6-100000*A5-1000000*A4-10000000*A3","v":{"$error":"#VALUE!"}},null,{"$error":"#VALUE!"},{"$error":"#VALUE!"},{"$f":"IF(A10=0,\"\",IF(A10=1,\"jeden \",IF(A10=2,\"dwa \",IF(A10=3,\"trzy \",IF(A10=4,\"cztery \",IF(A10=5,\"pięć \",\"\"))))))","v":{"$error":"#VALUE!"}},{"$f":"IF(A10=6,\"sześć \",IF(A10=7,\"siedem \",IF(A10=8,\"osiem \",IF(A10=9,\"dziewięć \",\"\"))))","v":{"$error":"#VALUE!"}},{"$f":"IF(A10=0,\"\",IF(A10=1,\"jedenaście \",IF(A10=2,\"dwanaście \",IF(A10=3,\"trzynaście \",IF(A10=4,\"czternaście \",IF(A10=5,\"piętnaście \",\"\"))))))","v":{"$error":"#VALUE!"}},{"$f":"IF(A10=6,\"szesnaście \",IF(A10=7,\"siedemnaście \",IF(A10=8,\"osiemnaście \",IF(A10=9,\"dziewiętnaście \",\"\"))))","v":{"$error":"#VALUE!"}},null,{"$f":"IF(A9=1,IF(C10,G10,IF(D10,H10)),IF(C10,E10,IF(D10,F10,\"\")))","v":{"$error":"#VALUE!"}}]
[{"$f":"ROUND((A1-TRUNC(A1,0))*100,0)","v":{"$error":"#VALUE!"}},null,null,null,null,null,null,null,null,{"$f":"\"zł \"&TEXT(A11,\"00\")&\"/100\"","v":{"$error":"#VALUE!"}}]
[null,null,null,null,"Słownie:"]
[{"$f":"TRUNC(A1,1)","v":{"$error":"#VALUE!"}},null,null,null,{"$f":"J3&J4&J5&J6&J7&J8&J9&J10&J11","v":{"$error":"#VALUE!"}}]

{"sheet":"zad7","index":19,"n_rows":13,"n_cols":10,"rows_kept":13,"cut":false,"hidden":true,"merged":[[0,6,0,7]]}
[{"$f":"'Załącznik 1 - Formularz Oferty'!D37","v":"Wykonawca nie składa oferty"},null,null,null,null,null,"jeżeli \"naście\""]
[null,null,"0-5","6-9","0-5","6-9","0-5","6-9","dodatek","sumuj te ciągi"]
[{"$f":"INT(A$1/10000000)","v":{"$error":"#VALUE!"}},null,{"$f":"IF(AND(A3>=0,A3<=5),1,0)","v":{"$error":"#VALUE!"}},{"$f":"IF(AND(A3>=6,A3<=9),1,0)","v":{"$error":"#VALUE!"}},{"$f":"IF(A3=0,\"\",IF(A3=1,IF(A4=0,\"dziesięć milionów \",\"\"),IF(A3=2,\"dwadzieścia \",IF(A3=3,\"trzydzieści \",IF(A3=4,\"czterdzieści \",IF(A3=5,\"pięćdziesiąt \",\"\"))))))","v":{"$error":"#VALUE!"}},{"$f":"IF(A3=6,\"sześćdziesiąt \",IF(A3=7,\"siedemdziesiąt \",IF(A3=8,\"osiemdziesiąt \",IF(A3=9,\"dziewięćdziesiąt \",\"\"))))","v":{"$error":"#VALUE!"}},null,null,null,{"$f":"IF(C3,E3&I3,IF(D3,F3&I3,\"\"))","v":{"$error":"#VALUE!"}}]
[{"$f":"INT(A$1/1000000)-A3*10","v":{"$error":"#VALUE!"}},null,{"$error":"#VALUE!"},{"$error":"#VALUE!"},{"$f":"IF(A4=0,IF(AND(A3<>0,A3<>1),\"milionów \",\"\"),IF(A4=1,IF(A3=0,\"jeden milion \",\"jeden milionów \"),IF(A4=2,\"dwa miliony \",IF(A4=3,\"trzy miliony \",IF(A4=4,\"cztery miliony \",IF(A4=5,\"pięć milionów \",\"\"))))))","v":{"$error":"#VALUE!"}},{"$f":"IF(A4=6,\"sześć milionów \",IF(A4=7,\"siedem milionów \",IF(A4=8,\"osiem milionów \",IF(A4=9,\"dziewięć milionów \",\"\"))))","v":{"$error":"#VALUE!"}},{"$f":"IF(A4=0,\"\",IF(A4=1,\"jedenaście milionów \",IF(A4=2,\"dwanaście milionów \",IF(A4=3,\"trzynaście milionów \",IF(A4=4,\"czternaście milionów \",IF(A4=5,\"piętnaście milionów \",\"\"))))))","v":{"$error":"#VALUE!"}},{"$f":"IF(A4=6,\"szesnaście milionów \",IF(A4=7,\"siedemnaście milionów \",IF(A4=8,\"osiemnaście milionów \",IF(A4=9,\"dziewiętnaście milionów \",\"\"))))","v":{"$error":"#VALUE!"}},null,{"$f":"IF(A3=1,IF(C4,G4,IF(D4,H4)),IF(C4,E4,IF(D4,F4,\"\")))","v":{"$error":"#VALUE!"}}]
[{"$f":"INT(A$1/100000)-10*A4-100*A3","v":{"$error":"#VALUE!"}},null,{"$error":"#VALUE!"},{"$error":"#VALUE!"},{"$f":"IF(A5=0,\"\",IF(A5=1,\"sto \",IF(A5=2,\"dwieście \",IF(A5=3,\"trzysta \",IF(A5=4,\"czterysta \",IF(A5=5,\"pięćset \",\"\"))))))","v":{"$error":"#VALUE!"}},{"$f":"IF(A5=6,\"sześćset \",IF(A5=7,\"siedemset \",IF(A5=8,\"osiemset \",IF(A5=9,\"dziewięćset \",\"\"))))","v":{"$error":"#VALUE!"}},null,null,null,{"$f":"IF(C5,E5&I5,IF(D5,F5&I5,\"\"))","v":{"$error":"#VALUE!"}}]
[{"$f":"INT(A$1/10000)-10*A5-100*A4-1000*A3","v":{"$error":"#VALUE!"}},null,{"$error":"#VALUE!"},{"$error":"#VALUE!"},{"$f":"IF(A6=0,\"\",IF(A6=1,IF(A7=0,\"dziesięć tysięcy \",\"\"),IF(A6=2,\"dwadzieścia \",IF(A6=3,\"trzydzieści \",IF(A6=4,\"czterdzieści \",IF(A6=5,\"pięćdziesiąt \",\"\"))))))","v":{"$error":"#VALUE!"}},{"$f":"IF(A6=6,\"sześćdziesiąt \",IF(A6=7,\"siedemdziesiąt \",IF(A6=8,\"osiemdziesiąt \",IF(A6=9,\"dziewięćdziesiąt \",\"\"))))","v":{"$error":"#VALUE!"}},null,null,null,{"$f":"IF(C6,E6&I6,IF(D6,F6&I6,\"\"))","v":{"$error":"#VALUE!"}}]
[{"$f":"INT(A$1/1000)-10*A6-100*A5-1000*A4-10000*A3","v":{"$error":"#VALUE!"}},null,{"$error":"#VALUE!"},{"$error":"#VALUE!"},{"$f":"IF(A7=0,IF(OR(AND(A6<>0,A6<>1),AND(A5<>0,A6=0)),\"tysięcy \",\"\"),IF(A7=1,IF(AND(A5=0,A6=0),\"jeden tysiąc \",\"jeden tysięcy \"),IF(A7=2,\"dwa tysiące \",IF(A7=3,\"trzy tysiące \",IF(A7=4,\"cztery tysiące \",IF(A7=5,\"pięć tysięcy \",\"\"))))))","v":{"$error":"#VALUE!"}},{"$f":"IF(A7=6,\"sześć tysięcy \",IF(A7=7,\"siedem tysięcy \",IF(A7=8,\"osiem tysięcy \",IF(A7=9,\"dziewięć tysięcy \",\"\"))))","v":{"$error":"#VALUE!"}},{"$f":"IF(A7=0,\"\",IF(A7=1,\"jedenaście tysięcy \",IF(A7=2,\"dwanaście tysięcy \",IF(A7=3,\"trzynaście tysięcy \",IF(A7=4,\"czternaście tysięcy \",IF(A7=5,\"piętnaście tysięcy \",\"\"))))))","v":{"$error":"#VALUE!"}},{"$f":"IF(A7=6,\"szesnaście tysięcy \",IF(A7=7,\"siedemnaście tysięcy \",IF(A7=8,\"osiemnaście tysięcy \",IF(A7=9,\"dziewiętnaście tysięcy \",\"\"))))","v":{"$error":"#VALUE!"}},null,{"$f":"IF(A6=1,IF(C7,G7,IF(D7,H7)),IF(C7,E7,IF(D7,F7,\"\")))","v":{"$error":"#VALUE!"}}]
[{"$f":"INT(A$1/100)-10*A7-100*A6-1000*A5-10000*A4-100000*A3","v":{"$error":"#VALUE!"}},null,{"$error":"#VALUE!"},{"$error":"#VALUE!"},{"$f":"IF(A8=0,\"\",IF(A8=1,\"sto \",IF(A8=2,\"dwieście \",IF(A8=3,\"trzysta \",IF(A8=4,\"czterysta \",IF(A8=5,\"pięćset \",\"\"))))))","v":{"$error":"#VALUE!"}},{"$f":"IF(A8=6,\"sześćset \",IF(A8=7,\"siedemset \",IF(A8=8,\"osiemset \",IF(A8=9,\"dziewięćset \",\"\"))))","v":{"$error":"#VALUE!"}},null,null,null,{"$f":"IF(C8,E8&I8,IF(D8,F8&I8,\"\"))","v":{"$error":"#VALUE!"}}]
[{"$f":"INT(A$1/10)-10*A8-100*A7-1000*A6-10000*A5-100000*A4-1000000*A3","v":{"$error":"#VALUE!"}},null,{"$error":"#VALUE!"},{"$error":"#VALUE!"},{"$f":"IF(A9=0,\"\",IF(A9=1,IF(A10=0,\"dziesięć \",\"\"),IF(A9=2,\"dwadzieścia \",IF(A9=3,\"trzydzieści \",IF(A9=4,\"czterdzieści \",IF(A9=5,\"pięćdziesiąt \",\"\"))))))","v":{"$error":"#VALUE!"}},{"$f":"IF(A9=6,\"sześćdziesiąt \",IF(A9=7,\"siedemdziesiąt \",IF(A9=8,\"osiemdziesiąt \",IF(A9=9,\"dziewięćdziesiąt \",\"\"))))","v":{"$error":"#VALUE!"}},null,null,null,{"$f":"IF(C9,E9&I9,IF(D9,F9&I9,\"\"))","v":{"$error":"#VALUE!"}}]
[{"$f":"INT(A$1)-10*A9-100*A8-1000*A7-10000*A6-100000*A5-1000000*A4-10000000*A3","v":{"$error":"#VALUE!"}},null,{"$error":"#VALUE!"},{"$error":"#VALUE!"},{"$f":"IF(A10=0,\"\",IF(A10=1,\"jeden \",IF(A10=2,\"dwa \",IF(A10=3,\"trzy \",IF(A10=4,\"cztery \",IF(A10=5,\"pięć \",\"\"))))))","v":{"$error":"#VALUE!"}},{"$f":"IF(A10=6,\"sześć \",IF(A10=7,\"siedem \",IF(A10=8,\"osiem \",IF(A10=9,\"dziewięć \",\"\"))))","v":{"$error":"#VALUE!"}},{"$f":"IF(A10=0,\"\",IF(A10=1,\"jedenaście \",IF(A10=2,\"dwanaście \",IF(A10=3,\"trzynaście \",IF(A10=4,\"czternaście \",IF(A10=5,\"piętnaście \",\"\"))))))","v":{"$error":"#VALUE!"}},{"$f":"IF(A10=6,\"szesnaście \",IF(A10=7,\"siedemnaście \",IF(A10=8,\"osiemnaście \",IF(A10=9,\"dziewiętnaście \",\"\"))))","v":{"$error":"#VALUE!"}},null,{"$f":"IF(A9=1,IF(C10,G10,IF(D10,H10)),IF(C10,E10,IF(D10,F10,\"\")))","v":{"$error":"#VALUE!"}}]
[{"$f":"ROUND((A1-TRUNC(A1,0))*100,0)","v":{"$error":"#VALUE!"}},null,null,null,null,null,null,null,null,{"$f":"\"zł \"&TEXT(A11,\"00\")&\"/100\"","v":{"$error":"#VALUE!"}}]
[null,null,null,null,"Słownie:"]
[{"$f":"TRUNC(A1,1)","v":{"$error":"#VALUE!"}},null,null,null,{"$f":"J3&J4&J5&J6&J7&J8&J9&J10&J11","v":{"$error":"#VALUE!"}}]